Workbook

Sheet Instructions
A1: Instructions for Tabs 1, 3 to 7
B3: Summary of Changes from the Prior Year
B5: 1 | C5: In the tab 3 Group 1 continuity schedule, the rows for the totals are revised to show total of Group 1 accounts and total claim amount only.
A11: Detailed Instructions for Each Tab
A12: Tab | B12: Tab Details | D12: Step | E12: Details
A13: 1 - Information Sheet | B13: This tab shows some information pertaining to the utility and the application. | D13: 1 | E13: Complete the information sheet.
E14: a) Questions 2 to 4
E15: Responses to questions 2 to 4 will open the DVA continuity schedule in tab 3 to the appropriate year that DVA balances should first be inputted.
E16: The continuity schedule will open starting from the year balances were last approved for disposition, unless the last approved dipsosition was on an interim basis and there are changes to those balances. If that is the case, the continuity schedule will open from the year of last approved disposition on a final basis. A distributor must also provide an explanation for the change in the previously approved balance.
E18: b) Questions 5 and 6
E19: If the response to question 5 (GA) or 6 (CBR Class B) is yes, tab 6 relating to Class A customers' consumption will be generated.
E20: If the response to question 6 is yes, then tab 6.2 will also be generated. This tab will allocate and dispose the balance in Account 1580, sub-account CBR Class B through a separate rate rider using information inputted in tab 6, unless a rate rider is not produced.
E21: If the response to question 6 is no, then the balance in the Account 1580, sub-account CBR Class B will be allocated and disposed with Account 1580 WMS, as part of the general DVA rate rider
A23: 3 - Continuity Schedule | B23: This tab is the continuity schedule that shows all the accounts and the accumulation of the balances a utility has. | D23: 2 | E23: Complete the DVA continuity schedule.
E25: a) For all Group 1 accounts, except Account 1595: The continuity schedule will open from the year the GL balance was last disposed. Start inputting the approved ending balances in the Adjustments column of that year. For example, if in the 2022 rate application, DVA balances as at December 13, 2020 were approved for disposition, the continuity schedule will commence from 2020. Start by inputting the approved closing 2020 balances in the Adjustments column under 2020.
E27: b) For all Account 1595 sub-accounts: Complete the DVA continuity schedule for each Account 1595 vintage year that has a GL balance as at December 31, 2021, regardless of whether the account is being requested for disposition in the current application. The continuity schedule will open in the year of the earliest Account 1595 vintage year that has a balance. For each Account 1595 sub-account, start inputting data from the year the sub-account started to accumulate a balance (i.e. the vintage year). For example, Account 1595 (2017) would accumulate a balance starting in 2017, when the relevant balances approved for disposition were first transferred into Account 1595 (2017). Input the amount approved for disposition in the OEB Approved Disposition column. Note that the DVA continuity schedule can currently start from 2016. If a utility has residual balance in an Account 1595 with a vintage year prior to 2016, include residual balances for years up to 2016 in the row for Account 1595 (2016 and pre-2016) and provide a separate schedule with amounts broken down by vintage year.
D29: 3 | E29: Review any balance variance between the DVA continuity schedule and the RRR in column BW. Provide an explanation, if necessary.
A31: 4 - Billing Determinant | B31: This tab shows the billing determinants that will be used to allocate account balances and calculate rate riders. | D31: 4 | E31: Confirm the accuracy of the RRR data used to populate the tab.
D33: 5 | E33: Review the disposition threshold calculation. Select whether disposition is being requested or not in the drop down box.
A35: 6 - Class A Data Consumption | B35: This tab is to be completed if there were any Class A customers at any point during the period the GA balance or CBR Class B accumulated. The data on this tab is used for the purposes of determining the GA rate rider, CBR Class B rate rider (if applicable), as well as customer specific GA and CBR charges for transition customers (if applicable). | D35: 6 | E35: This tab is generated when the utility selects yes to questions 5 or 6 in tab 1, indicating they had Class A customers during the period that the GA or CBR balance accumulated.
D37: 7 | E37: Under #2a, indicate whether the utility had any customers that transitioned between Class A and B during the period the Account 1589 GA balance accumulated. If yes, tab 6.1a will be generated.
E39: Under #2b, indicate whether the utility had any customers that transitioned between Class A and B during the period the Account 1580, sub-account CBR Class B balance accumulated. If yes, tab 6.2a will be generated.
D41: 8 | E41: Under #3a, enter the number of transition customers the utility had during the period the Account 1589 GA or Account 1580 CBR B balances accumulated. A table will be generated based on the number of customers. Complete the table accordingly for each transition customer identified (i.e. kWh/kW for half year periods, and the customer class during the half year). This data will automatically be used in the GA balance and CBR Class B balance allocation to transition customers in tabs 6.1a and 6.2a respectively. This data will also be used in the calculation of billing determinants for GA and CBR Class B balances, as applicable. Note that each transition customer identified in tab 6, table 3a will be assigned a customer number and the number will correspond to the same transition customer populated in tabs 6.1a and 6.2a. Also note that the transition customers identified for the GA may be different than those for CBR Class B. This would depend on the period in which the GA and CBR Class B balances accumulated.
D43: 9 | E43: Under #3b, enter the number of rate classes in which there were full year Class A customers during the period the Account 1589 GA balance or Account 1580 CBR Class B balance accumulated. A table will be generated based on the number of rate classes. Complete the table accordingly for each rate class identified (i.e. total Class A consumption in the rate class identified for each year). This data will be used in the calculation of billing determinants for GA and CBR Class B, as applicable.
A45: 6.1a - GA Allocation | B45: This tab allocates the GA balance to each transition customer for the period in which these customers were Class B customers and contributed to the GA balance (i.e. former Class B customers but are now Class A customers and former Class A customers who are now Class B customers). | D45: 10 | E45: This tab is generated when the utility indicates that they had transition customers in tab 6, #2a during the period the Account 1589 GA balance accumulated.
E47: In row 20, enter the Non-RPP consumption less WMP consumption.
E49: The rest of the information in this tab will be auto-populated and will calculate the customer specific allocation of the GA balance to transition customers in the bottom table. All transition customers who are allocated a specific GA amount are not to be charged the general Non-RPP Class B GA rate rider as calculated in tab 6.1.
A51: 6.1 - GA | B51: This tab calculates the GA rate rider to be applied to all non-RPP Class B customers (except for the transition customers allocated a customer specific balance in tab 6.1a). | D51: 11 | E51: Enter the proposed rate rider recovery period if different than the default 12 month period. The rest of the information in the tab is auto-populated and the GA rate riders are calculated accordingly based on whether there were any transition customers during the period that the GA balance accumulated.
A53: 6.2a - CBR_B Allocation | B53: This tab allocates the CBR Class B balance to each transition customer for the period in which these customers were Class B customers and contributed to the CBR Class B balance (i.e. former Class B customers but are now Class A customers and former Class A customers who are now Class B). | D53: 12 | E53: This tab is generated when the utility indicates that they had transition customers in tab 6, #2b during the period where the CBR Class B balance accumulated.
E55: In row 19, enter the total Class B consumption less WMP consumption.
E57: The rest of the information in this tab will be auto-populated and will calculate the customer specific allocation of the CBR Class B balance to transition customers in the bottom table. All transition customers who are allocated a specific CBR Class B amount are not to be charged the general CBR Class B rate rider.
A59: 6.2 - CBR | B59: This tab calculates the CBR Class B rate rider if there were Class A customers at any point during the period that the CBR Class B balance accumulated. | D59: 13 | E59: This tab is generated when the response to question 6 in tab 1 is "yes", indicating that they had Class A customers during the period that Account 1580, sub-account CBR Class B balance accumulated.
E61: No input is required in this tab. The information in the tab is auto-populated and the CBR Class B rate riders are calculated accordingly. If a rate rider is not produced, the entire Account 1580 CBR Class B balance, including the amount allocated to transition customers will be transferred to Account 1580 WMS, to be disposed through the general Group 1 DVA rate rider.
A63: 5 - Allocating Def-Var Balances | B63: This tab allocates the Group 1 balances, except GA and CBR Class B (if Class A customers exist). | D63: 14 | E63: Review the allocated balances to ensure the allocation is appropriate. Note that the final allocation for Account 1580, sub-account CBR Class B is calculated after the completion of tabs 6 to 6.2a.
A65: 7 - Calculation of Def-Var RR | B65: This tab calculates the Group 1 rate riders, except for GA and CBR Class B (if Class A customers exist) | D65: 15 | E65: Enter the proposed rate rider recovery period if different than the default 12 month period. The rest of the information in the tab is auto-populated and the rate riders are calculated accordingly .

Sheet 1. Information Sheet
U1: a
C2: FALSE
C3: FALSE
M12: Version | N12: 1
E14: Utility Name | F14: E.L.K. Energy Inc.
E16: Service Territory
E18: Assigned EB Number | F18: EB-2022-0023
E20: Name of Contact and Title | F20: Cheryl Tratechaud CFO/Director of Stakeholder Relations
E22: Phone Number | F22: 519-776-5291
E24: Email Address | F24: ctratechaud@elkenergy.com
E26: We are applying for rates effective | F26: 2023-05-01
E28: Rate-Setting Method | F28: Price Cap IR
A30: 1. Select the last Cost of Service rebasing year. | F30: 2022
A31: To determine the first year the continuity schedules in tab 3 will be generated for input, answer the following questions: For all the the responses below, when selecting a year, select the year relating to the account balance. For example, if the 2020 balances that were reviewed in the 2022 rate application were to be selected, select 2020.
A32: 2. For Accounts 1588 and 1589, please indicate the year of the account balances that the accounts were last disposed on a final basis for information purposes. | F32: 2015
A34: Determine whether scenario a or b below applies, then select the appropriate year. a) If the account balances were last approved on a final basis, select the year of the year-end balances that were last approved for disposition on a final basis. | F34: 2016
A35: b) If the account balances were last approved on an interim basis, and
A36: i) there are no changes to the previously approved interim balances, select the year of the year-end balances that were last approved for diposition on an interim basis. ii) there are changes to the previously approved interim balances, select the year of the year-end balances that were last approved for disposition on a final basis.
A39: 3. For the remaining Group 1 DVAs, please indicate the year of the account balances that were last disposed on a final basis | F39: 2020
A41: Determine whether scenario a or b below applies, then select the appropriate year.
A42: a) If the account balances were last approved on a final basis, select the year of the year-end balances that the balance was were last approved on a final basis. | F42: 2020
A43: b) If the accounts were last approved on an interim basis, and
A44: i) there are no changes to the previously approved interim balances, select the year of the year-end balances that were last approved for diposition on an interim basis.
A45: ii) If there are changes to the previously approved interim balances, select the year of the year-end balances that were last approved for disposition on a final basis.
A47: 4. Select the earliest vintage year in which there is a balance in Account 1595. | F47: 2018
A48: (e.g. If 2016 is the earliest vintage year in which there is a balance in a 1595 sub-account, select 2016.)
A49: 5. Did you have any Class A customers at any point during the period that the Account 1589 balance accumulated (i.e. from the year the balance selected in #2 above to the year requested for disposition)? | F49: Yes
A51: 6. Did you have any Class A customers at any point during the period where the balance in Account 1580, Sub-account CBR Class B accumulated (i.e. from the year selected in #3 above to the year requested for disposition)? | F51: Yes
A53: ="7. Retail Transmission Service Rates: " & LDCNAME1 & " is:" -> 7. Retail Transmission Service Rates: E.L.K. Energy Inc. is: | F53: Fully Embedded | I53: =IF(F53="Partially Embedded","Within","") ->  | S53: =IF(F53="Partially Embedded","Distribution System(s)","") -> 
J54: =IF(F53="Partially Embedded","(If necessary, enter all host-distributors' names in the above green shaded cell.)","") -> 
A55: 8. Have you transitioned to fully fixed rates? | F55: Yes
B63: Legend
C65: Pale green cells represent input cells.
C67: Pale blue cells represent drop-down lists. The applicant should select the appropriate item from the drop-down list.
C69: Red cells represent flags to identify either non-matching values or incorrect user selections.
C71: Pale grey cells represent auto-populated RRR data.
C73: White cells contain fixed values, automatically generated values or formulae.

Sheet Sheet1 (hidden)
A1: 1. Information Sheet
A2: Sheet1 | B2: X
A3: 2. Current Tariff Schedule | B3: X | C3: X
A4: 2016 List | B4: X
A5: Instructions for Tabs 3 to 7
A6: 3. Continuity Schedule | B6: X | C6: X
A7: 4. Billing Det. for Def-Var | B7: X | C7: X
A8: 5. Allocating Def-Var Balances | B8: X | C8: X
A9: 6. Class A Consumption Data | B9: X
A10: 6.1 GA | B10: X | C10: X
A11: 6.1a GA Allocation | B11: X
A12: 6.2 CBR B | B12: X
A13: 6.2a CBR B_Allocation | B13: X
A14: 7. Calculation of Def-Var RR | B14: X | C14: X
A15: 8. STS - Tax Change | B15: X | C15: X
A16: 9. Shared Tax - Rate Rider | B16: X | C16: X
A17: 10. RTSR Current Rates | B17: X | C17: X
A18: 11. RTSR - UTRs & Sub-Tx | B18: X | C18: X
A19: 12. RTSR - Historical Wholesale | B19: X | C19: X
A20: 13. RTSR - Current Wholesale | B20: X | C20: X
A21: 14. RTSR - Forecast Wholesale | B21: X | C21: X
A22: 15. RTSR Rates to Forecast | B22: X | C22: X
A23: 16. Rev2Cost_GDPIPI | B23: X | C23: X
A24: 17. Regulatory Charges | B24: X | C24: X
A25: 18. Additional Rates | B25: X | C25: X
A26: 19. Final Tariff Schedule | B26: X | C26: X
A27: 20. Bill Impacts | B27: X | C27: X
A28: 20. HIDDEN | B28: X
A29: 20. Bill Impacts hidden | B29: X
A30: 2.1.7 Filing | B30: X
A31: 2 1 5 TotalConsumptionData_Dist | B31: X
A32: 212_Total_Connection_RollUp | B32: X
A33: 2016 Database | B33: X
A34: lists | B34: X
A35: Sheet2 | B35: X

Sheet 2. Current Tariff Schedule
AZ1: FALSE
BC2: Below is your 2022 OEB-approved Tariff of Rates and Charges. Please review to ensure accuracy. OEB Staff may have made changes to the rate class description and/or rate description to ensure consistency across all LDCs.
B3: Macro has been activated
BC5: If you have identified any discrepancies between this sheet and your approved tariff of rates and charges, please contact the OEB.
BC7: Have you confirmed the accuracy of the tariff sheet below?
BC9: Yes
B12: E.L.K. Energy Inc. | F12: X | G12: E.L.K. Energy Inc._Start | H12: E.L.K. Energy Inc. | J12: 8 | AA12: E.L.K. Energy Inc.
B13: TARIFF OF RATES AND CHARGES | AA13: TARIFF OF RATES AND CHARGES
B14: Effective Date May 1, 2022 ; Implementation Date July 1, 2022 | O14: 44682 | P14: 44743 | AA14: Effective Date May 1, 2022 ; Implementation Date July 1, 2022
B15: This schedule supersedes and replaces all previously | AA15: This schedule supersedes and replaces all previously
B16: approved schedules of Rates, Charges and Loss Factors | AA16: approved schedules of Rates, Charges and Loss Factors
B17: EB-2021-0016 | H17: EB-2021-0016 | AA17: EB-2021-0016 | AS17: X
B18: RESIDENTIAL SERVICE CLASSIFICATION | H18: 1_RESIDENTIAL SERVICE CLASSIFICATION | AA18: RESIDENTIAL SERVICE CLASSIFICATION
B19: This classification refers to a service which is less than 50 kW supplied to a single family dwelling unit that is for domestic or household purposes, including seasonal occupancy. At E.L.K.’s discretion, residential rates may be applied to apartment buildings with 6 or less units by simple application of the residential rate or by blocking the residential rate by the number of units. Further servicing details are available in the distributor’s Conditions of Service. | H19: 1_RESIDENTIAL SERVICE CLASSIFICATION | AA19: This classification refers to a service which is less than 50 kW supplied to a single family dwelling unit that is for domestic or household purposes, including seasonal occupancy. At E.L.K.’s discretion, residential rates may be applied to apartment buildings with 6 or less units by simple application of the residential rate or by blocking the residential rate by the number of units. Further servicing details are available in the distributor’s Conditions of Service.
B21: APPLICATION | H21: 1_APPLICATION | AA21: APPLICATION
B23: The application of these rates and charges shall be in accordance with the Licence of the Distributor and any Code or Order of the Ontario Energy Board, and amendments thereto as approved by the Ontario Energy Board, which may be applicable to the administration of this schedule. | H23: 1_RESIDENTIAL SERVICE CLASSIFICATION | AA23: The application of these rates and charges shall be in accordance with the Licence of the Distributor and any Code or Order of the Ontario Energy Board, and amendments thereto as approved by the Ontario Energy Board, which may be applicable to the administration of this schedule.
B25: No rates and charges for the distribution of electricity and charges to meet the costs of any work or service done or furnished for the purpose of the distribution of electricity shall be made except as permitted by this schedule, unless required by the Distributor’s Licence or a Code or Order of the Ontario Energy Board, and amendments thereto as approved by the Ontario Energy Board, or as specified herein. | H25: 1_RESIDENTIAL SERVICE CLASSIFICATION | AA25: No rates and charges for the distribution of electricity and charges to meet the costs of any work or service done or furnished for the purpose of the distribution of electricity shall be made except as permitted by this schedule, unless required by the Distributor’s Licence or a Code or Order of the Ontario Energy Board, and amendments thereto as approved by the Ontario Energy Board, or as specified herein.
B27: Unless specifically noted, this schedule does not contain any charges for the electricity commodity, be it under the Regulated Price Plan, a contract with a retailer or the wholesale market price, as applicable. In addition, the charges in the MONTHLY RATES AND CHARGES - Regulatory Component of this schedule do not apply to a customer that is an embedded wholesale market participant. | H27: 1_RESIDENTIAL SERVICE CLASSIFICATION | AA27: Unless specifically noted, this schedule does not contain any charges for the electricity commodity, be it under the Regulated Price Plan, a contract with a retailer or the wholesale market price, as applicable. In addition, the charges in the MONTHLY RATES AND CHARGES - Regulatory Component of this schedule do not apply to a customer that is an embedded wholesale market participant.
B29: It should be noted that this schedule does not list any charges, assessments, or credits that are required by law to be invoiced by a distributor and that are not subject to Ontario Energy Board approval, such as the Global Adjustment and the HST. | H29: 1_RESIDENTIAL SERVICE CLASSIFICATION | AA29: It should be noted that this schedule does not list any charges, assessments, or credits that are required by law to be invoiced by a distributor and that are not subject to Ontario Energy Board approval, such as the Global Adjustment and the HST.
B31: MONTHLY RATES AND CHARGES - Delivery Component | H31: 1_MRC_Del | AA31: MONTHLY RATES AND CHARGES - Delivery Component
B33: Service Charge | D33: $ | E33: 18.16 | H33: 1_RESIDENTIAL SERVICE CLASSIFICATION | I33: A | M33: 1_RESIDENTIAL SERVICE CLASSIFICATION_MSC | Z33: Service Charge
B34: Rate Rider for Recovery of Foregone Revenue (2022) - effective until June 30, 2023 | D34: $ | E34: -0.16 | H34: 1_RESIDENTIAL SERVICE CLASSIFICATION | I34: A | M34: 1_RESIDENTIAL SERVICE CLASSIFICATION_FX_RR_1 | Q34: 45107 | Z34: Rate Rider for Recovery of Foregone Revenue (2022) - effective until June 30, 2023
B35: Rate Rider for Disposition of Accounts 1575 and 1576 (2022) - effective until June 30, 2023 | D35: $ | E35: 0.06 | H35: 1_RESIDENTIAL SERVICE CLASSIFICATION | I35: A | M35: 1_RESIDENTIAL SERVICE CLASSIFICATION_DEFVAR_ALL | Q35: 45107 | Z35: Rate Rider for Disposition of Accounts 1575 and 1576 (2022) - effective until June 30, 2023
B36: Rate Rider for Disposition of Deferral/Variance Accounts (2022) - effective until June 30, 2023 | D36: $ | E36: -0.89 | H36: 1_RESIDENTIAL SERVICE CLASSIFICATION | I36: B | M36: 1_RESIDENTIAL SERVICE CLASSIFICATION_DEFVAR_ALL | Q36: 45107 | Z36: Rate Rider for Disposition of Deferral/Variance Accounts (2022) - effective until June 30, 2023
B37: Smart Metering Entity Charge - approved on an interim basis | D37: $ | E37: 0.43 | H37: 1_RESIDENTIAL SERVICE CLASSIFICATION | I37: B | M37: 1_RESIDENTIAL SERVICE CLASSIFICATION_SME | Z37: Smart Metering Entity Charge - approved on an interim basis
B38: Low Voltage Service Rate | D38: $/kWh | E38: 0.0035 | H38: 1_RESIDENTIAL SERVICE CLASSIFICATION | I38: B | M38: 1_RESIDENTIAL SERVICE CLASSIFICATION_LV | Z38: Low Voltage Service Rate
B39: Rate Rider for Disposition of Deferral/Variance Accounts (2022) - effective until June 30, 2023 | D39: $/kWh | E39: -0.0018 | H39: 1_RESIDENTIAL SERVICE CLASSIFICATION | I39: B | M39: 1_RESIDENTIAL SERVICE CLASSIFICATION_DEFVAR_ALL | Q39: 45107 | Z39: Rate Rider for Disposition of Deferral/Variance Accounts (2022) - effective until June 30, 2023
B40: Rate Rider for Disposition of Capacity Based Recovery Account (2022) - effective until June 30, 2023 - Applicable only for Class B Customers | D40: $/kWh | E40: -0.0001 | H40: 1_RESIDENTIAL SERVICE CLASSIFICATION | I40: B | M40: 1_RESIDENTIAL SERVICE CLASSIFICATION_CBR | Q40: 45107 | Z40: Rate Rider for Disposition of Capacity Based Recovery Account (2022) - effective until June 30, 2023 - Applicable only for Class B Customers
B41: Rate Rider for Global Adjustment (2022) - effective until June 30, 2023 - Applicable only for non-RPP customers | D41: $/kWh | E41: -0.0053 | H41: 1_RESIDENTIAL SERVICE CLASSIFICATION | I41: B | M41: 1_RESIDENTIAL SERVICE CLASSIFICATION_GA_kw | Q41: 45107 | Z41: Rate Rider for Global Adjustment (2022) - effective until June 30, 2023 - Applicable only for non-RPP customers
B42: Rate Rider for Lost Revenue Adjustment Mechanism (2022) - effective until June 30, 2023 | D42: $/kWh | E42: 0.0006 | H42: 1_RESIDENTIAL SERVICE CLASSIFICATION | I42: A | M42: 1_RESIDENTIAL SERVICE CLASSIFICATION_LRAM | Q42: 45107 | Z42: Rate Rider for Lost Revenue Adjustment Mechanism (2022) - effective until June 30, 2023
B43: Retail Transmission Rate - Network Service Rate | D43: $/kWh | E43: 0.0101 | H43: 1_RESIDENTIAL SERVICE CLASSIFICATION | I43: C | M43: 1_RESIDENTIAL SERVICE CLASSIFICATION_Retail Transmission Rate - Network Service Rate | Z43: Retail Transmission Rate - Network Service Rate
B44: Retail Transmission Rate - Line and Transformation Connection Service Rate | D44: $/kWh | E44: 0.0066 | H44: 1_RESIDENTIAL SERVICE CLASSIFICATION | I44: C | M44: 1_RESIDENTIAL SERVICE CLASSIFICATION_Retail Transmission Rate - Line and Transformation Connection Service Rate | Z44: Retail Transmission Rate - Line and Transformation Connection Service Rate
B46: MONTHLY RATES AND CHARGES - Regulatory Component | H46: 1_MRC_Reg | Z46: MONTHLY RATES AND CHARGES - Regulatory Component
B48: Wholesale Market Service Rate (WMS) - not including CBR | D48: $/kWh | E48: 0.003 | H48: 1_RESIDENTIAL SERVICE CLASSIFICATION | I48: T | M48: 1_RESIDENTIAL SERVICE CLASSIFICATION_WMSR | Z48: Wholesale Market Service Rate (WMS) - not including CBR
B49: Capacity Based Recovery (CBR) - Applicable for Class B Customers | D49: $/kWh | E49: 0.0004 | H49: 1_RESIDENTIAL SERVICE CLASSIFICATION | I49: T | M49: 1_RESIDENTIAL SERVICE CLASSIFICATION_WMSR | Z49: Capacity Based Recovery (CBR) - Applicable for Class B Customers
B50: Rural or Remote Electricity Rate Protection Charge (RRRP) | D50: $/kWh | E50: 0.0005 | H50: 1_RESIDENTIAL SERVICE CLASSIFICATION | I50: T | M50: 1_RESIDENTIAL SERVICE CLASSIFICATION_RRRP | Z50: Rural or Remote Electricity Rate Protection Charge (RRRP)
B51: Standard Supply Service - Administrative Charge (if applicable) | D51: $ | E51: 0.25 | H51: 1_RESIDENTIAL SERVICE CLASSIFICATION | I51: T | M51: 1_RESIDENTIAL SERVICE CLASSIFICATION_SSS | Z51: Standard Supply Service - Administrative Charge (if applicable) | AS51: X
B52: GENERAL SERVICE LESS THAN 50 KW SERVICE CLASSIFICATION | H52: 2_GENERAL SERVICE LESS THAN 50 KW SERVICE CLASSIFICATION | AA52: GENERAL SERVICE LESS THAN 50 KW SERVICE CLASSIFICATION
B53: This classification refers to premises other than those designated as residential and do not exceed 50 kW in any month of the year. This includes multi-unit residential establishments such as apartment buildings supplied through one service (bulk-metered). Further servicing details are available in the distributor’s Conditions of Service. | H53: 2_GENERAL SERVICE LESS THAN 50 KW SERVICE CLASSIFICATION | AA53: This classification refers to premises other than those designated as residential and do not exceed 50 kW in any month of the year. This includes multi-unit residential establishments such as apartment buildings supplied through one service (bulk-metered). Further servicing details are available in the distributor’s Conditions of Service.
B55: APPLICATION | H55: 2_APPLICATION | AA55: APPLICATION
B57: The application of these rates and charges shall be in accordance with the Licence of the Distributor and any Code or Order of the Ontario Energy Board, and amendments thereto as approved by the Ontario Energy Board, which may be applicable to the administration of this schedule. | H57: 2_GENERAL SERVICE LESS THAN 50 KW SERVICE CLASSIFICATION | AA57: The application of these rates and charges shall be in accordance with the Licence of the Distributor and any Code or Order of the Ontario Energy Board, and amendments thereto as approved by the Ontario Energy Board, which may be applicable to the administration of this schedule.
B59: No rates and charges for the distribution of electricity and charges to meet the costs of any work or service done or furnished for the purpose of the distribution of electricity shall be made except as permitted by this schedule, unless required by the Distributor’s Licence or a Code or Order of the Ontario Energy Board, and amendments thereto as approved by the Ontario Energy Board, or as specified herein. | H59: 2_GENERAL SERVICE LESS THAN 50 KW SERVICE CLASSIFICATION | AA59: No rates and charges for the distribution of electricity and charges to meet the costs of any work or service done or furnished for the purpose of the distribution of electricity shall be made except as permitted by this schedule, unless required by the Distributor’s Licence or a Code or Order of the Ontario Energy Board, and amendments thereto as approved by the Ontario Energy Board, or as specified herein.
B61: Unless specifically noted, this schedule does not contain any charges for the electricity commodity, be it under the Regulated Price Plan, a contract with a retailer or the wholesale market price, as applicable. In addition, the charges in the MONTHLY RATES AND CHARGES - Regulatory Component of this schedule do not apply to a customer that is an embedded wholesale market participant. | H61: 2_GENERAL SERVICE LESS THAN 50 KW SERVICE CLASSIFICATION | AA61: Unless specifically noted, this schedule does not contain any charges for the electricity commodity, be it under the Regulated Price Plan, a contract with a retailer or the wholesale market price, as applicable. In addition, the charges in the MONTHLY RATES AND CHARGES - Regulatory Component of this schedule do not apply to a customer that is an embedded wholesale market participant.
B63: It should be noted that this schedule does not list any charges, assessments, or credits that are required by law to be invoiced by a distributor and that are not subject to Ontario Energy Board approval, such as the Global Adjustment and the HST. | H63: 2_GENERAL SERVICE LESS THAN 50 KW SERVICE CLASSIFICATION | AA63: It should be noted that this schedule does not list any charges, assessments, or credits that are required by law to be invoiced by a distributor and that are not subject to Ontario Energy Board approval, such as the Global Adjustment and the HST.
B65: MONTHLY RATES AND CHARGES - Delivery Component | H65: 2_MRC_Del | AA65: MONTHLY RATES AND CHARGES - Delivery Component
B67: Service Charge | D67: $ | E67: 17.77 | H67: 2_GENERAL SERVICE LESS THAN 50 KW SERVICE CLASSIFICATION | I67: A | M67: 2_GENERAL SERVICE LESS THAN 50 KW SERVICE CLASSIFICATION_MSC | Z67: Service Charge
B68: Rate Rider for Recovery of Foregone Revenue (2022) - effective until June 30, 2023 | D68: $ | E68: 0.22 | H68: 2_GENERAL SERVICE LESS THAN 50 KW SERVICE CLASSIFICATION | I68: A | M68: 2_GENERAL SERVICE LESS THAN 50 KW SERVICE CLASSIFICATION_FX_RR_4 | Q68: 45107 | Z68: Rate Rider for Recovery of Foregone Revenue (2022) - effective until June 30, 2023
B69: Smart Metering Entity Charge - approved on an interim basis | D69: $ | E69: 0.43 | H69: 2_GENERAL SERVICE LESS THAN 50 KW SERVICE CLASSIFICATION | I69: B | M69: 2_GENERAL SERVICE LESS THAN 50 KW SERVICE CLASSIFICATION_SME | Z69: Smart Metering Entity Charge - approved on an interim basis
B70: Distribution Volumetric Rate | D70: $/kWh | E70: 0.0061 | H70: 2_GENERAL SERVICE LESS THAN 50 KW SERVICE CLASSIFICATION | I70: A | M70: 2_GENERAL SERVICE LESS THAN 50 KW SERVICE CLASSIFICATION_DVC | Z70: Distribution Volumetric Rate
B71: Low Voltage Service Rate | D71: $/kWh | E71: 0.0031 | H71: 2_GENERAL SERVICE LESS THAN 50 KW SERVICE CLASSIFICATION | I71: B | M71: 2_GENERAL SERVICE LESS THAN 50 KW SERVICE CLASSIFICATION_LV | Z71: Low Voltage Service Rate
B72: Rate Rider for Disposition of Deferral/Variance Accounts (2022) - effective until June 30, 2023 | D72: $/kWh | E72: -0.0023 | H72: 2_GENERAL SERVICE LESS THAN 50 KW SERVICE CLASSIFICATION | I72: B | M72: 2_GENERAL SERVICE LESS THAN 50 KW SERVICE CLASSIFICATION_DEFVAR_ALL | Q72: 45107 | Z72: Rate Rider for Disposition of Deferral/Variance Accounts (2022) - effective until June 30, 2023
B73: Rate Rider for Disposition of Capacity Based Recovery Account (2022) - effective until June 30, 2023 - Applicable only for Class B Customers | D73: $/kWh | E73: -0.0001 | H73: 2_GENERAL SERVICE LESS THAN 50 KW SERVICE CLASSIFICATION | I73: B | M73: 2_GENERAL SERVICE LESS THAN 50 KW SERVICE CLASSIFICATION_CBR | Q73: 45107 | Z73: Rate Rider for Disposition of Capacity Based Recovery Account (2022) - effective until June 30, 2023 - Applicable only for Class B Customers
B74: Rate Rider for Disposition of Accounts 1575 and 1576 (2022) - effective until June 30, 2023 | D74: $/kWh | E74: 0.0001 | H74: 2_GENERAL SERVICE LESS THAN 50 KW SERVICE CLASSIFICATION | I74: A | M74: 2_GENERAL SERVICE LESS THAN 50 KW SERVICE CLASSIFICATION_DEFVAR_ALL | Q74: 45107 | Z74: Rate Rider for Disposition of Accounts 1575 and 1576 (2022) - effective until June 30, 2023
B75: Rate Rider for Recovery of Foregone Revenue (2022) - effective until June 30, 2023 | D75: $/kWh | E75: 0.0001 | H75: 2_GENERAL SERVICE LESS THAN 50 KW SERVICE CLASSIFICATION | I75: A | M75: 2_GENERAL SERVICE LESS THAN 50 KW SERVICE CLASSIFICATION_VR_RR_8 | Q75: 45107 | Z75: Rate Rider for Recovery of Foregone Revenue (2022) - effective until June 30, 2023
B76: Rate Rider for Global Adjustment (2022) - effective until June 30, 2023 - Applicable only for non-RPP customers | D76: $/kWh | E76: -0.0053 | H76: 2_GENERAL SERVICE LESS THAN 50 KW SERVICE CLASSIFICATION | I76: B | M76: 2_GENERAL SERVICE LESS THAN 50 KW SERVICE CLASSIFICATION_GA_kw | Q76: 45107 | Z76: Rate Rider for Global Adjustment (2022) - effective until June 30, 2023 - Applicable only for non-RPP customers
B77: Rate Rider for Lost Revenue Adjustment Mechanism (2022) - effective until June 30, 2023 | D77: $/kWh | E77: 0.0013 | H77: 2_GENERAL SERVICE LESS THAN 50 KW SERVICE CLASSIFICATION | I77: A | M77: 2_GENERAL SERVICE LESS THAN 50 KW SERVICE CLASSIFICATION_LRAM | Q77: 45107 | Z77: Rate Rider for Lost Revenue Adjustment Mechanism (2022) - effective until June 30, 2023
B78: Retail Transmission Rate - Network Service Rate | D78: $/kWh | E78: 0.0088 | H78: 2_GENERAL SERVICE LESS THAN 50 KW SERVICE CLASSIFICATION | I78: C | M78: 2_GENERAL SERVICE LESS THAN 50 KW SERVICE CLASSIFICATION_Retail Transmission Rate - Network Service Rate | Z78: Retail Transmission Rate - Network Service Rate
B79: Retail Transmission Rate - Line and Transformation Connection Service Rate | D79: $/kWh | E79: 0.0058 | H79: 2_GENERAL SERVICE LESS THAN 50 KW SERVICE CLASSIFICATION | I79: C | M79: 2_GENERAL SERVICE LESS THAN 50 KW SERVICE CLASSIFICATION_Retail Transmission Rate - Line and Transformation Connection Service Rate | Z79: Retail Transmission Rate - Line and Transformation Connection Service Rate
B81: MONTHLY RATES AND CHARGES - Regulatory Component | H81: 2_MRC_Reg | Z81: MONTHLY RATES AND CHARGES - Regulatory Component
B83: Wholesale Market Service Rate (WMS) - not including CBR | D83: $/kWh | E83: 0.003 | H83: 2_GENERAL SERVICE LESS THAN 50 KW SERVICE CLASSIFICATION | I83: T | M83: 2_GENERAL SERVICE LESS THAN 50 KW SERVICE CLASSIFICATION_WMSR | Z83: Wholesale Market Service Rate (WMS) - not including CBR
B84: Capacity Based Recovery (CBR) - Applicable for Class B Customers | D84: $/kWh | E84: 0.0004 | H84: 2_GENERAL SERVICE LESS THAN 50 KW SERVICE CLASSIFICATION | I84: T | M84: 2_GENERAL SERVICE LESS THAN 50 KW SERVICE CLASSIFICATION_WMSR | Z84: Capacity Based Recovery (CBR) - Applicable for Class B Customers
B85: Rural or Remote Electricity Rate Protection Charge (RRRP) | D85: $/kWh | E85: 0.0005 | H85: 2_GENERAL SERVICE LESS THAN 50 KW SERVICE CLASSIFICATION | I85: T | M85: 2_GENERAL SERVICE LESS THAN 50 KW SERVICE CLASSIFICATION_RRRP | Z85: Rural or Remote Electricity Rate Protection Charge (RRRP)
B86: Standard Supply Service - Administrative Charge (if applicable) | D86: $ | E86: 0.25 | H86: 2_GENERAL SERVICE LESS THAN 50 KW SERVICE CLASSIFICATION | I86: T | M86: 2_GENERAL SERVICE LESS THAN 50 KW SERVICE CLASSIFICATION_SSS | Z86: Standard Supply Service - Administrative Charge (if applicable) | AS86: X
B87: GENERAL SERVICE 50 TO 4,999 KW SERVICE CLASSIFICATION | H87: 3_GENERAL SERVICE 50 to 4,999 kW SERVICE CLASSIFICATION | AA87: GENERAL SERVICE 50 TO 4,999 KW SERVICE CLASSIFICATION
B88: This classification applies to a non residential account whose average monthly maximum demand used for billing purposes is equal to or greater than, or is forecast to be equal to or greater than, 50 kW but less than 5,000 kW. Further servicing details are available in the distributor’s Conditions of Service. | H88: 3_GENERAL SERVICE 50 to 4,999 kW SERVICE CLASSIFICATION | AA88: This classification applies to a non residential account whose average monthly maximum demand used for billing purposes is equal to or greater than, or is forecast to be equal to or greater than, 50 kW but less than 5,000 kW. Further servicing details are available in the distributor’s Conditions of Service.
B90: APPLICATION | H90: 3_APPLICATION | AA90: APPLICATION
B92: No rates and charges for the distribution of electricity and charges to meet the costs of any work or service done or furnished for the purpose of the distribution of electricity shall be made except as permitted by this schedule, unless required by the Distributor’s Licence or a Code or Order of the Ontario Energy Board, and amendments thereto as approved by the Ontario Energy Board, or as specified herein. | H92: 3_GENERAL SERVICE 50 to 4,999 kW SERVICE CLASSIFICATION | AA92: No rates and charges for the distribution of electricity and charges to meet the costs of any work or service done or furnished for the purpose of the distribution of electricity shall be made except as permitted by this schedule, unless required by the Distributor’s Licence or a Code or Order of the Ontario Energy Board, and amendments thereto as approved by the Ontario Energy Board, or as specified herein.
B94: Unless specifically noted, this schedule does not contain any charges for the electricity commodity, be it under the Regulated Price Plan, a contract with a retailer or the wholesale market price, as applicable. In addition, the charges in the MONTHLY RATES AND CHARGES - Regulatory Component of this schedule do not apply to a customer that is an embedded wholesale market participant. | H94: 3_GENERAL SERVICE 50 to 4,999 kW SERVICE CLASSIFICATION | AA94: Unless specifically noted, this schedule does not contain any charges for the electricity commodity, be it under the Regulated Price Plan, a contract with a retailer or the wholesale market price, as applicable. In addition, the charges in the MONTHLY RATES AND CHARGES - Regulatory Component of this schedule do not apply to a customer that is an embedded wholesale market participant.
B96: If included in the following listing of monthly rates and charges, the rate rider for the disposition of WMS - Sub-account CBR Class B is not applicable to wholesale market participants (WMP), customers that transitioned between Class A and Class B during the variance account accumulation period, or to customers that were in Class A for the entire period. Customers who transitioned are to be charged or refunded their share of the variance disposed through customer specific billing adjustments. This rate rider is to be consistently applied for the entire period to the sunset date of the rate rider. In addition, this rate rider is applicable to all new Class B customers. If included in the following listing of monthly rates and charges, the rate rider for the disposition of Global Adjustment is only applicable to non-RPP Class B customers. It is not applicable to wholesale market participants (WMP), customers that transitioned between Class A and Class B during the variance account accumulation period, or to customers that were in Class A for the entire period. Customers who transitioned are to be charged or refunded their share of the variance disposed through customer specific billing adjustments. This rate rider is to be consistently applied for the entire period to the sunset date of the rate rider. In addition, this rate rider is applicable to all new non-RPP Class B customers. | H96: 3_GENERAL SERVICE 50 to 4,999 kW SERVICE CLASSIFICATION | AA96: If included in the following listing of monthly rates and charges, the rate rider for the disposition of WMS - Sub-account CBR Class B is not applicable to wholesale market participants (WMP), customers that transitioned between Class A and Class B during the variance account accumulation period, or to customers that were in Class A for the entire period. Customers who transitioned are to be charged or refunded their share of the variance disposed through customer specific billing adjustments. This rate rider is to be consistently applied for the entire period to the sunset date of the rate rider. In addition, this rate rider is applicable to all new Class B customers. If included in the following listing of monthly rates and charges, the rate rider for the disposition of Global Adjustment is only applicable to non-RPP Class B customers. It is not applicable to wholesale market participants (WMP), customers that transitioned between Class A and Class B during the variance account accumulation period, or to customers that were in Class A for the entire period. Customers who transitioned are to be charged or refunded their share of the variance disposed through customer specific billing adjustments. This rate rider is to be consistently applied for the entire period to the sunset date of the rate rider. In addition, this rate rider is applicable to all new non-RPP Class B customers.
B98: It should be noted that this schedule does not list any charges, assessments, or credits that are required by law to be invoiced by a distributor and that are not subject to Ontario Energy Board approval, such as the Global Adjustment and the HST. | H98: 3_GENERAL SERVICE 50 to 4,999 kW SERVICE CLASSIFICATION | AA98: It should be noted that this schedule does not list any charges, assessments, or credits that are required by law to be invoiced by a distributor and that are not subject to Ontario Energy Board approval, such as the Global Adjustment and the HST.
B100: MONTHLY RATES AND CHARGES - Delivery Component | H100: 3_MRC_Del | AA100: MONTHLY RATES AND CHARGES - Delivery Component
B102: Service Charge | D102: $ | E102: 179.82 | H102: 3_GENERAL SERVICE 50 to 4,999 kW SERVICE CLASSIFICATION | I102: A | M102: 3_GENERAL SERVICE 50 to 4,999 kW SERVICE CLASSIFICATION_MSC | Z102: Service Charge
B103: Rate Rider for Recovery of Foregone Revenue (2022) - effective until June 30, 2023 | D103: $ | E103: -2.6 | H103: 3_GENERAL SERVICE 50 to 4,999 kW SERVICE CLASSIFICATION | I103: A | M103: 3_GENERAL SERVICE 50 to 4,999 kW SERVICE CLASSIFICATION_FX_RR_5 | Q103: 45107 | Z103: Rate Rider for Recovery of Foregone Revenue (2022) - effective until June 30, 2023
B104: Distribution Volumetric Rate | D104: $/kW | E104: 1.6095 | H104: 3_GENERAL SERVICE 50 to 4,999 kW SERVICE CLASSIFICATION | I104: A | M104: 3_GENERAL SERVICE 50 to 4,999 kW SERVICE CLASSIFICATION_DVC | Z104: Distribution Volumetric Rate
B105: Low Voltage Service Rate | D105: $/kW | E105: 1.1966 | H105: 3_GENERAL SERVICE 50 to 4,999 kW SERVICE CLASSIFICATION | I105: B | M105: 3_GENERAL SERVICE 50 to 4,999 kW SERVICE CLASSIFICATION_LV | Z105: Low Voltage Service Rate
B106: Rate Rider for Disposition of Deferral/Variance Accounts (2022) - effective until June 30, 2023 | D106: $/kW | E106: -0.664 | H106: 3_GENERAL SERVICE 50 to 4,999 kW SERVICE CLASSIFICATION | I106: B | M106: 3_GENERAL SERVICE 50 to 4,999 kW SERVICE CLASSIFICATION_DEFVAR_ALL | Q106: 45107 | Z106: Rate Rider for Disposition of Deferral/Variance Accounts (2022) - effective until June 30, 2023
B107: Rate Rider for Disposition of Capacity Based Recovery Account (2022) - effective until June 30, 2023 - Applicable only for Class B Customers | D107: $/kW | E107: -0.0329 | H107: 3_GENERAL SERVICE 50 to 4,999 kW SERVICE CLASSIFICATION | I107: B | M107: 3_GENERAL SERVICE 50 to 4,999 kW SERVICE CLASSIFICATION_CBR | Q107: 45107 | Z107: Rate Rider for Disposition of Capacity Based Recovery Account (2022) - effective until June 30, 2023 - Applicable only for Class B Customers
B108: Rate Rider for Disposition of Accounts 1575 and 1576 (2022) - effective until June 30, 2023 | D108: $/kW | E108: 0.0199 | H108: 3_GENERAL SERVICE 50 to 4,999 kW SERVICE CLASSIFICATION | I108: A | M108: 3_GENERAL SERVICE 50 to 4,999 kW SERVICE CLASSIFICATION_DEFVAR_ALL | Q108: 45107 | Z108: Rate Rider for Disposition of Accounts 1575 and 1576 (2022) - effective until June 30, 2023
B109: Rate Rider for Recovery of Foregone Revenue (2022) - effective until June 30, 2023 | D109: $/kWh | E109: -0.0072 | H109: 3_GENERAL SERVICE 50 to 4,999 kW SERVICE CLASSIFICATION | I109: A | M109: 3_GENERAL SERVICE 50 to 4,999 kW SERVICE CLASSIFICATION_VR_RR_14 | Q109: 45107 | Z109: Rate Rider for Recovery of Foregone Revenue (2022) - effective until June 30, 2023
B110: Rate Rider for Global Adjustment (2022) - effective until June 30, 2023 - Applicable only for non-RPP customers | D110: $/kWh | E110: -0.0053 | H110: 3_GENERAL SERVICE 50 to 4,999 kW SERVICE CLASSIFICATION | I110: B | M110: 3_GENERAL SERVICE 50 to 4,999 kW SERVICE CLASSIFICATION_GA_kw | Q110: 45107 | Z110: Rate Rider for Global Adjustment (2022) - effective until June 30, 2023 - Applicable only for non-RPP customers
B111: Rate Rider for Lost Revenue Adjustment Mechanism (2022) - effective until June 30, 2023 | D111: $/kW | E111: 0.1231 | H111: 3_GENERAL SERVICE 50 to 4,999 kW SERVICE CLASSIFICATION | I111: A | M111: 3_GENERAL SERVICE 50 to 4,999 kW SERVICE CLASSIFICATION_LRAM | Q111: 45107 | Z111: Rate Rider for Lost Revenue Adjustment Mechanism (2022) - effective until June 30, 2023
B112: Retail Transmission Rate - Network Service Rate | D112: $/kW | E112: 3.7149 | H112: 3_GENERAL SERVICE 50 to 4,999 kW SERVICE CLASSIFICATION | I112: C | M112: 3_GENERAL SERVICE 50 to 4,999 kW SERVICE CLASSIFICATION_Retail Transmission Rate - Network Service Rate | Z112: Retail Transmission Rate - Network Service Rate
B113: Retail Transmission Rate - Line and Transformation Connection Service Rate | D113: $/kW | E113: 2.3524 | H113: 3_GENERAL SERVICE 50 to 4,999 kW SERVICE CLASSIFICATION | I113: C | M113: 3_GENERAL SERVICE 50 to 4,999 kW SERVICE CLASSIFICATION_Retail Transmission Rate - Line and Transformation Connection Service Rate | Z113: Retail Transmission Rate - Line and Transformation Connection Service Rate
B115: MONTHLY RATES AND CHARGES - Regulatory Component | H115: 3_MRC_Reg | Z115: MONTHLY RATES AND CHARGES - Regulatory Component
B117: Wholesale Market Service Rate (WMS) - not including CBR | D117: $/kWh | E117: 0.003 | H117: 3_GENERAL SERVICE 50 to 4,999 kW SERVICE CLASSIFICATION | I117: T | M117: 3_GENERAL SERVICE 50 to 4,999 kW SERVICE CLASSIFICATION_WMSR | Z117: Wholesale Market Service Rate (WMS) - not including CBR
B118: Capacity Based Recovery (CBR) - Applicable for Class B Customers | D118: $/kWh | E118: 0.0004 | H118: 3_GENERAL SERVICE 50 to 4,999 kW SERVICE CLASSIFICATION | I118: T | M118: 3_GENERAL SERVICE 50 to 4,999 kW SERVICE CLASSIFICATION_WMSR | Z118: Capacity Based Recovery (CBR) - Applicable for Class B Customers
B119: Rural or Remote Electricity Rate Protection Charge (RRRP) | D119: $/kWh | E119: 0.0005 | H119: 3_GENERAL SERVICE 50 to 4,999 kW SERVICE CLASSIFICATION | I119: T | M119: 3_GENERAL SERVICE 50 to 4,999 kW SERVICE CLASSIFICATION_RRRP | Z119: Rural or Remote Electricity Rate Protection Charge (RRRP)
B120: Standard Supply Service - Administrative Charge (if applicable) | D120: $ | E120: 0.25 | H120: 3_GENERAL SERVICE 50 to 4,999 kW SERVICE CLASSIFICATION | I120: T | M120: 3_GENERAL SERVICE 50 to 4,999 kW SERVICE CLASSIFICATION_SSS | Z120: Standard Supply Service - Administrative Charge (if applicable) | AS120: X
B121: UNMETERED SCATTERED LOAD SERVICE CLASSIFICATION | H121: 4_UNMETERED SCATTERED LOAD SERVICE CLASSIFICATION | AA121: UNMETERED SCATTERED LOAD SERVICE CLASSIFICATION
B122: This classification applies to an account whose average monthly maximum demand is less than, or is forecast to be less than, 50kW and the consumption is unmetered. Such connections include cable TV power packs, bus shelters, telephone booths, traffic lights, railway crossings, etc. The level of the consumption will be agreed to by the distributor and the customer, based on detailed manufacturer information/documentation with regard to electrical consumption of the unmetered load or periodic monitoring of actual consumption. E.L.K. is not in the practice of connecting new unmetered scattered load services. Further servicing details are available in the distributor’s Conditions of Service. | H122: 4_UNMETERED SCATTERED LOAD SERVICE CLASSIFICATION | AA122: This classification applies to an account whose average monthly maximum demand is less than, or is forecast to be less than, 50kW and the consumption is unmetered. Such connections include cable TV power packs, bus shelters, telephone booths, traffic lights, railway crossings, etc. The level of the consumption will be agreed to by the distributor and the customer, based on detailed manufacturer information/documentation with regard to electrical consumption of the unmetered load or periodic monitoring of actual consumption. E.L.K. is not in the practice of connecting new unmetered scattered load services. Further servicing details are available in the distributor’s Conditions of Service.
B124: APPLICATION | H124: 4_APPLICATION | AA124: APPLICATION
B126: The application of these rates and charges shall be in accordance with the Licence of the Distributor and any Code or Order of the Ontario Energy Board, and amendments thereto as approved by the Ontario Energy Board, which may be applicable to the administration of this schedule. | H126: 4_UNMETERED SCATTERED LOAD SERVICE CLASSIFICATION | AA126: The application of these rates and charges shall be in accordance with the Licence of the Distributor and any Code or Order of the Ontario Energy Board, and amendments thereto as approved by the Ontario Energy Board, which may be applicable to the administration of this schedule.
B128: No rates and charges for the distribution of electricity and charges to meet the costs of any work or service done or furnished for the purpose of the distribution of electricity shall be made except as permitted by this schedule, unless required by the Distributor’s Licence or a Code or Order of the Ontario Energy Board, and amendments thereto as approved by the Ontario Energy Board, or as specified herein. | H128: 4_UNMETERED SCATTERED LOAD SERVICE CLASSIFICATION | AA128: No rates and charges for the distribution of electricity and charges to meet the costs of any work or service done or furnished for the purpose of the distribution of electricity shall be made except as permitted by this schedule, unless required by the Distributor’s Licence or a Code or Order of the Ontario Energy Board, and amendments thereto as approved by the Ontario Energy Board, or as specified herein.
B130: Unless specifically noted, this schedule does not contain any charges for the electricity commodity, be it under the Regulated Price Plan, a contract with a retailer or the wholesale market price, as applicable. In addition, the charges in the MONTHLY RATES AND CHARGES - Regulatory Component of this schedule do not apply to a customer that is an embedded wholesale market participant. | H130: 4_UNMETERED SCATTERED LOAD SERVICE CLASSIFICATION | AA130: Unless specifically noted, this schedule does not contain any charges for the electricity commodity, be it under the Regulated Price Plan, a contract with a retailer or the wholesale market price, as applicable. In addition, the charges in the MONTHLY RATES AND CHARGES - Regulatory Component of this schedule do not apply to a customer that is an embedded wholesale market participant.
B132: It should be noted that this schedule does not list any charges, assessments, or credits that are required by law to be invoiced by a distributor and that are not subject to Ontario Energy Board approval, such as the Global Adjustment and the HST. | H132: 4_UNMETERED SCATTERED LOAD SERVICE CLASSIFICATION | AA132: It should be noted that this schedule does not list any charges, assessments, or credits that are required by law to be invoiced by a distributor and that are not subject to Ontario Energy Board approval, such as the Global Adjustment and the HST.
B134: MONTHLY RATES AND CHARGES - Delivery Component | H134: 4_MRC_Del | AA134: MONTHLY RATES AND CHARGES - Delivery Component
B136: Service Charge (per connection) | D136: $ | E136: 7.22 | H136: 4_UNMETERED SCATTERED LOAD SERVICE CLASSIFICATION | I136: A | M136: 4_UNMETERED SCATTERED LOAD SERVICE CLASSIFICATION_MSC | Z136: Service Charge (per connection)
B137: Rate Rider for Recovery of Foregone Revenue (2022) - effective until June 30, 2023 | D137: $ | E137: 0.05 | H137: 4_UNMETERED SCATTERED LOAD SERVICE CLASSIFICATION | I137: A | M137: 4_UNMETERED SCATTERED LOAD SERVICE CLASSIFICATION_FX_RR_6 | Q137: 45107 | Z137: Rate Rider for Recovery of Foregone Revenue (2022) - effective until June 30, 2023
B138: Distribution Volumetric Rate | D138: $/kWh | E138: 0.002 | H138: 4_UNMETERED SCATTERED LOAD SERVICE CLASSIFICATION | I138: A | M138: 4_UNMETERED SCATTERED LOAD SERVICE CLASSIFICATION_DVC | Z138: Distribution Volumetric Rate
B139: Low Voltage Service Rate | D139: $/kWh | E139: 0.0031 | H139: 4_UNMETERED SCATTERED LOAD SERVICE CLASSIFICATION | I139: B | M139: 4_UNMETERED SCATTERED LOAD SERVICE CLASSIFICATION_LV | Z139: Low Voltage Service Rate
B140: Rate Rider for Disposition of Deferral/Variance Accounts (2022) - effective until June 30, 2023 | D140: $/kWh | E140: -0.0021 | H140: 4_UNMETERED SCATTERED LOAD SERVICE CLASSIFICATION | I140: B | M140: 4_UNMETERED SCATTERED LOAD SERVICE CLASSIFICATION_DEFVAR_ALL | Q140: 45107 | Z140: Rate Rider for Disposition of Deferral/Variance Accounts (2022) - effective until June 30, 2023
B141: Rate Rider for Disposition of Capacity Based Recovery Account (2022) - effective until June 30, 2023 - Applicable only for Class B Customers | D141: $/kWh | E141: -0.0001 | H141: 4_UNMETERED SCATTERED LOAD SERVICE CLASSIFICATION | I141: B | M141: 4_UNMETERED SCATTERED LOAD SERVICE CLASSIFICATION_CBR | Q141: 45107 | Z141: Rate Rider for Disposition of Capacity Based Recovery Account (2022) - effective until June 30, 2023 - Applicable only for Class B Customers
B142: Rate Rider for Disposition of Accounts 1575 and 1576 (2022) - effective until June 30, 2023 | D142: $/kWh | E142: 0.0001 | H142: 4_UNMETERED SCATTERED LOAD SERVICE CLASSIFICATION | I142: A | M142: 4_UNMETERED SCATTERED LOAD SERVICE CLASSIFICATION_DEFVAR_ALL | Q142: 45107 | Z142: Rate Rider for Disposition of Accounts 1575 and 1576 (2022) - effective until June 30, 2023
B143: Rate Rider for Global Adjustment (2022) - effective until June 30, 2023 - Applicable only for non-RPP customers | D143: $/kWh | E143: -0.0053 | H143: 4_UNMETERED SCATTERED LOAD SERVICE CLASSIFICATION | I143: B | M143: 4_UNMETERED SCATTERED LOAD SERVICE CLASSIFICATION_GA_kw | Q143: 45107 | Z143: Rate Rider for Global Adjustment (2022) - effective until June 30, 2023 - Applicable only for non-RPP customers
B144: Rate Rider for Lost Revenue Adjustment Mechanism (2022) - effective until June 30, 2023 | D144: $/kWh | E144: -0.0001 | H144: 4_UNMETERED SCATTERED LOAD SERVICE CLASSIFICATION | I144: A | M144: 4_UNMETERED SCATTERED LOAD SERVICE CLASSIFICATION_LRAM | Q144: 45107 | Z144: Rate Rider for Lost Revenue Adjustment Mechanism (2022) - effective until June 30, 2023
B145: Retail Transmission Rate - Network Service Rate | D145: $/kWh | E145: 0.0088 | H145: 4_UNMETERED SCATTERED LOAD SERVICE CLASSIFICATION | I145: C | M145: 4_UNMETERED SCATTERED LOAD SERVICE CLASSIFICATION_Retail Transmission Rate - Network Service Rate | Z145: Retail Transmission Rate - Network Service Rate
B146: Retail Transmission Rate - Line and Transformation Connection Service Rate | D146: $/kWh | E146: 0.0058 | H146: 4_UNMETERED SCATTERED LOAD SERVICE CLASSIFICATION | I146: C | M146: 4_UNMETERED SCATTERED LOAD SERVICE CLASSIFICATION_Retail Transmission Rate - Line and Transformation Connection Service Rate | Z146: Retail Transmission Rate - Line and Transformation Connection Service Rate
B148: MONTHLY RATES AND CHARGES - Regulatory Component | H148: 4_MRC_Reg | Z148: MONTHLY RATES AND CHARGES - Regulatory Component
B150: Wholesale Market Service Rate (WMS) - not including CBR | D150: $/kWh | E150: 0.003 | H150: 4_UNMETERED SCATTERED LOAD SERVICE CLASSIFICATION | I150: T | M150: 4_UNMETERED SCATTERED LOAD SERVICE CLASSIFICATION_WMSR | Z150: Wholesale Market Service Rate (WMS) - not including CBR
B151: Capacity Based Recovery (CBR) - Applicable for Class B Customers | D151: $/kWh | E151: 0.0004 | H151: 4_UNMETERED SCATTERED LOAD SERVICE CLASSIFICATION | I151: T | M151: 4_UNMETERED SCATTERED LOAD SERVICE CLASSIFICATION_WMSR | Z151: Capacity Based Recovery (CBR) - Applicable for Class B Customers
B152: Rural or Remote Electricity Rate Protection Charge (RRRP) | D152: $/kWh | E152: 0.0005 | H152: 4_UNMETERED SCATTERED LOAD SERVICE CLASSIFICATION | I152: T | M152: 4_UNMETERED SCATTERED LOAD SERVICE CLASSIFICATION_RRRP | Z152: Rural or Remote Electricity Rate Protection Charge (RRRP)
B153: Standard Supply Service - Administrative Charge (if applicable) | D153: $ | E153: 0.25 | H153: 4_UNMETERED SCATTERED LOAD SERVICE CLASSIFICATION | I153: T | M153: 4_UNMETERED SCATTERED LOAD SERVICE CLASSIFICATION_SSS | Z153: Standard Supply Service - Administrative Charge (if applicable) | AS153: X
B154: SENTINEL LIGHTING SERVICE CLASSIFICATION | H154: 5_SENTINEL LIGHTING SERVICE CLASSIFICATION | AA154: SENTINEL LIGHTING SERVICE CLASSIFICATION
B155: This classification refers to accounts that are an unmetered lighting load supplied to a sentinel light. E.L.K. is not in the practice of connecting new unmetered scattered load services. Further servicing details are available in the distributor’s Conditions of Service. | H155: 5_SENTINEL LIGHTING SERVICE CLASSIFICATION | AA155: This classification refers to accounts that are an unmetered lighting load supplied to a sentinel light. E.L.K. is not in the practice of connecting new unmetered scattered load services. Further servicing details are available in the distributor’s Conditions of Service.
B157: APPLICATION | H157: 5_APPLICATION | AA157: APPLICATION
B159: The application of these rates and charges shall be in accordance with the Licence of the Distributor and any Code or Order of the Ontario Energy Board, and amendments thereto as approved by the Ontario Energy Board, which may be applicable to the administration of this schedule. | H159: 5_SENTINEL LIGHTING SERVICE CLASSIFICATION | AA159: The application of these rates and charges shall be in accordance with the Licence of the Distributor and any Code or Order of the Ontario Energy Board, and amendments thereto as approved by the Ontario Energy Board, which may be applicable to the administration of this schedule.
B161: No rates and charges for the distribution of electricity and charges to meet the costs of any work or service done or furnished for the purpose of the distribution of electricity shall be made except as permitted by this schedule, unless required by the Distributor’s Licence or a Code or Order of the Ontario Energy Board, and amendments thereto as approved by the Ontario Energy Board, or as specified herein. | H161: 5_SENTINEL LIGHTING SERVICE CLASSIFICATION | AA161: No rates and charges for the distribution of electricity and charges to meet the costs of any work or service done or furnished for the purpose of the distribution of electricity shall be made except as permitted by this schedule, unless required by the Distributor’s Licence or a Code or Order of the Ontario Energy Board, and amendments thereto as approved by the Ontario Energy Board, or as specified herein.
B163: Unless specifically noted, this schedule does not contain any charges for the electricity commodity, be it under the Regulated Price Plan, a contract with a retailer or the wholesale market price, as applicable. In addition, the charges in the MONTHLY RATES AND CHARGES - Regulatory Component of this schedule do not apply to a customer that is an embedded wholesale market participant. | H163: 5_SENTINEL LIGHTING SERVICE CLASSIFICATION | AA163: Unless specifically noted, this schedule does not contain any charges for the electricity commodity, be it under the Regulated Price Plan, a contract with a retailer or the wholesale market price, as applicable. In addition, the charges in the MONTHLY RATES AND CHARGES - Regulatory Component of this schedule do not apply to a customer that is an embedded wholesale market participant.
B165: It should be noted that this schedule does not list any charges, assessments, or credits that are required by law to be invoiced by a distributor and that are not subject to Ontario Energy Board approval, such as the Global Adjustment and the HST. | H165: 5_SENTINEL LIGHTING SERVICE CLASSIFICATION | AA165: It should be noted that this schedule does not list any charges, assessments, or credits that are required by law to be invoiced by a distributor and that are not subject to Ontario Energy Board approval, such as the Global Adjustment and the HST.
B167: MONTHLY RATES AND CHARGES - Delivery Component | H167: 5_MRC_Del | AA167: MONTHLY RATES AND CHARGES - Delivery Component
B169: Service Charge (per connection) | D169: $ | E169: 3.39 | H169: 5_SENTINEL LIGHTING SERVICE CLASSIFICATION | I169: A | M169: 5_SENTINEL LIGHTING SERVICE CLASSIFICATION_MSC | Z169: Service Charge (per connection)
B170: Rate Rider for Recovery of Foregone Revenue (2022) - effective until June 30, 2023 | D170: $ | E170: 0.04 | H170: 5_SENTINEL LIGHTING SERVICE CLASSIFICATION | I170: A | M170: 5_SENTINEL LIGHTING SERVICE CLASSIFICATION_FX_RR_7 | Q170: 45107 | Z170: Rate Rider for Recovery of Foregone Revenue (2022) - effective until June 30, 2023
B171: Distribution Volumetric Rate | D171: $/kW | E171: 6.3781 | H171: 5_SENTINEL LIGHTING SERVICE CLASSIFICATION | I171: A | M171: 5_SENTINEL LIGHTING SERVICE CLASSIFICATION_DVC | Z171: Distribution Volumetric Rate
B172: Low Voltage Service Rate | D172: $/kW | E172: 0.9451 | H172: 5_SENTINEL LIGHTING SERVICE CLASSIFICATION | I172: B | M172: 5_SENTINEL LIGHTING SERVICE CLASSIFICATION_LV | Z172: Low Voltage Service Rate
B173: Rate Rider for Disposition of Deferral/Variance Accounts (2022) - effective until June 30, 2023 | D173: $/kW | E173: -1.4788 | H173: 5_SENTINEL LIGHTING SERVICE CLASSIFICATION | I173: B | M173: 5_SENTINEL LIGHTING SERVICE CLASSIFICATION_DEFVAR_ALL | Q173: 45107 | Z173: Rate Rider for Disposition of Deferral/Variance Accounts (2022) - effective until June 30, 2023
B174: Rate Rider for Disposition of Capacity Based Recovery Account (2022) - effective until June 30, 2023 - Applicable only for Class B Customers | D174: $/kW | E174: -0.0464 | H174: 5_SENTINEL LIGHTING SERVICE CLASSIFICATION | I174: B | M174: 5_SENTINEL LIGHTING SERVICE CLASSIFICATION_CBR | Q174: 45107 | Z174: Rate Rider for Disposition of Capacity Based Recovery Account (2022) - effective until June 30, 2023 - Applicable only for Class B Customers
B175: Rate Rider for Disposition of Accounts 1575 and 1576 (2022) - effective until June 30, 2023 | D175: $/kW | E175: 0.0281 | H175: 5_SENTINEL LIGHTING SERVICE CLASSIFICATION | I175: A | M175: 5_SENTINEL LIGHTING SERVICE CLASSIFICATION_DEFVAR_ALL | Q175: 45107 | Z175: Rate Rider for Disposition of Accounts 1575 and 1576 (2022) - effective until June 30, 2023
B176: Rate Rider for Recovery of Foregone Revenue (2022) - effective until June 30, 2023 | D176: $/kW | E176: 0.0376 | H176: 5_SENTINEL LIGHTING SERVICE CLASSIFICATION | I176: A | M176: 5_SENTINEL LIGHTING SERVICE CLASSIFICATION_VR_RR_25 | Q176: 45107 | Z176: Rate Rider for Recovery of Foregone Revenue (2022) - effective until June 30, 2023
B177: Rate Rider for Global Adjustment (2022) - effective until June 30, 2023 - Applicable only for non-RPP customers | D177: $/kWh | E177: -0.0053 | H177: 5_SENTINEL LIGHTING SERVICE CLASSIFICATION | I177: B | M177: 5_SENTINEL LIGHTING SERVICE CLASSIFICATION_GA_kw | Q177: 45107 | Z177: Rate Rider for Global Adjustment (2022) - effective until June 30, 2023 - Applicable only for non-RPP customers
B178: Rate Rider for Lost Revenue Adjustment Mechanism (2022) - effective until June 30, 2023 | D178: $/kW | E178: -3.9948 | H178: 5_SENTINEL LIGHTING SERVICE CLASSIFICATION | I178: A | M178: 5_SENTINEL LIGHTING SERVICE CLASSIFICATION_LRAM | Q178: 45107 | Z178: Rate Rider for Lost Revenue Adjustment Mechanism (2022) - effective until June 30, 2023
B179: Retail Transmission Rate - Network Service Rate | D179: $/kW | E179: 2.8156 | H179: 5_SENTINEL LIGHTING SERVICE CLASSIFICATION | I179: C | M179: 5_SENTINEL LIGHTING SERVICE CLASSIFICATION_Retail Transmission Rate - Network Service Rate | Z179: Retail Transmission Rate - Network Service Rate
B180: Retail Transmission Rate - Line and Transformation Connection Service Rate | D180: $/kW | E180: 1.8581 | H180: 5_SENTINEL LIGHTING SERVICE CLASSIFICATION | I180: C | M180: 5_SENTINEL LIGHTING SERVICE CLASSIFICATION_Retail Transmission Rate - Line and Transformation Connection Service Rate | Z180: Retail Transmission Rate - Line and Transformation Connection Service Rate
B182: MONTHLY RATES AND CHARGES - Regulatory Component | H182: 5_MRC_Reg | Z182: MONTHLY RATES AND CHARGES - Regulatory Component
B184: Wholesale Market Service Rate (WMS) - not including CBR | D184: $/kWh | E184: 0.003 | H184: 5_SENTINEL LIGHTING SERVICE CLASSIFICATION | I184: T | M184: 5_SENTINEL LIGHTING SERVICE CLASSIFICATION_WMSR | Z184: Wholesale Market Service Rate (WMS) - not including CBR
B185: Capacity Based Recovery (CBR) - Applicable for Class B Customers | D185: $/kWh | E185: 0.0004 | H185: 5_SENTINEL LIGHTING SERVICE CLASSIFICATION | I185: T | M185: 5_SENTINEL LIGHTING SERVICE CLASSIFICATION_WMSR | Z185: Capacity Based Recovery (CBR) - Applicable for Class B Customers
B186: Rural or Remote Electricity Rate Protection Charge (RRRP) | D186: $/kWh | E186: 0.0005 | H186: 5_SENTINEL LIGHTING SERVICE CLASSIFICATION | I186: T | M186: 5_SENTINEL LIGHTING SERVICE CLASSIFICATION_RRRP | Z186: Rural or Remote Electricity Rate Protection Charge (RRRP)
B187: Standard Supply Service - Administrative Charge (if applicable) | D187: $ | E187: 0.25 | H187: 5_SENTINEL LIGHTING SERVICE CLASSIFICATION | I187: T | M187: 5_SENTINEL LIGHTING SERVICE CLASSIFICATION_SSS | Z187: Standard Supply Service - Administrative Charge (if applicable) | AS187: X
B188: STREET LIGHTING SERVICE CLASSIFICATION | H188: 6_STREET LIGHTING SERVICE CLASSIFICATION | AA188: STREET LIGHTING SERVICE CLASSIFICATION
B190: APPLICATION | H190: 6_APPLICATION | AA190: APPLICATION
B192: The application of these rates and charges shall be in accordance with the Licence of the Distributor and any Code or Order of the Ontario Energy Board, and amendments thereto as approved by the Ontario Energy Board, which may be applicable to the administration of this schedule. | H192: 6_STREET LIGHTING SERVICE CLASSIFICATION | AA192: The application of these rates and charges shall be in accordance with the Licence of the Distributor and any Code or Order of the Ontario Energy Board, and amendments thereto as approved by the Ontario Energy Board, which may be applicable to the administration of this schedule.
B194: No rates and charges for the distribution of electricity and charges to meet the costs of any work or service done or furnished for the purpose of the distribution of electricity shall be made except as permitted by this schedule, unless required by the Distributor’s Licence or a Code or Order of the Ontario Energy Board, and amendments thereto as approved by the Ontario Energy Board, or as specified herein. | H194: 6_STREET LIGHTING SERVICE CLASSIFICATION | AA194: No rates and charges for the distribution of electricity and charges to meet the costs of any work or service done or furnished for the purpose of the distribution of electricity shall be made except as permitted by this schedule, unless required by the Distributor’s Licence or a Code or Order of the Ontario Energy Board, and amendments thereto as approved by the Ontario Energy Board, or as specified herein.
B196: Unless specifically noted, this schedule does not contain any charges for the electricity commodity, be it under the Regulated Price Plan, a contract with a retailer or the wholesale market price, as applicable. In addition, the charges in the MONTHLY RATES AND CHARGES - Regulatory Component of this schedule do not apply to a customer that is an embedded wholesale market participant. | H196: 6_STREET LIGHTING SERVICE CLASSIFICATION | AA196: Unless specifically noted, this schedule does not contain any charges for the electricity commodity, be it under the Regulated Price Plan, a contract with a retailer or the wholesale market price, as applicable. In addition, the charges in the MONTHLY RATES AND CHARGES - Regulatory Component of this schedule do not apply to a customer that is an embedded wholesale market participant.
B198: It should be noted that this schedule does not list any charges, assessments, or credits that are required by law to be invoiced by a distributor and that are not subject to Ontario Energy Board approval, such as the Global Adjustment and the HST. | H198: 6_STREET LIGHTING SERVICE CLASSIFICATION | AA198: It should be noted that this schedule does not list any charges, assessments, or credits that are required by law to be invoiced by a distributor and that are not subject to Ontario Energy Board approval, such as the Global Adjustment and the HST.
B200: MONTHLY RATES AND CHARGES - Delivery Component | H200: 6_MRC_Del | AA200: MONTHLY RATES AND CHARGES - Delivery Component
B202: Service Charge (per connection) | D202: $ | E202: 1.17 | H202: 6_STREET LIGHTING SERVICE CLASSIFICATION | I202: A | M202: 6_STREET LIGHTING SERVICE CLASSIFICATION_MSC | Z202: Service Charge (per connection)
B203: Rate Rider for Recovery of Foregone Revenue (2022) - effective until June 30, 2023 | D203: $ | E203: -0.01 | H203: 6_STREET LIGHTING SERVICE CLASSIFICATION | I203: A | M203: 6_STREET LIGHTING SERVICE CLASSIFICATION_FX_RR_8 | Q203: 45107 | Z203: Rate Rider for Recovery of Foregone Revenue (2022) - effective until June 30, 2023
B204: Distribution Volumetric Rate | D204: $/kW | E204: 11.3604 | H204: 6_STREET LIGHTING SERVICE CLASSIFICATION | I204: A | M204: 6_STREET LIGHTING SERVICE CLASSIFICATION_DVC | Z204: Distribution Volumetric Rate
B205: Low Voltage Service Rate | D205: $/kW | E205: 0.9256 | H205: 6_STREET LIGHTING SERVICE CLASSIFICATION | I205: B | M205: 6_STREET LIGHTING SERVICE CLASSIFICATION_LV | Z205: Low Voltage Service Rate
B206: Rate Rider for Disposition of Deferral/Variance Accounts (2022) - effective until June 30, 2023 | D206: $/kW | E206: -2.3734 | H206: 6_STREET LIGHTING SERVICE CLASSIFICATION | I206: B | M206: 6_STREET LIGHTING SERVICE CLASSIFICATION_DEFVAR_ALL | Q206: 45107 | Z206: Rate Rider for Disposition of Deferral/Variance Accounts (2022) - effective until June 30, 2023
B207: Rate Rider for Disposition of Capacity Based Recovery Account (2022) - effective until June 30, 2023 - Applicable only for Class B Customers | D207: $/kW | E207: -0.0429 | H207: 6_STREET LIGHTING SERVICE CLASSIFICATION | I207: B | M207: 6_STREET LIGHTING SERVICE CLASSIFICATION_CBR | Q207: 45107 | Z207: Rate Rider for Disposition of Capacity Based Recovery Account (2022) - effective until June 30, 2023 - Applicable only for Class B Customers
B208: Rate Rider for Disposition of Accounts 1575 and 1576 (2022) - effective until June 30, 2023 | D208: $/kW | E208: 0.026 | H208: 6_STREET LIGHTING SERVICE CLASSIFICATION | I208: A | M208: 6_STREET LIGHTING SERVICE CLASSIFICATION_DEFVAR_ALL | Q208: 45107 | Z208: Rate Rider for Disposition of Accounts 1575 and 1576 (2022) - effective until June 30, 2023
B209: Rate Rider for Recovery of Foregone Revenue (2022) - effective until June 30, 2023 | D209: $/kW | E209: -0.0984 | H209: 6_STREET LIGHTING SERVICE CLASSIFICATION | I209: A | M209: 6_STREET LIGHTING SERVICE CLASSIFICATION_VR_RR_31 | Q209: 45107 | Z209: Rate Rider for Recovery of Foregone Revenue (2022) - effective until June 30, 2023
B210: Rate Rider for Global Adjustment (2022) - effective until June 30, 2023 - Applicable only for non-RPP customers | D210: $/kWh | E210: -0.0053 | H210: 6_STREET LIGHTING SERVICE CLASSIFICATION | I210: B | M210: 6_STREET LIGHTING SERVICE CLASSIFICATION_GA_kw | Q210: 45107 | Z210: Rate Rider for Global Adjustment (2022) - effective until June 30, 2023 - Applicable only for non-RPP customers
B211: Rate Rider for Lost Revenue Adjustment Mechanism (2022) - effective until June 30, 2023 | D211: $/kW | E211: -0.8553 | H211: 6_STREET LIGHTING SERVICE CLASSIFICATION | I211: A | M211: 6_STREET LIGHTING SERVICE CLASSIFICATION_LRAM | Q211: 45107 | Z211: Rate Rider for Lost Revenue Adjustment Mechanism (2022) - effective until June 30, 2023
B212: Retail Transmission Rate - Network Service Rate | D212: $/kW | E212: 2.8021 | H212: 6_STREET LIGHTING SERVICE CLASSIFICATION | I212: C | M212: 6_STREET LIGHTING SERVICE CLASSIFICATION_Retail Transmission Rate - Network Service Rate | Z212: Retail Transmission Rate - Network Service Rate
B213: Retail Transmission Rate - Line and Transformation Connection Service Rate | D213: $/kW | E213: 1.8197 | H213: 6_STREET LIGHTING SERVICE CLASSIFICATION | I213: C | M213: 6_STREET LIGHTING SERVICE CLASSIFICATION_Retail Transmission Rate - Line and Transformation Connection Service Rate | Z213: Retail Transmission Rate - Line and Transformation Connection Service Rate
B215: MONTHLY RATES AND CHARGES - Regulatory Component | H215: 6_MRC_Reg | Z215: MONTHLY RATES AND CHARGES - Regulatory Component
B217: Wholesale Market Service Rate (WMS) - not including CBR | D217: $/kWh | E217: 0.003 | H217: 6_STREET LIGHTING SERVICE CLASSIFICATION | I217: T | M217: 6_STREET LIGHTING SERVICE CLASSIFICATION_WMSR | Z217: Wholesale Market Service Rate (WMS) - not including CBR
B218: Capacity Based Recovery (CBR) - Applicable for Class B Customers | D218: $/kWh | E218: 0.0004 | H218: 6_STREET LIGHTING SERVICE CLASSIFICATION | I218: T | M218: 6_STREET LIGHTING SERVICE CLASSIFICATION_WMSR | Z218: Capacity Based Recovery (CBR) - Applicable for Class B Customers
B219: Rural or Remote Electricity Rate Protection Charge (RRRP) | D219: $/kWh | E219: 0.0005 | H219: 6_STREET LIGHTING SERVICE CLASSIFICATION | I219: T | M219: 6_STREET LIGHTING SERVICE CLASSIFICATION_RRRP | Z219: Rural or Remote Electricity Rate Protection Charge (RRRP)
B220: Standard Supply Service - Administrative Charge (if applicable) | D220: $ | E220: 0.25 | H220: 6_STREET LIGHTING SERVICE CLASSIFICATION | I220: T | M220: 6_STREET LIGHTING SERVICE CLASSIFICATION_SSS | Z220: Standard Supply Service - Administrative Charge (if applicable) | AS220: X
B221: EMBEDDED DISTRIBUTOR SERVICE CLASSIFICATION | H221: 7_EMBEDDED DISTRIBUTOR SERVICE CLASSIFICATION | AA221: EMBEDDED DISTRIBUTOR SERVICE CLASSIFICATION
B222: This classification applies to an electricity distributor licensed by the Ontario Energy Board, and provided electricity by means of E.L.K. Energy Inc.’s distribution facilities. Further servicing details are available in the distributor’s Conditions of Service. | H222: 7_EMBEDDED DISTRIBUTOR SERVICE CLASSIFICATION | AA222: This classification applies to an electricity distributor licensed by the Ontario Energy Board, and provided electricity by means of E.L.K. Energy Inc.’s distribution facilities. Further servicing details are available in the distributor’s Conditions of Service.
B224: APPLICATION | H224: 7_APPLICATION | AA224: APPLICATION
B226: The application of these rates and charges shall be in accordance with the Licence of the Distributor and any Code or Order of the Ontario Energy Board, and amendments thereto as approved by the Ontario Energy Board, which may be applicable to the administration of this schedule. | H226: 7_EMBEDDED DISTRIBUTOR SERVICE CLASSIFICATION | AA226: The application of these rates and charges shall be in accordance with the Licence of the Distributor and any Code or Order of the Ontario Energy Board, and amendments thereto as approved by the Ontario Energy Board, which may be applicable to the administration of this schedule.
B228: No rates and charges for the distribution of electricity and charges to meet the costs of any work or service done or furnished for the purpose of the distribution of electricity shall be made except as permitted by this schedule, unless required by the Distributor’s Licence or a Code or Order of the Ontario Energy Board, and amendments thereto as approved by the Ontario Energy Board, or as specified herein. | H228: 7_EMBEDDED DISTRIBUTOR SERVICE CLASSIFICATION | AA228: No rates and charges for the distribution of electricity and charges to meet the costs of any work or service done or furnished for the purpose of the distribution of electricity shall be made except as permitted by this schedule, unless required by the Distributor’s Licence or a Code or Order of the Ontario Energy Board, and amendments thereto as approved by the Ontario Energy Board, or as specified herein.
B230: Unless specifically noted, this schedule does not contain any charges for the electricity commodity, be it under the Regulated Price Plan, a contract with a retailer or the wholesale market price, as applicable. In addition, the charges in the MONTHLY RATES AND CHARGES - Regulatory Component of this schedule do not apply to a customer that is an embedded wholesale market participant. | H230: 7_EMBEDDED DISTRIBUTOR SERVICE CLASSIFICATION | AA230: Unless specifically noted, this schedule does not contain any charges for the electricity commodity, be it under the Regulated Price Plan, a contract with a retailer or the wholesale market price, as applicable. In addition, the charges in the MONTHLY RATES AND CHARGES - Regulatory Component of this schedule do not apply to a customer that is an embedded wholesale market participant.
B232: It should be noted that this schedule does not list any charges, assessments, or credits that are required by law to be invoiced by a distributor and that are not subject to Ontario Energy Board approval, such as the Global Adjustment and the HST. | H232: 7_EMBEDDED DISTRIBUTOR SERVICE CLASSIFICATION | AA232: It should be noted that this schedule does not list any charges, assessments, or credits that are required by law to be invoiced by a distributor and that are not subject to Ontario Energy Board approval, such as the Global Adjustment and the HST.
B234: MONTHLY RATES AND CHARGES - Delivery Component | H234: 7_MRC_Del | AA234: MONTHLY RATES AND CHARGES - Delivery Component
B236: Service Charge | D236: $ | E236: 1422.16 | H236: 7_EMBEDDED DISTRIBUTOR SERVICE CLASSIFICATION | I236: A | M236: 7_EMBEDDED DISTRIBUTOR SERVICE CLASSIFICATION_MSC | Z236: Service Charge
B237: Rate Rider for Recovery of Foregone Revenue (2022) - effective until June 30, 2023 | D237: $ | E237: -166.55 | H237: 7_EMBEDDED DISTRIBUTOR SERVICE CLASSIFICATION | I237: A | M237: 7_EMBEDDED DISTRIBUTOR SERVICE CLASSIFICATION_FX_RR_9 | Q237: 45107 | Z237: Rate Rider for Recovery of Foregone Revenue (2022) - effective until June 30, 2023
B238: Rate Rider for Disposition of Deferral/Variance Accounts (2022) - effective until June 30, 2023 | D238: $/kW | E238: -0.5054 | H238: 7_EMBEDDED DISTRIBUTOR SERVICE CLASSIFICATION | I238: B | M238: 7_EMBEDDED DISTRIBUTOR SERVICE CLASSIFICATION_DEFVAR_ALL | Q238: 45107 | Z238: Rate Rider for Disposition of Deferral/Variance Accounts (2022) - effective until June 30, 2023
B239: Rate Rider for Disposition of Capacity Based Recovery Account (2022) - effective until June 30, 2023 - Applicable only for Class B Customers | D239: $/kW | E239: -0.0505 | H239: 7_EMBEDDED DISTRIBUTOR SERVICE CLASSIFICATION | I239: B | M239: 7_EMBEDDED DISTRIBUTOR SERVICE CLASSIFICATION_CBR | Q239: 45107 | Z239: Rate Rider for Disposition of Capacity Based Recovery Account (2022) - effective until June 30, 2023 - Applicable only for Class B Customers
B240: Rate Rider for Disposition of Accounts 1575 and 1576 (2022) - effective until June 30, 2023 | D240: $/kW | E240: 0.0306 | H240: 7_EMBEDDED DISTRIBUTOR SERVICE CLASSIFICATION | I240: A | M240: 7_EMBEDDED DISTRIBUTOR SERVICE CLASSIFICATION_DEFVAR_ALL | Q240: 45107 | Z240: Rate Rider for Disposition of Accounts 1575 and 1576 (2022) - effective until June 30, 2023
B241: Rate Rider for Global Adjustment (2022) - effective until June 30, 2023 - Applicable only for non-RPP customers | D241: $/kWh | E241: -0.0053 | H241: 7_EMBEDDED DISTRIBUTOR SERVICE CLASSIFICATION | I241: B | M241: 7_EMBEDDED DISTRIBUTOR SERVICE CLASSIFICATION_GA_kw | Q241: 45107 | Z241: Rate Rider for Global Adjustment (2022) - effective until June 30, 2023 - Applicable only for non-RPP customers
B243: MONTHLY RATES AND CHARGES - Regulatory Component | H243: 7_MRC_Reg | Z243: MONTHLY RATES AND CHARGES - Regulatory Component
B245: Wholesale Market Service Rate (WMS) - not including CBR | D245: $/kWh | E245: 0.003 | H245: 7_EMBEDDED DISTRIBUTOR SERVICE CLASSIFICATION | I245: T | M245: 7_EMBEDDED DISTRIBUTOR SERVICE CLASSIFICATION_WMSR | Z245: Wholesale Market Service Rate (WMS) - not including CBR
B246: Capacity Based Recovery (CBR) - Applicable for Class B Customers | D246: $/kWh | E246: 0.0004 | H246: 7_EMBEDDED DISTRIBUTOR SERVICE CLASSIFICATION | I246: T | M246: 7_EMBEDDED DISTRIBUTOR SERVICE CLASSIFICATION_WMSR | Z246: Capacity Based Recovery (CBR) - Applicable for Class B Customers
B247: Rural or Remote Electricity Rate Protection Charge (RRRP) | D247: $/kWh | E247: 0.0005 | H247: 7_EMBEDDED DISTRIBUTOR SERVICE CLASSIFICATION | I247: T | M247: 7_EMBEDDED DISTRIBUTOR SERVICE CLASSIFICATION_RRRP | Z247: Rural or Remote Electricity Rate Protection Charge (RRRP)
B248: Standard Supply Service - Administrative Charge (if applicable) | D248: $ | E248: 0.25 | H248: 7_EMBEDDED DISTRIBUTOR SERVICE CLASSIFICATION | I248: T | M248: 7_EMBEDDED DISTRIBUTOR SERVICE CLASSIFICATION_SSS | Z248: Standard Supply Service - Administrative Charge (if applicable) | AS248: X
B249: microFIT SERVICE CLASSIFICATION | H249: 8_microFIT SERVICE CLASSIFICATION | AA249: microFIT SERVICE CLASSIFICATION
B250: This classification applies to an electricity generation facility contracted under the Independent Electricity System Operator’s microFIT program and connected to the distributor’s distribution system. Further servicing details are available in the distributor’s Conditions of Service. | H250: 8_microFIT SERVICE CLASSIFICATION | AA250: This classification applies to an electricity generation facility contracted under the Independent Electricity System Operator’s microFIT program and connected to the distributor’s distribution system. Further servicing details are available in the distributor’s Conditions of Service.
B252: APPLICATION | H252: 8_APPLICATION | AA252: APPLICATION
B254: The application of these rates and charges shall be in accordance with the Licence of the Distributor and any Code or Order of the Ontario Energy Board, and amendments thereto as approved by the Ontario Energy Board, which may be applicable to the administration of this schedule. | H254: 8_microFIT SERVICE CLASSIFICATION | AA254: The application of these rates and charges shall be in accordance with the Licence of the Distributor and any Code or Order of the Ontario Energy Board, and amendments thereto as approved by the Ontario Energy Board, which may be applicable to the administration of this schedule.
B256: No rates and charges for the distribution of electricity and charges to meet the costs of any work or service done or furnished for the purpose of the distribution of electricity shall be made except as permitted by this schedule, unless required by the Distributor’s Licence or a Code or Order of the Ontario Energy Board, and amendments thereto as approved by the Ontario Energy Board, or as specified herein. | H256: 8_microFIT SERVICE CLASSIFICATION | AA256: No rates and charges for the distribution of electricity and charges to meet the costs of any work or service done or furnished for the purpose of the distribution of electricity shall be made except as permitted by this schedule, unless required by the Distributor’s Licence or a Code or Order of the Ontario Energy Board, and amendments thereto as approved by the Ontario Energy Board, or as specified herein.
B258: Unless specifically noted, this schedule does not contain any charges for the electricity commodity, be it under the Regulated Price Plan, a contract with a retailer or the wholesale market price, as applicable. | H258: 8_microFIT SERVICE CLASSIFICATION | AA258: Unless specifically noted, this schedule does not contain any charges for the electricity commodity, be it under the Regulated Price Plan, a contract with a retailer or the wholesale market price, as applicable.
B260: It should be noted that this schedule does not list any charges, assessments, or credits that are required by law to be invoiced by a distributor and that are not subject to Ontario Energy Board approval, such as the Global Adjustment and the HST. | H260: 8_microFIT SERVICE CLASSIFICATION | AA260: It should be noted that this schedule does not list any charges, assessments, or credits that are required by law to be invoiced by a distributor and that are not subject to Ontario Energy Board approval, such as the Global Adjustment and the HST.
B262: MONTHLY RATES AND CHARGES - Delivery Component | H262: 8_MRC_Del | AA262: MONTHLY RATES AND CHARGES - Delivery Component
B264: Service Charge | D264: $ | E264: 4.55 | H264: 8_microFIT SERVICE CLASSIFICATION | I264: A | M264: 8_microFIT SERVICE CLASSIFICATION_MSC | Z264: Service Charge
B266: ALLOWANCES | H266: E.L.K. Energy Inc._ALLOWANCES
B267: Transformer Allowance for Ownership - per kW of billing demand/month | D267: $/kW | E267: -0.6 | Z267: Transformer Allowance for Ownership - per kW of billing demand/month
B268: Primary Metering Allowance for transformer losses - applied to measured demand and energy | D268: % | E268: -1 | Z268: Primary Metering Allowance for transformer losses - applied to measured demand and energy
B269: SPECIFIC SERVICE CHARGES | H269: E.L.K. Energy Inc._SSC
B270: The application of these rates and charges shall be in accordance with the Licence of the Distributor and any Code or Order of the Ontario Energy Board, and amendments thereto as approved by the Ontario Energy Board, which may be applicable to the administration of this schedule. | AA270: The application of these rates and charges shall be in accordance with the Licence of the Distributor and any Code or Order of the Ontario Energy Board, and amendments thereto as approved by the Ontario Energy Board, which may be applicable to the administration of this schedule.
B272: No charges to meet the costs of any work or service done or furnished for the purpose of the distribution of electricity shall be made except as permitted by this schedule, unless required by the Distributor’s Licence or a Code or Order of the Ontario Energy Board, and amendments thereto as approved by the Ontario Energy Board, or as specified herein. | AA272: No charges to meet the costs of any work or service done or furnished for the purpose of the distribution of electricity shall be made except as permitted by this schedule, unless required by the Distributor’s Licence or a Code or Order of the Ontario Energy Board, and amendments thereto as approved by the Ontario Energy Board, or as specified herein.
B274: It should be noted that this schedule does not list any charges, assessments, or credits that are required by law to be invoiced by a distributor and that are not subject to Ontario Energy Board approval, such as the Global Adjustment and the HST. | AA274: It should be noted that this schedule does not list any charges, assessments, or credits that are required by law to be invoiced by a distributor and that are not subject to Ontario Energy Board approval, such as the Global Adjustment and the HST.
B276: Customer Administration | H276: E.L.K. Energy Inc._CA
B277: Arrears certificate | D277: $ | E277: 15 | Z277: Arrears certificate
B278: Statement of account | D278: $ | E278: 15 | Z278: Statement of account
B279: Pulling post dated cheques | D279: $ | E279: 15 | Z279: Pulling post dated cheques
... 51 more rows

Sheet 3. Continuity Schedule
CB1: FALSE
C2: FALSE | CB2: FALSE
C3: TRUE | CB3: FALSE
CB4: FALSE
CB5: FALSE
CB6: FALSE
CB7: FALSE
CB8: FALSE
CB9: FALSE
CB10: TRUE
CB11: TRUE
C12: Please complete the following continuity schedule for the following Deferral/Variance Accounts. Enter information into green cells only. Please see instructions tab for detailed instructions on how to complete tabs 3 to 7. Column BV has been prepopulated from the latest 2.1.7 RRR filing. Please refer to the footnotes for further instructions.
E16: 2016 | O16: =E16+1 -> 2017 | Y16: =O16+1 -> 2018 | AI16: =Y16+1 -> 2019 | AS16: =AI16+1 -> 2020 | BC16: =AS16+1 -> 2021 | BM16: =BC16+1 -> 2022 | BQ16: Projected Interest on Dec-31-2021 Balances | BV16: 2.1.7 RRR5
C17: Account Descriptions | D17: Account Number | E17: Opening Principal Amounts as of Jan 1, 2016 | F17: Transactions Debit / (Credit) during 2016 | G17: OEB-Approved Disposition during 2016 | H17: Principal Adjustments1 during 2016 | I17: Closing Principal Balance as of Dec 31, 2016 | J17: Opening Interest Amounts as of Jan 1, 2016 | K17: Interest Jan 1 to Dec 31, 2016 | L17: OEB-Approved Disposition during 2016 | M17: Interest Adjustments1 during 2016 | N17: Closing Interest Amounts as of Dec 31, 2016 | O17: Opening Principal Amounts as of Jan 1, 2017 | P17: Transactions Debit / (Credit) during 2017 | Q17: OEB-Approved Disposition during 2017 | R17: Principal Adjustments1 during 2017 | S17: Closing Principal Balance as of Dec 31, 2017 | T17: Opening Interest Amounts as of Jan 1, 2017 | U17: Interest Jan 1 to Dec 31, 2017 | V17: OEB-Approved Disposition during 2017 | W17: Interest Adjustments1 during 2017 | X17: Closing Interest Amounts as of Dec 31, 2017 | Y17: Opening Principal Amounts as of Jan 1, 2018 | Z17: Transactions Debit / (Credit) during 2018 | AA17: OEB-Approved Disposition during 2018 | AB17: Principal Adjustments1 during 2018 | AC17: Closing Principal Balance as of Dec 31, 2018 | AD17: Opening Interest Amounts as of Jan 1, 2018 | AE17: Interest Jan 1 to Dec 31, 2018 | AF17: OEB-Approved Disposition during 2018 | AG17: Interest Adjustments1 during 2018 | AH17: Closing Interest Amounts as of Dec 31, 2018 | AI17: Opening Principal Amounts as of Jan 1, 2019 | AJ17: Transactions Debit / (Credit) during 2019 | AK17: OEB-Approved Disposition during 2019 | AL17: Principal Adjustments1 during 2019 | AM17: Closing Principal Balance as of Dec 31, 2019 | AN17: Opening Interest Amounts as of Jan 1, 2019 | AO17: Interest Jan 1 to Dec 31, 2019 | AP17: OEB-Approved Disposition during 2019 | AQ17: Interest Adjustments1 during 2019 | AR17: Closing Interest Amounts as of Dec 31, 2019 | AS17: Opening Principal Amounts as of Jan 1, 2020 | AT17: Transactions Debit / (Credit) during 2020 | AU17: OEB-Approved Disposition during 2020 | AV17: Principal Adjustments1 during 2020 | AW17: Closing Principal Balance as of Dec 31, 2020 | AX17: Opening Interest Amounts as of Jan 1, 2020 | AY17: Interest Jan 1 to Dec 31, 2020 | AZ17: OEB-Approved Disposition during 2020 | BA17: Interest Adjustments1 during 2020 | BB17: Closing Interest Amounts as of Dec 31, 2020 | BC17: Opening Principal Amounts as of Jan 1, 2021 | BD17: Transactions Debit / (Credit) during 2021 | BE17: OEB-Approved Disposition during 2021 | BF17: Principal Adjustments1 during 2021 | BG17: Closing Principal Balance as of Dec 31, 2021 | BH17: Opening Interest Amounts as of Jan 1, 2021 | BI17: Interest Jan 1 to Dec 31, 2021 | BJ17: OEB-Approved Disposition during 2021 | BK17: Interest Adjustments1 during 2021 | BL17: Closing Interest Amounts as of Dec 31, 2021 | BM17: Principal Disposition during 2022 - instructed by OEB | BN17: Interest Disposition during 2022 - instructed by OEB | BO17: Closing Principal Balances as of Dec 31, 2020 Adjusted for Disposition during 2022 | BP17: Closing Interest Balances as of Dec 31, 2020 Adjusted for Disposition during 2022 | BQ17: Projected Interest from Jan 1, 2022 to Dec 31, 2022 on Dec 31, 2021 balance adjusted for disposition during 2022 2 | BR17: Projected Interest from Jan 1, 2023 to Apr 30, 2023 on Dec 31, 2021 balance adjusted for disposition during 2022 2 | BS17: Total Interest | BT17: Total Claim | BU17: Account Disposition: Yes/No? | BV17: As of Dec 31, 2021 | BW17: Variance RRR vs. 2021 Balance (Principal + Interest)
BT19: Claim before Forecasted Transactions
C20: Group 1 Accounts
C21: LV Variance Account | D21: 1550 | I21: =E21+F21-G21+H21 -> 0 | N21: =J21+K21-L21+M21 -> 0 | O21: =I21 -> 0 | S21: =O21+P21-Q21+SUM(R21:R21) -> 0 | T21: =N21 -> 0 | X21: =T21+U21-V21+W21 -> 0 | Y21: =S21 -> 0 | AC21: =Y21+Z21-AA21+SUM(AB21:AB21) -> 0 | AD21: =X21 -> 0 | AH21: =AD21+AE21-AF21+AG21 -> 0 | AI21: =AC21 -> 0 | AM21: =AI21+AJ21-AK21+SUM(AL21:AL21) -> 0 | AN21: =AH21 -> 0 | AR21: =AN21+AO21-AP21+AQ21 -> 0 | AS21: =AM21 -> 0 | AV21: 411230 | AW21: =AS21+AT21-AU21+SUM(AV21:AV21) -> 411230 | AX21: =AR21 -> 0 | BA21: 8587 | BB21: =AX21+AY21-AZ21+BA21 -> 8587 | BC21: =AW21 -> 411230 | BD21: 1033823 | BE21: 411230 | BG21: =BC21+BD21-BE21+SUM(BF21:BF21) -> 1033823 | BH21: =BB21 -> 8587 | BI21: 5393 | BJ21: 8587 | BL21: =BH21+BI21-BJ21+BK21 -> 5393 | BM21: 517243 | BN21: 10856 | BO21: =BG21-BM21 -> 516580 | BP21: =BL21-BN21 -> -5463 | BQ21: =+(516580*0.0057*90/365)+(516580*0.0102*91/365)+(516580*0.0202*92/365)+(516580*0.0387*92/365) -> 9708.873425 | BR21: =516580*0.0473*120/365 -> 8033.172822 | BS21: =BP21+BQ21+BR21 -> 12279.04625 | BT21: =SUM(BO21:BR21) -> 528859.0462 | BV21: 1039216 | BW21: =ROUND(BV21-SUM(BG21,BL21),2) -> 0 | BX21: =IF(ABS(BW21)>1,"Please provide an explanation of the variance in the Manager's Summary","") -> 
C22: Smart Metering Entity Charge Variance Account | D22: 1551 | I22: =E22+F22-G22+H22 -> 0 | N22: =J22+K22-L22+M22 -> 0 | O22: =I22 -> 0 | S22: 0 | T22: 0 | X22: =T22+U22-V22+W22 -> 0 | Y22: =S22 -> 0 | AC22: =Y22+Z22-AA22+SUM(AB22:AB22) -> 0 | AD22: =X22 -> 0 | AH22: =AD22+AE22-AF22+AG22 -> 0 | AI22: 0 | AM22: 0 | AN22: 0 | AR22: =AN22+AO22-AP22+AQ22 -> 0 | AS22: 0 | AV22: 3466 | AW22: 3466 | AX22: 0 | BA22: 170 | BB22: =AX22+AY22-AZ22+BA22 -> 170 | BC22: 3466 | BD22: -2614 | BE22: 3466 | BG22: -2614 | BH22: 170 | BJ22: 170 | BL22: =BH22+BI22-BJ22+BK22 -> 0 | BM22: -2427 | BN22: -107 | BO22: =BG22-BM22 -> -187 | BP22: =BL22-BN22 -> 107 | BQ22: =+(-187*0.0057*90/365)+(-187*0.0102*91/365)+(-187*0.0202*92/365)+(-187*0.0387*92/365) -> -3.514575342 | BR22: =+(-187*0.0473*120/365) -> -2.907978082 | BS22: =BP22+BQ22+BR22 -> 100.5774466 | BT22: =SUM(BO22:BR22) -> -86.42255342 | BV22: -2614 | BW22: =ROUND(BV22-SUM(BG22,BL22),2) -> 0 | BX22: =IF(ABS(BW22)>1,"Please provide an explanation of the variance in the Manager's Summary","") -> 
C23: RSVA - Wholesale Market Service Charge5 | D23: 1580 | I23: =E23+F23-G23+H23 -> 0 | N23: =J23+K23-L23+M23 -> 0 | O23: =I23 -> 0 | S23: 0 | T23: 0 | X23: =T23+U23-V23+W23 -> 0 | Y23: 0 | AC23: =Y23+Z23-AA23+SUM(AB23:AB23) -> 0 | AD23: 0 | AH23: =AD23+AE23-AF23+AG23 -> 0 | AI23: 0 | AM23: 0 | AN23: 0 | AR23: =AN23+AO23-AP23+AQ23 -> 0 | AS23: 0 | AV23: -84371 | AW23: -84371 | AX23: 0 | BA23: -4611 | BB23: =AX23+AY23-AZ23+BA23 -> -4611 | BC23: -84371 | BD23: -5899 | BE23: -84371 | BG23: -5899 | BH23: -4611 | BI23: -1335.17 | BJ23: -4611 | BL23: =BH23+BI23-BJ23+BK23 -> -1335.17 | BM23: -129832 | BN23: 44 | BO23: 123933 | BP23: -1379.17 | BQ23: =+(123933*0.0057*90/365)+(123933*0.0102*91/365)+(123933*0.0202*92/365)+(123933*0.0387*92/365) -> 2329.261315 | BR23: =+(123933*0.0473*120/365) -> 1927.243036 | BS23: 2877.334351 | BT23: =SUM(BO23:BR23) -> 126810.3344 | BV23: -34717 | BW23: -27482.83 | BX23: =IF(ROUND(BW23,0)=ROUND(BV25,0),"","The variance does not match the value in cell BV25. Please provide an explanation of the variance in the Manager's Summary") -> The variance does not match the value in cell BV25. Please provide an explanation of the variance in the Manager's Summary
C24: Variance WMS – Sub-account CBR Class A5 | D24: 1580 | I24: 0 | N24: 0 | O24: 0 | S24: 0 | T24: 0 | X24: 0 | Y24: 0 | AC24: 0 | AD24: 0 | AH24: 0 | AI24: 0 | AM24: 0 | AN24: 0 | AR24: 0 | AS24: 0 | AW24: 0 | AX24: 0 | BB24: 0 | BC24: 0 | BG24: =BC24+BD24-BE24+SUM(BF24:BF24) -> 0 | BH24: 0 | BL24: 0 | BM24: 0 | BN24: 0 | BO24: 0 | BP24: 0 | BS24: 0 | BT24: =IF(CB5=TRUE, 0, 0) -> 0 | BV24: 0 | BW24: 0
C25: Variance WMS – Sub-account CBR Class B5 | D25: 1580 | I25: 0 | N25: 0 | O25: 0 | S25: 0 | T25: 0 | X25: 0 | Y25: 0 | AC25: 0 | AD25: 0 | AH25: 0 | AI25: 0 | AM25: 0 | AN25: 0 | AR25: 0 | AS25: 0 | AV25: -10048 | AW25: -10048 | AX25: 0 | BA25: 280 | BB25: 280 | BC25: -10048 | BD25: =-27482.56+17 -> -27465.56 | BE25: -10048 | BG25: -27465.56 | BH25: 280 | BI25: -17.1 | BJ25: 280 | BL25: -17.1 | BM25: -27918 | BN25: -1793 | BO25: 452.44 | BP25: 1775.9 | BQ25: =+(452*0.0057*90/365)+(452*0.0102*91/365)+(452*0.0202*92/365)+(452*0.0387*92/365) -> 8.495123288 | BR25: =+(452*0.0473*120/365) -> 7.028909589 | BS25: 1791.424033 | BT25: =SUM(BO25:BR25) -> 2243.864033 | BV25: 0 | BW25: 27482.66 | BX25: Please provide an explanation of the variance in the Manager's Summary
C26: RSVA - Retail Transmission Network Charge | D26: 1584 | I26: 0 | N26: 0 | O26: 0 | S26: 0 | T26: 0 | X26: 0 | Y26: 0 | AC26: 0 | AD26: 0 | AH26: 0 | AI26: 0 | AM26: 0 | AN26: 0 | AR26: 0 | AS26: 0 | AV26: -100247 | AW26: -100247 | AX26: 0 | BA26: 1305 | BB26: 1305 | BC26: -100247 | BD26: -298243 | BE26: -100247 | BG26: -298243 | BH26: 1305 | BI26: -1726.4 | BJ26: 1305 | BL26: -1726.4 | BM26: -172416 | BN26: 1994 | BO26: -125827 | BP26: -3720.4 | BQ26: =+(-125827*0.0057*90/365)+(-125827*0.0102*91/365)+(-125827*0.0202*92/365)+(-125827*0.0387*92/365) -> -2364.858137 | BR26: =+(-125827*0.0473*120/365) -> -1956.696033 | BS26: -8041.95417 | BT26: =SUM(BO26:BR26) -> -133868.9542 | BV26: -299969 | BW26: 0.4
C27: RSVA - Retail Transmission Connection Charge | D27: 1586 | I27: 0 | N27: 0 | O27: 0 | S27: 0 | T27: 0 | X27: 0 | Y27: 0 | AC27: 0 | AD27: 0 | AH27: 0 | AI27: 0 | AM27: 0 | AN27: 0 | AR27: 0 | AS27: 0 | AV27: 108796 | AW27: 108796 | AX27: 0 | BA27: 4241 | BB27: 4241 | BC27: 108796 | BD27: 501499 | BE27: 108796 | BG27: 501499 | BH27: 4241 | BI27: 2462.62 | BJ27: 4241 | BL27: 2462.62 | BM27: 362553 | BN27: 4031 | BO27: 138946 | BP27: -1568.38 | BQ27: =+(138946*0.0057*90/365)+(138946*0.0102*91/365)+(138946*0.0202*92/365)+(138946*0.0387*92/365) -> 2611.423452 | BR27: =+(138946*0.0473*120/365) -> 2160.705468 | BS27: 3203.748921 | BT27: =SUM(BO27:BR27) -> 142149.7489 | BV27: 503962 | BW27: 0.38
C28: RSVA - Power4 | D28: 1588 | H28: -322292 | I28: -322292 | M28: -123517 | N28: -123517 | O28: -322292 | S28: -322292 | T28: -123517 | U28: -15023 | X28: -138540 | Y28: -322292 | AC28: -322292 | AD28: -138540 | AE28: -15023 | AH28: -153563 | AI28: -322292 | AM28: -322292 | AN28: -153563 | AO28: -18128 | AR28: -171691 | AS28: -322292 | AW28: -322292 | AX28: -171691 | AY28: -11090 | BB28: -182781 | BC28: -322292 | BG28: -322292 | BH28: -182781 | BI28: -4598 | BL28: -187379 | BM28: -322292 | BN28: -188912 | BO28: 0 | BP28: 1533 | BQ28: =+(-322292*0.0057*90/365)+(-322292*0.0102*91/365)+(-322292*0.0202*92/365)+(-322292*0.0387*92/365) -> -6057.323616 | BR28: =+(-322292*0.0473*120/365) -> -5011.861348 | BS28: -9536.184964 | BT28: =IF(BU28="Yes", SUM(BO28:BR28), 0) -> -9536.184964 | BU28: Yes | BV28: -7344431 | BW28: -6834760 | BX28: Please provide an explanation of the variance in the Manager's Summary
C29: RSVA - Global Adjustment4 | D29: 1589 | H29: -750450 | I29: -750450 | M29: 123518 | N29: 123518 | O29: -750450 | S29: -750450 | T29: 123518 | U29: 2425 | X29: 125943 | Y29: -750450 | AC29: -750450 | AD29: 125943 | AE29: 3763 | AH29: 129706 | AI29: -750450 | AM29: -750450 | AN29: 129706 | AO29: 4541 | AR29: 134247 | AS29: -750450 | AW29: -750450 | AX29: 134247 | AY29: 2778 | BB29: 137025 | BC29: -750450 | BG29: -750450 | BH29: 137025 | BI29: 1152 | BL29: 138177 | BM29: -750450 | BN29: 138561 | BO29: 0 | BP29: -384 | BQ29: =+(138946*0.0057*90/365)+(138946*0.0102*91/365)+(138946*0.0202*92/365)+(138946*0.0387*92/365) -> 2611.423452 | BR29: =+(138946*0.0473*120/365) -> 2160.705468 | BS29: 4388.128921 | BT29: =IF(BU29="Yes", SUM(BO29:BR29), 0) -> 4388.128921 | BU29: Yes | BV29: 4203553 | BW29: 4815826 | BX29: Please provide an explanation of the variance in the Manager's Summary
C30: Disposition and Recovery/Refund of Regulatory Balances (2009)3 | D30: 1595 | I30: 0 | N30: 0 | O30: 0 | S30: 0 | T30: 0 | X30: 0 | Y30: 0 | AC30: 0 | AD30: 0 | AH30: 0 | AI30: 0 | AM30: 0 | AN30: 0 | AR30: 0 | AS30: 0 | AW30: 0 | AX30: 0 | BB30: 0 | BC30: 0 | BG30: 0 | BH30: 0 | BL30: 0 | BO30: 0 | BP30: 0 | BS30: 0 | BT30: =IF(CB7=TRUE, SUM(BO30:BR30), 0) -> 0 | BU30: Yes | BW30: 0
C31: Disposition and Recovery/Refund of Regulatory Balances (2016 and pre-2016)3 | D31: 1595 | I31: 0 | N31: 0 | O31: 0 | S31: 0 | T31: 0 | X31: 0 | Y31: 0 | AC31: 0 | AD31: 0 | AH31: 0 | AI31: 0 | AM31: 0 | AN31: 0 | AR31: 0 | AS31: 0 | AW31: 0 | AX31: 0 | BB31: 0 | BC31: 0 | BG31: 0 | BH31: 0 | BL31: 0 | BO31: 0 | BP31: 0 | BS31: 0 | BT31: =IF(BU31="Yes", SUM(BO31:BR31), 0) -> 0 | BU31: No | BW31: 0
C32: Disposition and Recovery/Refund of Regulatory Balances (2017)3 | D32: 1595 | I32: 0 | N32: 0 | O32: 0 | S32: =O32+P32-Q32+SUM(R32:R32) -> 0 | T32: 0 | X32: 0 | Y32: 0 | AC32: =Y32+Z32-AA32+SUM(AB32:AB32) -> 0 | AD32: =X32 -> 0 | AH32: 0 | AI32: 0 | AM32: 0 | AN32: 0 | AR32: 0 | AS32: 0 | AW32: 0 | AX32: 0 | BB32: 0 | BC32: 0 | BG32: 0 | BH32: 0 | BL32: 0 | BO32: 0 | BP32: 0 | BS32: 0 | BT32: =IF(BU32="Yes", SUM(BO32:BR32), 0) -> 0 | BU32: No | BW32: 0
C33: Disposition and Recovery/Refund of Regulatory Balances (2018)3 | D33: 1595 | I33: 0 | N33: 0 | O33: 0 | S33: 0 | T33: 0 | X33: 0 | Y33: 0 | AC33: 0 | AD33: 0 | AH33: 0 | AI33: 0 | AM33: 0 | AN33: 0 | AR33: 0 | AS33: 0 | AT33: -150614 | AU33: -247593 | AW33: 96979 | AX33: 0 | AY33: 962 | BB33: 962 | BC33: 96979 | BD33: =-97714+391 -> -97323 | BG33: -344 | BH33: 962 | BI33: 553 | BL33: 1515 | BO33: -344 | BP33: 1515 | BQ33: =+(-344*0.0057*90/365)+(-344*0.0102*91/365)+(-344*0.0202*92/365)+(-344*0.0387*92/365) -> -6.465315068 | BR33: =+(-344*0.0473*120/365) -> -5.349435616 | BS33: 1503.185249 | BT33: 1159.185249 | BU33: Yes | BV33: -106940 | BW33: -108111 | BX33: Please provide an explanation of the variance in the Manager's Summary
C34: Disposition and Recovery/Refund of Regulatory Balances (2019)3 | D34: 1595 | I34: 0 | N34: 0 | O34: 0 | S34: 0 | T34: 0 | X34: 0 | Y34: 0 | AC34: 0 | AD34: 0 | AH34: 0 | AI34: 0 | AM34: 0 | AN34: 0 | AR34: 0 | AS34: 0 | AW34: 0 | AX34: 0 | BB34: 0 | BC34: 0 | BG34: 0 | BH34: 0 | BL34: 0 | BO34: 0 | BP34: 0 | BS34: 0 | BT34: 0 | BU34: No | BV34: 0 | BW34: 0
C35: Disposition and Recovery/Refund of Regulatory Balances (2020)3 | D35: 1595 | I35: 0 | N35: 0 | O35: 0 | S35: 0 | T35: 0 | X35: 0 | Y35: 0 | AC35: 0 | AD35: 0 | AH35: 0 | AI35: 0 | AM35: 0 | AN35: 0 | AR35: 0 | AS35: 0 | AW35: 0 | AX35: 0 | BB35: 0 | BC35: 0 | BG35: 0 | BH35: 0 | BL35: 0 | BO35: 0 | BP35: 0 | BS35: 0 | BT35: 0 | BU35: No | BV35: 0 | BW35: 0
C36: Disposition and Recovery/Refund of Regulatory Balances (2021)3 | D36: 1595 | I36: 0 | N36: 0 | O36: 0 | S36: 0 | T36: =N36 -> 0 | X36: 0 | Y36: 0 | AC36: 0 | AD36: 0 | AH36: 0 | AI36: 0 | AM36: 0 | AN36: 0 | AR36: 0 | AS36: 0 | AW36: 0 | AX36: 0 | BB36: 0 | BC36: 0 | BG36: 0 | BH36: 0 | BL36: 0 | BO36: 0 | BP36: 0 | BS36: 0 | BT36: 0 | BU36: No | BW36: 0
C37: Disposition and Recovery/Refund of Regulatory Balances (2022)3 Not to be disposed of until two years after rate rider has expired and that balance has been audited. Refer to the Filing Requirements for disposition eligibility. | D37: 1595 | I37: 0 | N37: 0 | O37: 0 | S37: 0 | T37: 0 | X37: 0 | Y37: 0 | AC37: 0 | AD37: 0 | AH37: 0 | AI37: 0 | AM37: 0 | AN37: 0 | AR37: 0 | AS37: 0 | AW37: 0 | AX37: 0 | BB37: 0 | BC37: 0 | BG37: 0 | BH37: 0 | BL37: 0 | BO37: 0 | BP37: 0 | BS37: 0 | BT37: 0 | BU37: No | BV37: 440940.36 | BW37: =ROUND(BV37-SUM(BG37,BL37),2) -> 440940.36 | BX37: Please provide an explanation of the variance in the Manager's Summary
C39: RSVA - Global Adjustment requested for disposition | D39: 1589 | E39: =E29 -> 0 | F39: =F29 -> 0 | G39: 0 | H39: -750450 | I39: -750450 | J39: 0 | K39: 0 | L39: 0 | M39: 123518 | N39: 123518 | O39: =O29 -> -750450 | P39: 0 | Q39: 0 | R39: 0 | S39: -750450 | T39: 123518 | U39: 2425 | V39: 0 | W39: 0 | X39: 125943 | Y39: =Y29 -> -750450 | Z39: 0 | AA39: 0 | AB39: 0 | AC39: -750450 | AD39: 125943 | AE39: 3763 | AF39: 0 | AG39: 0 | AH39: 129706 | AI39: =AI29 -> -750450 | AJ39: 0 | AK39: 0 | AL39: 0 | AM39: -750450 | AN39: 129706 | AO39: 4541 | AP39: 0 | AQ39: 0 | AR39: 134247 | AS39: =AS29 -> -750450 | AT39: 0 | AU39: 0 | AV39: 0 | AW39: -750450 | AX39: 134247 | AY39: 2778 | AZ39: 0 | BA39: 0 | BB39: 137025 | BC39: =BC29 -> -750450 | BD39: 0 | BE39: 0 | BF39: 0 | BG39: -750450 | BH39: 137025 | BI39: 1152 | BJ39: 0 | BK39: 0 | BL39: 138177 | BM39: =BM29 -> -750450 | BN39: =BN29 -> 138561 | BO39: 0 | BP39: -384 | BQ39: 2611.423452 | BR39: 2160.705468 | BS39: 4388.128921 | BT39: 4388.128921 | BV39: =BV29 -> 4203553 | BW39: =ROUND(BV39-SUM(BG39,BL39),2) -> 4815826
C40: Total Group 1 Balance excluding Account 1589 - Global Adjustment requested for disposition | E40: =E41-E29 -> 0 | F40: =F41-F29 -> 0 | G40: 0 | H40: -322292 | I40: -322292 | J40: 0 | K40: 0 | L40: 0 | M40: -123517 | N40: -123517 | O40: -322292 | P40: 0 | Q40: 0 | R40: 0 | S40: -322292 | T40: -123517 | U40: -15023 | V40: 0 | W40: 0 | X40: -138540 | Y40: -322292 | Z40: 0 | AA40: 0 | AB40: 0 | AC40: -322292 | AD40: -138540 | AE40: -15023 | AF40: 0 | AG40: 0 | AH40: -153563 | AI40: -322292 | AJ40: 0 | AK40: 0 | AL40: 0 | AM40: -322292 | AN40: -153563 | AO40: -18128 | AP40: 0 | AQ40: 0 | AR40: -171691 | AS40: -322292 | AT40: -150614 | AU40: -247593 | AV40: 328826 | AW40: 103513 | AX40: -171691 | AY40: -10128 | AZ40: 0 | BA40: 9972 | BB40: -171847 | BC40: 103513 | BD40: 1103777.44 | BE40: 328826 | BF40: 0 | BG40: 878464.44 | BH40: -171847 | BI40: 731.95 | BJ40: 9972 | BK40: 0 | BL40: -181087.05 | BM40: 224911 | BN40: -173887 | BO40: 653553.44 | BP40: -7200.05 | BQ40: 6225.891671 | BR40: =BR41-BR29 -> 5151.335441 | BS40: =BS41-BS29 -> 4177.177112 | BT40: =SUM(BT21:BT37)-BT29 -> 657730.6171 | BV40: =SUM(BV21:BV37)-BV29-BV24-BV25 -> -5804552.64 | BW40: =ROUND(BV40-SUM(BG40,BL40),2) -> -6501930.03
C41: Total Group 1 Balance requested for disposition | E41: =SUM(E21:E37) -> 0 | F41: =SUM(F21:F37) -> 0 | G41: 0 | H41: -1072742 | I41: -1072742 | J41: 0 | K41: 0 | L41: 0 | M41: 1 | N41: 1 | O41: -1072742 | P41: 0 | Q41: 0 | R41: 0 | S41: -1072742 | T41: 1 | U41: -12598 | V41: 0 | W41: 0 | X41: -12597 | Y41: -1072742 | Z41: 0 | AA41: 0 | AB41: 0 | AC41: -1072742 | AD41: -12597 | AE41: -11260 | AF41: 0 | AG41: 0 | AH41: -23857 | AI41: -1072742 | AJ41: 0 | AK41: 0 | AL41: 0 | AM41: -1072742 | AN41: -23857 | AO41: -13587 | AP41: 0 | AQ41: 0 | AR41: -37444 | AS41: -1072742 | AT41: -150614 | AU41: -247593 | AV41: 328826 | AW41: -646937 | AX41: -37444 | AY41: -7350 | AZ41: 0 | BA41: 9972 | BB41: -34822 | BC41: -646937 | BD41: 1103777.44 | BE41: 328826 | BF41: 0 | BG41: 128014.44 | BH41: -34822 | BI41: 1883.95 | BJ41: 9972 | BK41: 0 | BL41: -42910.05 | BM41: -525539 | BN41: -35326 | BO41: 653553.44 | BP41: -7584.05 | BQ41: 8837.315123 | BR41: =SUM(BR21:BR37) -> 7312.04091 | BS41: =SUM(BS21:BS37) -> 8565.306033 | BT41: =SUM(BT39,BT40) -> 662118.746 | BV41: =SUM(BV39,BV40) -> -1600999.64 | BW41: =ROUND(BV41-SUM(BG41,BL41),2) -> -1686104.03
C43: RSVA - Global Adjustment | E43: =E29 -> 0 | F43: =F29 -> 0 | G43: 0 | H43: -750450 | I43: -750450 | J43: 0 | K43: 0 | L43: 0 | M43: 123518 | N43: 123518 | O43: -750450 | P43: 0 | Q43: 0 | R43: 0 | S43: -750450 | T43: 123518 | U43: 2425 | V43: 0 | W43: 0 | X43: 125943 | Y43: -750450 | Z43: 0 | AA43: 0 | AB43: 0 | AC43: -750450 | AD43: 125943 | AE43: 3763 | AF43: 0 | AG43: 0 | AH43: 129706 | AI43: -750450 | AJ43: 0 | AK43: 0 | AL43: 0 | AM43: -750450 | AN43: 129706 | AO43: 4541 | AP43: 0 | AQ43: 0 | AR43: 134247 | AS43: -750450 | AT43: 0 | AU43: 0 | AV43: 0 | AW43: -750450 | AX43: 134247 | AY43: 2778 | AZ43: 0 | BA43: 0 | BB43: 137025 | BC43: -750450 | BD43: 0 | BE43: 0 | BF43: 0 | BG43: -750450 | BH43: 137025 | BI43: 1152 | BJ43: 0 | BK43: 0 | BL43: 138177 | BM43: -750450 | BN43: 138561 | BO43: 0 | BP43: -384 | BQ43: 2611.423452 | BR43: =BR29 -> 2160.705468 | BS43: =BS29 -> 4388.128921
C44: Total Group 1 Balance excluding Account 1589 - Global Adjustment | E44: =SUM(E21:E37)-E29 -> 0 | F44: =SUM(F21:F37)-F29 -> 0 | G44: 0 | H44: -322292 | I44: -322292 | J44: 0 | K44: 0 | L44: 0 | M44: -123517 | N44: -123517 | O44: -322292 | P44: 0 | Q44: 0 | R44: 0 | S44: -322292 | T44: -123517 | U44: -15023 | V44: 0 | W44: 0 | X44: -138540 | Y44: -322292 | Z44: 0 | AA44: 0 | AB44: 0 | AC44: -322292 | AD44: -138540 | AE44: -15023 | AF44: 0 | AG44: 0 | AH44: -153563 | AI44: -322292 | AJ44: 0 | AK44: 0 | AL44: 0 | AM44: -322292 | AN44: -153563 | AO44: -18128 | AP44: 0 | AQ44: 0 | AR44: -171691 | AS44: -322292 | AT44: -150614 | AU44: -247593 | AV44: 328826 | AW44: 103513 | AX44: -171691 | AY44: -10128 | AZ44: 0 | BA44: 9972 | BB44: -171847 | BC44: 103513 | BD44: 1103777.44 | BE44: 328826 | BF44: 0 | BG44: 878464.44 | BH44: -171847 | BI44: 731.95 | BJ44: 9972 | BK44: 0 | BL44: -181087.05 | BM44: 224911 | BN44: -173887 | BO44: 653553.44 | BP44: -7200.05 | BQ44: 6225.891671 | BR44: =SUM(BR21:BR37)-BR29 -> 5151.335441 | BS44: =SUM(BS21:BS37)-BS29 -> 4177.177112
C45: Total Group 1 Balance | E45: =SUM(E43:E44) -> 0 | F45: =SUM(F43:F44) -> 0 | G45: 0 | H45: -1072742 | I45: -1072742 | J45: 0 | K45: 0 | L45: 0 | M45: 1 | N45: 1 | O45: -1072742 | P45: 0 | Q45: 0 | R45: 0 | S45: -1072742 | T45: 1 | U45: -12598 | V45: 0 | W45: 0 | X45: -12597 | Y45: -1072742 | Z45: 0 | AA45: 0 | AB45: 0 | AC45: -1072742 | AD45: -12597 | AE45: -11260 | AF45: 0 | AG45: 0 | AH45: -23857 | AI45: -1072742 | AJ45: 0 | AK45: 0 | AL45: 0 | AM45: -1072742 | AN45: -23857 | AO45: -13587 | AP45: 0 | AQ45: 0 | AR45: -37444 | AS45: -1072742 | AT45: -150614 | AU45: -247593 | AV45: 328826 | AW45: -646937 | AX45: -37444 | AY45: -7350 | AZ45: 0 | BA45: 9972 | BB45: -34822 | BC45: -646937 | BD45: 1103777.44 | BE45: 328826 | BF45: 0 | BG45: 128014.44 | BH45: -34822 | BI45: 1883.95 | BJ45: 9972 | BK45: 0 | BL45: -42910.05 | BM45: -525539 | BN45: -35326 | BO45: 653553.44 | BP45: -7584.05 | BQ45: 8837.315123 | BR45: =SUM(BR43:BR44) -> 7312.04091 | BS45: =SUM(BS43:BS44) -> 8565.306033 | BV45: =SUM(BV41,BV43) -> -1600999.64
A46: 29 | C46: LRAM Variance Account (only input amounts if applying for disposition of this account) | D46: 1568 | S46: =O46+P46-Q46+SUM(R46:R46) -> 0 | X46: =T46+U46-V46+W46 -> 0 | Y46: =S46 -> 0 | AC46: =Y46+Z46-AA46+SUM(AB46:AB46) -> 0 | AD46: =X46 -> 0 | AH46: =AD46+AE46-AF46+AG46 -> 0 | AI46: =AC46 -> 0 | AM46: =AI46+AJ46-AK46+SUM(AL46:AL46) -> 0 | AN46: =AH46 -> 0 | AR46: =AN46+AO46-AP46+AQ46 -> 0 | AS46: =AM46 -> 0 | AW46: =AS46+AT46-AU46+SUM(AV46:AV46) -> 0 | AX46: =AR46 -> 0 | BB46: =AX46+AY46-AZ46+BA46 -> 0 | BC46: =AW46 -> 0 | BE46: 0 | BG46: =BC46+BD46-BE46+SUM(BF46:BF46) -> 0 | BH46: =BB46 -> 0 | BL46: =BH46+BI46-BJ46+BK46 -> 0 | BO46: =BG46-BM46 -> 0 | BP46: =BL46-BN46 -> 0 | BS46: =BP46+BQ46+BR46 -> 0 | BT46: =SUM(BO46:BR46) -> 0 | BV46: 0 | BW46: =ROUND(BV46-SUM(BG46,BL46),2) -> 0
C48: Total Group 1 Balance including Account 1568 - LRAMVA requested for disposition | E48: =SUM(E41,E46) -> 0 | F48: =SUM(F41,F46) -> 0 | G48: 0 | H48: -1072742 | I48: -1072742 | J48: 0 | K48: 0 | L48: 0 | M48: 1 | N48: 1 | O48: -1072742 | P48: 0 | Q48: 0 | R48: 0 | S48: -1072742 | T48: 1 | U48: -12598 | V48: 0 | W48: 0 | X48: -12597 | Y48: -1072742 | Z48: 0 | AA48: 0 | AB48: 0 | AC48: -1072742 | AD48: -12597 | AE48: -11260 | AF48: 0 | AG48: 0 | AH48: -23857 | AI48: -1072742 | AJ48: 0 | AK48: 0 | AL48: 0 | AM48: -1072742 | AN48: -23857 | AO48: -13587 | AP48: 0 | AQ48: 0 | AR48: -37444 | AS48: -1072742 | AT48: -150614 | AU48: -247593 | AV48: 328826 | AW48: -646937 | AX48: -37444 | AY48: -7350 | AZ48: 0 | BA48: 9972 | BB48: -34822 | BC48: -646937 | BD48: 1103777.44 | BE48: 328826 | BF48: 0 | BG48: 128014.44 | BH48: -34822 | BI48: 1883.95 | BJ48: 9972 | BK48: 0 | BL48: -42910.05 | BM48: -525539 | BN48: -35326 | BO48: 653553.44 | BP48: -7584.05 | BQ48: 8837.315123 | BR48: =SUM(BR41,BR46) -> 7312.04091 | BS48: =SUM(BS41,BS46) -> 8565.306033 | BT48: =SUM(BT41,BT46) -> 662118.746 | BV48: =SUM(BV41,BV46) -> -1600999.64 | BW48: =ROUND(SUM(BW41,BW46),2) -> -1686104.03
C51: For all OEB-Approved dispositions, please ensure that the disposition amount has the same sign (e.g: debit balances are to have a positive figure and credit balance are to have a negative figure) as per the related OEB decision.
B54: 1 | C54: Please provide explanations for the nature of the adjustments. If the adjustment relates to previously OEB-Approved disposed balances, please provide amounts for adjustments and include supporting documentations.
B55: 2 | C55: 1) If the LDC's rate year begins on January 1, 2023, the projected interest is recorded from January 1, 2022 to December 31, 2022 on the December 31, 2021 balances adjusted to remove balances approved for disposition in the 2022 rate decision. 2) If the LDC's rate year begins on May 1, 2023, the projected interest is recorded from January 1, 2022 to April 30, 2023 on the December 31, 2021 balances adjusted to remove balances approved for disposition in the 2022 rate decision.
B56: 3 | C56: The individual sub-accounts as well as the total for all Account 1595 sub-accounts is to agree to the RRR data. Differences need to be explained. For each Account 1595 sub-account, the transfer of the balance approved for disposition into Account 1595 is to be recorded in "OEB Approved Disposition" column. The recovery/refund is to be recorded in the "Transaction" column. Any vintage year of Account 1595 is only to be disposed once on a final basis. No further dispositions of these accounts are generally expected thereafter, unless justified by the distributor. Refer to Filing Requirements for disposition eligibility of the sub-accounts. Select "yes" column BU if the sub-account is requested for disposition. Note that Account 1595 (2020), (2021), (2022) will not be eligible for disposition in the 2023 rate application.
B57: 4 | C57: New accounting guidance effective January 1, 2019 for Accounts 1588 and 1589 was issued Feb. 21, 2019 titled Accounting Procedures Handbook Update - Accounting Guidance Related to Commodity Pass-Through Accounts 1588 & 1589. The amount in the "Transactions" column in this DVA Continuity Schedule are to equal the transactions in the General Ledger (excluding any amounts approved for disposition, which is shown separately in the "OEB Approved Disposition" columns). Any true-ups/adjustments/reversals needed to derive the claim amount must be shown separately in the "Principal Adjustments" columns of this DVA Continuity Schedule.
B58: 5 | C58: RRR balance for Account 1580 RSVA - Wholesale Market Service Charge should equal to the control account as reported in the RRR. This would include the balance for Account 1580,Variance WMS – Sub-account CBR Class B.

Sheet 2016 List (hidden)
A1: Alectra Utilities Corporation | B1: HHPNS717 | I1: RESIDENTIAL SERVICE CLASSIFICATION | Q1: RESIDENTIAL SERVICE CLASSIFICATION | X1: 8 | Y1: 0
A2: Algoma Power Inc. | B2: WKBSV849 | C2: Brampton Rate Zone | D2: X | I2: GENERAL SERVICE LESS THAN 50 KW SERVICE CLASSIFICATION | Q2: GENERAL SERVICE LESS THAN 50 KW SERVICE CLASSIFICATION | AA2: Retail Transmission Rate - Line and Transformation Connection Service Rate
A3: Atikokan Hydro Inc. | B3: NJYBW716 | C3: Enersource Rate Zone | D3: X | I3: GENERAL SERVICE 50 to 4,999 kW SERVICE CLASSIFICATION | Q3: GENERAL SERVICE 50 to 4,999 kW SERVICE CLASSIFICATION | AA3: Retail Transmission Rate - Line and Transformation Connection Service Rate - < 1,000 kW
A4: Bluewater Power Distribution Corporation | B4: GQQHM388 | C4: Horizon Utilities Rate Zone | D4: X | I4: UNMETERED SCATTERED LOAD SERVICE CLASSIFICATION | Q4: UNMETERED SCATTERED LOAD SERVICE CLASSIFICATION | AA4: Retail Transmission Rate - Line and Transformation Connection Service Rate - Interval Metered
A5: Brantford Power Inc. | B5: SFXZP935 | C5: PowerStream Rate Zone | D5: X | I5: SENTINEL LIGHTING SERVICE CLASSIFICATION | Q5: SENTINEL LIGHTING SERVICE CLASSIFICATION | AA5: Retail Transmission Rate - Line and Transformation Connection Service Rate - Interval Metered (1,000 to 4,999 kW)
A6: Burlington Hydro Inc. | B6: OARZC118 | C6: Guelph Rate Zone | D6: X | I6: STREET LIGHTING SERVICE CLASSIFICATION | Q6: STREET LIGHTING SERVICE CLASSIFICATION | AA6: Retail Transmission Rate - Line and Transformation Connection Service Rate - Interval Metered < 1,000 kW
A7: Canadian Niagara Power Inc. | B7: HJHBH994 | I7: EMBEDDED DISTRIBUTOR SERVICE CLASSIFICATION | Q7: EMBEDDED DISTRIBUTOR SERVICE CLASSIFICATION | AA7: Retail Transmission Rate - Line and Transformation Connection Service Rate - Interval Metered > 1,000 kW
A8: Centre Wellington Hydro Ltd. | B8: KQEEH473 | D8: X | I8: microFIT SERVICE CLASSIFICATION | AA8: Retail Transmission Rate - Line Connection Service Rate
A9: Chapleau Public Utilities Corporation | B9: CPEFQ593 | C9: Goderich Rate Zone | AA9: Retail Transmission Rate - Transformation Connection Service Rate
A10: Cooperative Hydro Embrun Inc. | B10: QXHJU641 | C10: Main Rate Zone | D10: X
A11: E.L.K. Energy Inc. | B11: AVXSO594 | D11: X
A12: Elexicon Energy Inc. | B12: JMNNR431 | C12: Whitby Rate Zone | D12: X
A13: Energy+ Inc. | B13: JKBZG525 | C13: Veridian Rate Zone
A14: Entegrus Powerlines Inc. | B14: YEOQG654 | D14: X
A15: ENWIN Utilities Ltd. | B15: PTLUC812 | D15: X
A16: EPCOR Electricity Distribution Ontario Inc. | B16: ADICB565 | D16: X
A17: ERTH Power Corporation | B17: LRECV427 | D17: X
A18: Espanola Regional Hydro Distribution Corporation | B18: KTCNY552 | D18: X
A19: Essex Powerlines Corporation | B19: YEPCI143 | C19: Former Orillia Power Distribution Corporation Service Area
A20: Festival Hydro Inc. | B20: GRHTW113 | C20: Former Peterborough Distribution Inc. Service Area | D20: X
A21: Fort Frances Power Corporation | B21: GMGHU415 | C21: Former Haldimand County Hydro Inc. Service Area | AA21: Retail Transmission Rate - Network Service Rate
A22: Greater Sudbury Hydro Inc. | B22: YTPWF351 | C22: Former Norfolk Power Distribution Inc. Service Area | AA22: Retail Transmission Rate - Network Service Rate - < 1,000 kW
A23: Grimsby Power Incorporated | B23: YCYKQ642 | C23: Former Woodstock Hydro Services Inc. Service Area | AA23: Retail Transmission Rate - Network Service Rate - Interval Metered
A24: Halton Hills Hydro Inc. | B24: ADZFM459 | AA24: Retail Transmission Rate - Network Service Rate - Interval Metered (1,000 to 4,999 kW)
A25: Hearst Power Distribution Co. Ltd. | B25: RVWKN794 | C25: For Former St. Thomas Energy Rate Zone | D25: X | AA25: Retail Transmission Rate - Network Service Rate - Interval Metered < 1,000 kW
A26: Hydro 2000 Inc. | B26: KESKM585 | C26: For Entegrus-Main Rate Zone
A27: Hydro Hawkesbury Inc. | B27: MQFNL784 | AA27: Retail Transmission Rate - Network Service Rate - Interval Metered > 1,000 kW
A28: Hydro One Networks Inc. | B28: FNDHH648 | C28: For Former Midland Power Utility Rate Zone
A29: Hydro Ottawa Limited | B29: PTREM828 | C29: For Newmarket-Tay Power Main Rate Zone | D29: X
A30: InnPower Corporation | B30: UBBYF452
A31: Kingston Hydro Corporation | B31: NSBED625
A32: Kitchener-Wilmot Hydro Inc. | B32: TXKTT167
A33: Lakefront Utilities Inc. | B33: ZHKLA874 | C33: Kenora Rate Zone
A34: Lakeland Power Distribution Ltd. | B34: YLJHT264 | C34: Thunder Bay Rate Zone | D34: X
A35: London Hydro Inc. | B35: YLCEC559
A36: Milton Hydro Distribution Inc. | B36: NHKJF259 | D36: X
A37: Newmarket-Tay Power Distribution Ltd. | B37: SLRXO177 | D37: X
A38: Niagara Peninsula Energy Inc. | B38: UIFEM157
A39: Niagara-on-the-Lake Hydro Inc. | B39: RUZIU984
A40: North Bay Hydro Distribution Limited | B40: KSUYD122 | D40: X
A41: Northern Ontario Wires Inc. | B41: QHCKN852 | D41: X
A42: Oakville Hydro Electricity Distribution Inc. | B42: FUIJX538
A43: Orangeville Hydro Limited | B43: PWKJP953
A44: Orillia Power Distribution Corporation | B44: JEGGW178
A45: Oshawa PUC Networks Inc. | B45: TVKSH414
A46: Ottawa River Power Corporation | B46: DUISI693
A47: Peterborough Distribution Incorporated | B47: PQZCY963 | D47: X
A48: PUC Distribution Inc. | B48: GTLBW445
A49: Renfrew Hydro Inc. | B49: XCFPH269 | D49: X
A50: Rideau St. Lawrence Distribution Inc. | B50: MLWYG784 | D50: X
A51: Sioux Lookout Hydro Inc. | B51: QDKIF127 | D51: X
A52: Synergy North Corporation | B52: AMZEN437
A53: Tillsonburg Hydro Inc. | B53: ACEVX242
A54: Toronto Hydro-Electric System Limited | B54: DSPWZ318 | D54: X
A55: Wasaga Distribution Inc. | B55: OLIUU862 | D55: X
A56: Waterloo North Hydro Inc. | B56: NIOJF461
A57: Welland Hydro-Electric System Corp. | B57: ZYZFO848
A58: Wellington North Power Inc. | B58: ASEGZ471 | D58: X
A59: Westario Power Inc. | B59: IOKHC383 | D59: X
D61: X
D62: X
D66: X
D68: X
D71: X
D72: X

Sheet 4. Billing Det. for Def-Var
R1: =IF(C31="YES", "YES", "NO") -> YES
B2: =IF(J4="Yes",TRUE,FALSE) -> FALSE | G2: Data on this worksheet has been populated using your most recent RRR filing.
G3: If you have identified any issues, please contact the OEB.
G4: Have you confirmed the accuracy of the data below? | J4: No
G6: If a distributor uses the actual GA price to bill non-RPP Class B customers for an entire rate class, it must exclude these customers from the allocation of the GA balance and the calculation of the resulting rate riders. These rate classes are not to be charged/refunded the general GA rate rider as they did not contribute to the GA balance.
G12: Please contact the OEB to make adjustments to the IRM rate generator for this situation.
C15: Total Metered kWh | D15: Total Metered kW | E15: Metered kWh for Non-RPP Customers (excluding WMP) | F15: Metered kW for Non-RPP Customers (excluding WMP) | G15: Metered kWh for Wholesale Market Participants (WMP) | H15: Metered kW for Wholesale Market Participants (WMP) | I15: Total Metered kWh less WMP consumption (if applicable) | J15: Total Metered kW less WMP consumption (if applicable) | K15: 1595 Recovery Proportion (2009) 1 | L15: 1595 Recovery Proportion (2016 and pre-201) 1 | M15: 1595 Recovery Proportion (2017) 1 | N15: 1595 Recovery Proportion (2018) 1 | O15: 1595 Recovery Proportion (2019) 1 | P15: 1595 Recovery Proportion (2020) 1 | Q15: 1595 Recovery Proportion (2021) 1 | R15: 1595 Recovery Proportion (2022) 1 | S15: 1568 LRAM Variance Account Class Allocation ($ amounts) | T15: Number of Customers for Residential and GS<50 classes3
A16: Rate Class | B16: Unit
A17: RESIDENTIAL SERVICE CLASSIFICATION | B17: kWh | C17: 106359838 | D17: 0 | E17: 1937382 | F17: 0 | G17: 0 | H17: 0 | I17: =C17-G17 -> 106359838 | J17: 0 | T17: 10963
A18: GENERAL SERVICE LESS THAN 50 KW SERVICE CLASSIFICATION | B18: kWh | C18: 27377213 | D18: 0 | E18: 6104658 | F18: 0 | G18: 0 | H18: 0 | I18: 27377213 | J18: 0 | T18: 1158
A19: GENERAL SERVICE 50 to 4,999 kW SERVICE CLASSIFICATION | B19: kW | C19: 56544701 | D19: 231007 | E19: 16475346 | F19: 0 | I19: 56544701 | J19: 231007
A20: UNMETERED SCATTERED LOAD SERVICE CLASSIFICATION | B20: kWh | C20: 248173 | D20: 0 | E20: 248173 | F20: 0 | G20: 0 | H20: 0 | I20: 248173 | J20: 0
A21: SENTINEL LIGHTING SERVICE CLASSIFICATION | B21: kW | C21: 137713 | D21: 357 | E21: 137713 | F21: 357 | G21: 0 | H21: 0 | I21: 137713 | J21: 357
A22: STREET LIGHTING SERVICE CLASSIFICATION | B22: kW | C22: 1265084 | D22: 3399 | E22: 1265084 | F22: 3399 | G22: 0 | H22: 0 | I22: 1265084 | J22: 3399
A23: EMBEDDED DISTRIBUTOR SERVICE CLASSIFICATION | B23: kW | C23: 50859469 | D23: 115598 | E23: 50859469 | F23: 115598 | G23: 0 | H23: 0 | I23: 50859469 | J23: 115598
B24: Total | C24: =SUM($C$17:$C$23) -> 242792191 | D24: =SUM($D$17:$D$23) -> 350361 | E24: =SUM($E$17:$E$23) -> 77027825 | F24: =SUM($F$17:$F$23) -> 119354 | G24: =SUM($G$17:$G$23) -> 0 | H24: =SUM($H$17:$H$23) -> 0 | I24: =SUM($I$17:$I$23) -> 242792191 | J24: =SUM($J$17:$J$23) -> 350361 | K24: =SUM($K$17:$K$23) -> 0 | L24: =SUM($L$17:$L$23) -> 0 | M24: =SUM($M$17:$M$23) -> 0 | N24: =SUM($N$17:$N$23) -> 0 | O24: =SUM($O$17:$O$23) -> 0 | P24: =SUM($P$17:$P$23) -> 0 | Q24: =SUM($Q$17:$Q$23) -> 0 | R24: =SUM($R$17:$R$23) -> 0 | S24: =SUM($S$17:$S$23) -> 0 | T24: =SUM($T$17:$T$23) -> 12121
L25: =IF($L$24<>1,"Does not equal 100%","") -> Does not equal 100% | M25: =IF($M$24<>1,"Does not equal 100%","") -> Does not equal 100% | N25: =IF($N$24<>1,"Does not equal 100%","") -> Does not equal 100% | O25: =IF($O$24<>1,"Does not equal 100%","") -> Does not equal 100% | P25: =IF($P$24<>1,"Does not equal 100%","") -> Does not equal 100% | Q25: =IF($Q$24<>1,"Does not equal 100%","") -> Does not equal 100% | R25: =IF($R$24<>1,"Does not equal 100%","") -> Does not equal 100%
A26: Threshold Test
A27: Total Claim (including Account 1568) | C27: 646750.73
A28: Total Claim for Threshold Test (All Group 1 Accounts) | C28: 646750.73
A29: Threshold Test (Total claim per kWh) 2 | C29: 0.002663803672
A31: Currently, the threshold test has been met and the default is that Group 1 account balances will be disposed. If you are requesting not to dispose of the Group 1 account balances, please select NO and provide detailed reasons in the manager's summary. | C31: YES
A35: 1 Residual Account balance to be allocated to rate classes in proportion to the recovery share as established when rate riders were implemented.
A36: 2 The Threshold Test does not include the amount in 1568.
A37: 3 The proportion of customers for the Residential and GS<50 Classes will be used to allocate Account 1551.

Sheet 5. Allocating Def-Var Balances
A11: No input required. This workshseet allocates the deferral/variance account balances (Group 1 and Account 1568) to the appropriate classes as per EDDVAR dated July 31, 2009.
A13: Allocation of Group 1 Accounts (including Account 1568)
C14: % of Total kWh | D14: % of Total non-RPP kWh | E14: % of Customer Numbers ** | F14: % of Total kWh adjusted for WMP | I14: allocated based on Total less WMP | N14: allocated based on Total less WMP | O14: 1595_(2009) | P14: 1595_(2016 and pre-2016) | Q14: 1595_(2017) | R14: 1595_(2018) | S14: 1595_(2019) | T14: 1595_(2020) | U14: 1595_(2021) | V14: 1595_(2022) | W14: 1568
A15: Rate Class | G15: 1550 | H15: 1551 | I15: 1580 | J15: 1580 (Class A) | K15: 1580 (Class B) | L15: 1584 | M15: 1586 | N15: 1588
A17: RESIDENTIAL SERVICE CLASSIFICATION | C17: 0.4380694353 | D17: 0.02515171628 | E17: 0.9044633281 | F17: 0.4380694353 | G17: 228542.765 | H17: -395.901688 | I17: 57942.43664 | J17: 0 | L17: -59501.84117 | M17: 56530.11831 | N17: 0 | P17: 0 | Q17: 0 | R17: 0 | S17: 0 | T17: 0 | U17: 0 | V17: 0 | W17: 0
A18: GENERAL SERVICE LESS THAN 50 KW SERVICE CLASSIFICATION | C18: 0.1127598581 | D18: 0.07925263371 | E18: 0.09553667189 | F18: 0.1127598581 | G18: 58827.31749 | H18: -41.81831202 | I18: 14914.48708 | J18: 0 | L18: -15315.8806 | M18: 14550.95381 | N18: 0 | P18: 0 | Q18: 0 | R18: 0 | S18: 0 | T18: 0 | U18: 0 | V18: 0 | W18: 0
A19: GENERAL SERVICE 50 to 4,999 kW SERVICE CLASSIFICATION | C19: 0.2328934088 | D19: 0.213888241 | E19: 0 | F19: 0.2328934088 | G19: 121501.5231 | H19: 0 | I19: 30804.27553 | J19: 0 | L19: -31633.31086 | M19: 30053.4365 | N19: 0 | P19: 0 | Q19: 0 | R19: 0 | S19: 0 | T19: 0 | U19: 0 | V19: 0 | W19: 0
A20: UNMETERED SCATTERED LOAD SERVICE CLASSIFICATION | C20: 0.0010221622 | D20: 0.00322186171 | E20: 0 | F20: 0.0010221622 | G20: 533.2665477 | H20: 0 | I20: 135.1990432 | J20: 0 | L20: -138.8376544 | M20: 131.9036331 | N20: 0 | P20: 0 | Q20: 0 | R20: 0 | S20: 0 | T20: 0 | U20: 0 | V20: 0 | W20: 0
A21: SENTINEL LIGHTING SERVICE CLASSIFICATION | C21: 0.0005672052278 | D21: 0.001787834461 | E21: 0 | F21: 0.0005672052278 | G21: 295.9134801 | H21: 0 | I21: 75.02293091 | J21: 0 | L21: -77.0420227 | M21: 73.19428394 | N21: 0 | P21: 0 | Q21: 0 | R21: 0 | S21: 0 | T21: 0 | U21: 0 | V21: 0 | W21: 0
A22: STREET LIGHTING SERVICE CLASSIFICATION | C22: 0.005210562971 | D22: 0.0164237274 | E22: 0 | F22: 0.005210562971 | G22: 2718.373785 | H22: 0 | I22: 689.1891798 | J22: 0 | L22: -707.7373251 | M22: 672.3905332 | N22: 0 | P22: 0 | Q22: 0 | R22: 0 | S22: 0 | T22: 0 | U22: 0 | V22: 0 | W22: 0
A23: EMBEDDED DISTRIBUTOR SERVICE CLASSIFICATION | C23: 0.2094773674 | D23: 0.6602739854 | E23: 0 | F23: 0.2094773674 | G23: 109285.2706 | H23: 0 | I23: 27707.08959 | J23: 0 | L23: -28452.77036 | M23: 27031.74294 | N23: 0 | P23: 0 | Q23: 0 | R23: 0 | S23: 0 | T23: 0 | U23: 0 | V23: 0 | W23: 0
A25: Total | C25: =SUM($C$17:$C$23) -> 1 | D25: =SUM($D$17:$D$23) -> 1 | E25: =SUM($E$17:$E$23) -> 1 | F25: =SUM($F$17:$F$23) -> 1 | G25: =SUM($G$17:$G$23) -> 521704.43 | H25: =SUM($H$17:$H$23) -> -437.72 | I25: =SUM($I$17:$I$23) -> 132267.7 | J25: =SUM($J$17:$J$23) -> 0 | K25: =SUM($K$17:$K$23) -> 0 | L25: =SUM($L$17:$L$23) -> -135827.42 | M25: =SUM($M$17:$M$23) -> 129043.74 | N25: =SUM($N$17:$N$23) -> 0 | O25: =SUM($O$17:$O$23) -> 0 | P25: =SUM($P$17:$P$23) -> 0 | Q25: =SUM($Q$17:$Q$23) -> 0 | R25: =SUM($R$17:$R$23) -> 0 | S25: =SUM($S$17:$S$23) -> 0 | T25: =SUM($T$17:$T$23) -> 0 | U25: =SUM($U$17:$U$23) -> 0 | V25: =SUM($V$17:$V$23) -> 0 | W25: =SUM($W$17:$W$23) -> 0
A28: ** Used to allocate Account 1551 as this account records the variances arising from the Smart Metering Entity Charges to Residential and GS<50 customers.

Sheet 6. Class A Consumption Data
A14: 1a | B14: The year Account 1589 GA was last disposed | C14: ='1. Information Sheet'!F34 -> 2016
C16: Years since Account 1589 GA balance was last disposed (up to 2016) | F16: 2016 | H16: 2015 | J16: 2014 | L16: 2013 | N16: 2012
A17: 1b | B17: The year Account 1580 CBR Class B was last disposed | C17: ='1. Information Sheet'!F42 -> 2020 | D17: Note that the sub-account was established in 2015.
A19: 2a | B19: Did you have any customers who transitioned between Class A and Class B (transition customers) during the period the Account 1589 GA balance accumulated (i.e. from the year after the balance was last disposed per #1a above to the current year requested for disposition)? | C19: Yes | D19: (If you received approval to dispose of the GA account balance as at December 31, 2018, the period the GA variance accumulated would be 2019 to 2021.)
A21: 2b | B21: Did you have any customers who transitioned between Class A and Class B (transition customers) during the period the Account 1580, sub-account CBR Class B balance accumulated (i.e. from the year after the balance was last disposed per #1b above to the current year requested for disposition)? | C21: Yes | D21: (If you received approval to dispose of the CBR Class B account balance as at December 31, 2018, the period the CBR Class B variance accumulated would be 2019 to 2021.)
A25: 3a | B25: Enter the number of transition customer you had during the period the Account 1589 GA or Account 1580 CBR B balance accumulated (i.e. from the year after the balance was last disposed per #1a/1b above to the current year requested for disposition). | C25: 1
C27: Transition Customers - Non-loss Adjusted Billing Determinants by Customer
C28: Customer | D28: Rate Class | F28: 2021 | H28: 2020 | J28: 2019 | L28: 2018 | N28: 2017
F29: July to December | G29: January to June | H29: July to December | I29: January to June | J29: July to December | K29: January to June | L29: July to December | M29: January to June | N29: July to December | O29: January to June
A30: =IF(AND(F32=G32,H32=I32,J32=K32,F32="A"),"2016 - kwh",IF(AND(F32=G32,H32=I32,J32<>K32,F32="A"),"2017 - kwh",IF(AND(F32=G32,H32<>I32,F32="A"),"2018 - kwh","N/A"))) -> N/A | B30: =IF(AND(F32="A",G32="A"),"A","") ->  | C30: Customer 1 | D30: GENERAL SERVICE 50 to 4,999 kW SERVICE CLASSIFICATION | E30: kWh | N30: 9065795 | O30: 8160896 | AA30: =IF(AND(F32=G32,H32=I32,F32="A"),"2016 - kwh","") ->  | AB30: =IF(OR(B30="2017 - kwh",B30="2018 - kwh"),"2016 - kwh","") -> 
A31: =IF(AND(F32=G32,H32=I32,J32=K32,F32="A"),"2016 - kw",IF(AND(F32=G32,H32=I32,J32<>K32,F32="A"),"2017 - kw",IF(AND(F32=G32,H32<>I32,F32="A"),"2018 - kw","N/A"))) -> N/A | B31: =IF(AND(F32="A",G32="A"),"A","") ->  | D31: =D30 & "kW" -> GENERAL SERVICE 50 to 4,999 kW SERVICE CLASSIFICATIONkW | E31: kW | N31: 28090 | O31: 27334 | AA31: =IF(AND(F32=G32,H32=I32,F32="A"),"2016 - kw","") ->  | AB31: =IF(OR(B31="2017 - kw",B31="2018 - kw"),"2016 - kw","") -> 
E32: Class A/B | N32: A | O32: B
A33: =IF(AND(F35=G35,H35=I35,J35=K35,F35="A"),"2016 - kwh",IF(AND(F35=G35,H35=I35,J35<>K35,F35="A"),"2017 - kwh",IF(AND(F35=G35,H35<>I35,F35="A"),"2018 - kwh","N/A"))) -> N/A | B33: =IF(AND(F35="A",G35="A"),"A","") ->  | C33: Customer 2 | E33: kWh | AA33: =IF(AND(F35=G35,H35=I35,F35="A"),"2016 - kwh","") ->  | AB33: =IF(OR(B33="2017 - kwh",B33="2018 - kwh"),"2016 - kwh","") -> 
A34: =IF(AND(F35=G35,H35=I35,J35=K35,F35="A"),"2016 - kw",IF(AND(F35=G35,H35=I35,J35<>K35,F35="A"),"2017 - kw",IF(AND(F35=G35,H35<>I35,F35="A"),"2018 - kw","N/A"))) -> N/A | B34: =IF(AND(F35="A",G35="A"),"A","") ->  | D34: =D33 & "kW" -> kW | E34: kW | AA34: =IF(AND(F35=G35,H35=I35,F35="A"),"2016 - kw","") ->  | AB34: =IF(OR(B34="2017 - kw",B34="2018 - kw"),"2016 - kw","") -> 
E35: Class A/B
A36: =IF(AND(F38=G38,H38=I38,J38=K38,F38="A"),"2016 - kwh",IF(AND(F38=G38,H38=I38,J38<>K38,F38="A"),"2017 - kwh",IF(AND(F38=G38,H38<>I38,F38="A"),"2018 - kwh","N/A"))) -> N/A | B36: =IF(AND(F38="A",G38="A"),"A","") ->  | C36: Customer 3 | E36: kWh | AA36: =IF(AND(F38=G38,H38=I38,F38="A"),"2016 - kwh","") ->  | AB36: =IF(OR(B36="2017 - kwh",B36="2018 - kwh"),"2016 - kwh","") -> 
A37: =IF(AND(F38=G38,H38=I38,J38=K38,F38="A"),"2016 - kw",IF(AND(F38=G38,H38=I38,J38<>K38,F38="A"),"2017 - kw",IF(AND(F38=G38,H38<>I38,F38="A"),"2018 - kw","N/A"))) -> N/A | B37: =IF(AND(F38="A",G38="A"),"A","") ->  | D37: =D36 & "kW" -> kW | E37: kW | AA37: =IF(AND(F38=G38,H38=I38,F38="A"),"2016 - kw","") ->  | AB37: =IF(OR(B37="2017 - kw",B37="2018 - kw"),"2016 - kw","") -> 
E38: Class A/B
A39: =IF(AND(F41=G41,H41=I41,J41=K41,F41="A"),"2016 - kwh",IF(AND(F41=G41,H41=I41,J41<>K41,F41="A"),"2017 - kwh",IF(AND(F41=G41,H41<>I41,F41="A"),"2018 - kwh","N/A"))) -> N/A | B39: =IF(AND(F41="A",G41="A"),"A","") ->  | C39: Customer 4 | E39: kWh | AA39: =IF(AND(F41=G41,H41=I41,F41="A"),"2016 - kwh","") ->  | AB39: =IF(OR(B39="2017 - kwh",B39="2018 - kwh"),"2016 - kwh","") -> 
A40: =IF(AND(F41=G41,H41=I41,J41=K41,F41="A"),"2016 - kw",IF(AND(F41=G41,H41=I41,J41<>K41,F41="A"),"2017 - kw",IF(AND(F41=G41,H41<>I41,F41="A"),"2018 - kw","N/A"))) -> N/A | B40: =IF(AND(F41="A",G41="A"),"A","") ->  | D40: =D39 & "kW" -> kW | E40: kW | AA40: =IF(AND(F41=G41,H41=I41,F41="A"),"2016 - kw","") ->  | AB40: =IF(OR(B40="2017 - kw",B40="2018 - kw"),"2016 - kw","") -> 
E41: Class A/B
A42: =IF(AND(F44=G44,H44=I44,J44=K44,F44="A"),"2016 - kwh",IF(AND(F44=G44,H44=I44,J44<>K44,F44="A"),"2017 - kwh",IF(AND(F44=G44,H44<>I44,F44="A"),"2018 - kwh","N/A"))) -> N/A | B42: =IF(AND(F44="A",G44="A"),"A","") ->  | C42: Customer 5 | E42: kWh | AA42: =IF(AND(F44=G44,H44=I44,F44="A"),"2016 - kwh","") ->  | AB42: =IF(OR(B42="2017 - kwh",B42="2018 - kwh"),"2016 - kwh","") -> 
A43: =IF(AND(F44=G44,H44=I44,J44=K44,F44="A"),"2016 - kw",IF(AND(F44=G44,H44=I44,J44<>K44,F44="A"),"2017 - kw",IF(AND(F44=G44,H44<>I44,F44="A"),"2018 - kw","N/A"))) -> N/A | B43: =IF(AND(F44="A",G44="A"),"A","") ->  | D43: =D42 & "kW" -> kW | E43: kW | AA43: =IF(AND(F44=G44,H44=I44,F44="A"),"2016 - kw","") ->  | AB43: =IF(OR(B43="2017 - kw",B43="2018 - kw"),"2016 - kw","") -> 
E44: Class A/B
A45: =IF(AND(F47=G47,H47=I47,J47=K47,F47="A"),"2016 - kwh",IF(AND(F47=G47,H47=I47,J47<>K47,F47="A"),"2017 - kwh",IF(AND(F47=G47,H47<>I47,F47="A"),"2018 - kwh","N/A"))) -> N/A | B45: =IF(AND(F47="A",G47="A"),"A","") ->  | C45: Customer 6 | E45: kWh | AA45: =IF(AND(F47=G47,H47=I47,F47="A"),"2016 - kwh","") ->  | AB45: =IF(OR(B45="2017 - kwh",B45="2018 - kwh"),"2016 - kwh","") -> 
A46: =IF(AND(F47=G47,H47=I47,J47=K47,F47="A"),"2016 - kw",IF(AND(F47=G47,H47=I47,J47<>K47,F47="A"),"2017 - kw",IF(AND(F47=G47,H47<>I47,F47="A"),"2018 - kw","N/A"))) -> N/A | B46: =IF(AND(F47="A",G47="A"),"A","") ->  | D46: =D45 & "kW" -> kW | E46: kW | AA46: =IF(AND(F47=G47,H47=I47,F47="A"),"2016 - kw","") ->  | AB46: =IF(OR(B46="2017 - kw",B46="2018 - kw"),"2016 - kw","") -> 
E47: Class A/B
A48: =IF(AND(F50=G50,H50=I50,J50=K50,F50="A"),"2016 - kwh",IF(AND(F50=G50,H50=I50,J50<>K50,F50="A"),"2017 - kwh",IF(AND(F50=G50,H50<>I50,F50="A"),"2018 - kwh","N/A"))) -> N/A | B48: =IF(AND(F50="A",G50="A"),"A","") ->  | C48: Customer 7 | E48: kWh | AA48: =IF(AND(F50=G50,H50=I50,F50="A"),"2016 - kwh","") ->  | AB48: =IF(OR(B48="2017 - kwh",B48="2018 - kwh"),"2016 - kwh","") -> 
A49: =IF(AND(F50=G50,H50=I50,J50=K50,F50="A"),"2016 - kw",IF(AND(F50=G50,H50=I50,J50<>K50,F50="A"),"2017 - kw",IF(AND(F50=G50,H50<>I50,F50="A"),"2018 - kw","N/A"))) -> N/A | B49: =IF(AND(F50="A",G50="A"),"A","") ->  | D49: =D48 & "kW" -> kW | E49: kW | AA49: =IF(AND(F50=G50,H50=I50,F50="A"),"2016 - kw","") ->  | AB49: =IF(OR(B49="2017 - kw",B49="2018 - kw"),"2016 - kw","") -> 
E50: Class A/B
A51: =IF(AND(F53=G53,H53=I53,J53=K53,F53="A"),"2016 - kwh",IF(AND(F53=G53,H53=I53,J53<>K53,F53="A"),"2017 - kwh",IF(AND(F53=G53,H53<>I53,F53="A"),"2018 - kwh","N/A"))) -> N/A | B51: =IF(AND(F53="A",G53="A"),"A","") ->  | C51: Customer 8 | E51: kWh | AA51: =IF(AND(F53=G53,H53=I53,F53="A"),"2016 - kwh","") ->  | AB51: =IF(OR(B51="2017 - kwh",B51="2018 - kwh"),"2016 - kwh","") -> 
A52: =IF(AND(F53=G53,H53=I53,J53=K53,F53="A"),"2016 - kw",IF(AND(F53=G53,H53=I53,J53<>K53,F53="A"),"2017 - kw",IF(AND(F53=G53,H53<>I53,F53="A"),"2018 - kw","N/A"))) -> N/A | B52: =IF(AND(F53="A",G53="A"),"A","") ->  | D52: =D51 & "kW" -> kW | E52: kW | AA52: =IF(AND(F53=G53,H53=I53,F53="A"),"2016 - kw","") ->  | AB52: =IF(OR(B52="2017 - kw",B52="2018 - kw"),"2016 - kw","") -> 
E53: Class A/B
A54: =IF(AND(F56=G56,H56=I56,J56=K56,F56="A"),"2016 - kwh",IF(AND(F56=G56,H56=I56,J56<>K56,F56="A"),"2017 - kwh",IF(AND(F56=G56,H56<>I56,F56="A"),"2018 - kwh","N/A"))) -> N/A | B54: =IF(AND(F56="A",G56="A"),"A","") ->  | C54: Customer 9 | E54: kWh | AA54: =IF(AND(F56=G56,H56=I56,F56="A"),"2016 - kwh","") ->  | AB54: =IF(OR(B54="2017 - kwh",B54="2018 - kwh"),"2016 - kwh","") -> 
A55: =IF(AND(F56=G56,H56=I56,J56=K56,F56="A"),"2016 - kw",IF(AND(F56=G56,H56=I56,J56<>K56,F56="A"),"2017 - kw",IF(AND(F56=G56,H56<>I56,F56="A"),"2018 - kw","N/A"))) -> N/A | B55: =IF(AND(F56="A",G56="A"),"A","") ->  | D55: =D54 & "kW" -> kW | E55: kW | AA55: =IF(AND(F56=G56,H56=I56,F56="A"),"2016 - kw","") ->  | AB55: =IF(OR(B55="2017 - kw",B55="2018 - kw"),"2016 - kw","") -> 
E56: Class A/B
A57: =IF(AND(F59=G59,H59=I59,J59=K59,F59="A"),"2016 - kwh",IF(AND(F59=G59,H59=I59,J59<>K59,F59="A"),"2017 - kwh",IF(AND(F59=G59,H59<>I59,F59="A"),"2018 - kwh","N/A"))) -> N/A | B57: =IF(AND(F59="A",G59="A"),"A","") ->  | C57: Customer 10 | E57: kWh | AA57: =IF(AND(F59=G59,H59=I59,F59="A"),"2016 - kwh","") ->  | AB57: =IF(OR(B57="2017 - kwh",B57="2018 - kwh"),"2016 - kwh","") -> 
A58: =IF(AND(F59=G59,H59=I59,J59=K59,F59="A"),"2016 - kw",IF(AND(F59=G59,H59=I59,J59<>K59,F59="A"),"2017 - kw",IF(AND(F59=G59,H59<>I59,F59="A"),"2018 - kw","N/A"))) -> N/A | B58: =IF(AND(F59="A",G59="A"),"A","") ->  | D58: =D57 & "kW" -> kW | E58: kW | AA58: =IF(AND(F59=G59,H59=I59,F59="A"),"2016 - kw","") ->  | AB58: =IF(OR(B58="2017 - kw",B58="2018 - kw"),"2016 - kw","") -> 
E59: Class A/B
A60: =IF(AND(F62=G62,H62=I62,J62=K62,F62="A"),"2016 - kwh",IF(AND(F62=G62,H62=I62,J62<>K62,F62="A"),"2017 - kwh",IF(AND(F62=G62,H62<>I62,F62="A"),"2018 - kwh","N/A"))) -> N/A | B60: =IF(AND(F62="A",G62="A"),"A","") ->  | C60: Customer 11 | E60: kWh | AA60: =IF(AND(F62=G62,H62=I62,F62="A"),"2016 - kwh","") ->  | AB60: =IF(OR(B60="2017 - kwh",B60="2018 - kwh"),"2016 - kwh","") -> 
A61: =IF(AND(F62=G62,H62=I62,J62=K62,F62="A"),"2016 - kw",IF(AND(F62=G62,H62=I62,J62<>K62,F62="A"),"2017 - kw",IF(AND(F62=G62,H62<>I62,F62="A"),"2018 - kw","N/A"))) -> N/A | B61: =IF(AND(F62="A",G62="A"),"A","") ->  | D61: =D60 & "kW" -> kW | E61: kW | AA61: =IF(AND(F62=G62,H62=I62,F62="A"),"2016 - kw","") ->  | AB61: =IF(OR(B61="2017 - kw",B61="2018 - kw"),"2016 - kw","") -> 
E62: Class A/B
A63: =IF(AND(F65=G65,H65=I65,J65=K65,F65="A"),"2016 - kwh",IF(AND(F65=G65,H65=I65,J65<>K65,F65="A"),"2017 - kwh",IF(AND(F65=G65,H65<>I65,F65="A"),"2018 - kwh","N/A"))) -> N/A | B63: =IF(AND(F65="A",G65="A"),"A","") ->  | C63: Customer 12 | E63: kWh | AA63: =IF(AND(F65=G65,H65=I65,F65="A"),"2016 - kwh","") ->  | AB63: =IF(OR(B63="2017 - kwh",B63="2018 - kwh"),"2016 - kwh","") -> 
A64: =IF(AND(F65=G65,H65=I65,J65=K65,F65="A"),"2016 - kw",IF(AND(F65=G65,H65=I65,J65<>K65,F65="A"),"2017 - kw",IF(AND(F65=G65,H65<>I65,F65="A"),"2018 - kw","N/A"))) -> N/A | B64: =IF(AND(F65="A",G65="A"),"A","") ->  | D64: =D63 & "kW" -> kW | E64: kW | AA64: =IF(AND(F65=G65,H65=I65,F65="A"),"2016 - kw","") ->  | AB64: =IF(OR(B64="2017 - kw",B64="2018 - kw"),"2016 - kw","") -> 
E65: Class A/B
A66: =IF(AND(F68=G68,H68=I68,J68=K68,F68="A"),"2016 - kwh",IF(AND(F68=G68,H68=I68,J68<>K68,F68="A"),"2017 - kwh",IF(AND(F68=G68,H68<>I68,F68="A"),"2018 - kwh","N/A"))) -> N/A | B66: =IF(AND(F68="A",G68="A"),"A","") ->  | C66: Customer 13 | E66: kWh | AA66: =IF(AND(F68=G68,H68=I68,F68="A"),"2016 - kwh","") ->  | AB66: =IF(OR(B66="2017 - kwh",B66="2018 - kwh"),"2016 - kwh","") -> 
A67: =IF(AND(F68=G68,H68=I68,J68=K68,F68="A"),"2016 - kw",IF(AND(F68=G68,H68=I68,J68<>K68,F68="A"),"2017 - kw",IF(AND(F68=G68,H68<>I68,F68="A"),"2018 - kw","N/A"))) -> N/A | B67: =IF(AND(F68="A",G68="A"),"A","") ->  | D67: =D66 & "kW" -> kW | E67: kW | AA67: =IF(AND(F68=G68,H68=I68,F68="A"),"2016 - kw","") ->  | AB67: =IF(OR(B67="2017 - kw",B67="2018 - kw"),"2016 - kw","") -> 
E68: Class A/B
A69: =IF(AND(F71=G71,H71=I71,J71=K71,F71="A"),"2016 - kwh",IF(AND(F71=G71,H71=I71,J71<>K71,F71="A"),"2017 - kwh",IF(AND(F71=G71,H71<>I71,F71="A"),"2018 - kwh","N/A"))) -> N/A | B69: =IF(AND(F71="A",G71="A"),"A","") ->  | C69: Customer 14 | E69: kWh | AA69: =IF(AND(F71=G71,H71=I71,F71="A"),"2016 - kwh","") ->  | AB69: =IF(OR(B69="2017 - kwh",B69="2018 - kwh"),"2016 - kwh","") -> 
A70: =IF(AND(F71=G71,H71=I71,J71=K71,F71="A"),"2016 - kw",IF(AND(F71=G71,H71=I71,J71<>K71,F71="A"),"2017 - kw",IF(AND(F71=G71,H71<>I71,F71="A"),"2018 - kw","N/A"))) -> N/A | B70: =IF(AND(F71="A",G71="A"),"A","") ->  | D70: =D69 & "kW" -> kW | E70: kW | AA70: =IF(AND(F71=G71,H71=I71,F71="A"),"2016 - kw","") ->  | AB70: =IF(OR(B70="2017 - kw",B70="2018 - kw"),"2016 - kw","") -> 
E71: Class A/B
A72: =IF(AND(F74=G74,H74=I74,J74=K74,F74="A"),"2016 - kwh",IF(AND(F74=G74,H74=I74,J74<>K74,F74="A"),"2017 - kwh",IF(AND(F74=G74,H74<>I74,F74="A"),"2018 - kwh","N/A"))) -> N/A | B72: =IF(AND(F74="A",G74="A"),"A","") ->  | C72: Customer 15 | E72: kWh | AA72: =IF(AND(F74=G74,H74=I74,F74="A"),"2016 - kwh","") ->  | AB72: =IF(OR(B72="2017 - kwh",B72="2018 - kwh"),"2016 - kwh","") -> 
A73: =IF(AND(F74=G74,H74=I74,J74=K74,F74="A"),"2016 - kw",IF(AND(F74=G74,H74=I74,J74<>K74,F74="A"),"2017 - kw",IF(AND(F74=G74,H74<>I74,F74="A"),"2018 - kw","N/A"))) -> N/A | B73: =IF(AND(F74="A",G74="A"),"A","") ->  | D73: =D72 & "kW" -> kW | E73: kW | AA73: =IF(AND(F74=G74,H74=I74,F74="A"),"2016 - kw","") ->  | AB73: =IF(OR(B73="2017 - kw",B73="2018 - kw"),"2016 - kw","") -> 
E74: Class A/B
A75: =IF(AND(F77=G77,H77=I77,J77=K77,F77="A"),"2016 - kwh",IF(AND(F77=G77,H77=I77,J77<>K77,F77="A"),"2017 - kwh",IF(AND(F77=G77,H77<>I77,F77="A"),"2018 - kwh","N/A"))) -> N/A | B75: =IF(AND(F77="A",G77="A"),"A","") ->  | C75: Customer 16 | E75: kWh | AA75: =IF(AND(F77=G77,H77=I77,F77="A"),"2016 - kwh","") ->  | AB75: =IF(OR(B75="2017 - kwh",B75="2018 - kwh"),"2016 - kwh","") -> 
A76: =IF(AND(F77=G77,H77=I77,J77=K77,F77="A"),"2016 - kw",IF(AND(F77=G77,H77=I77,J77<>K77,F77="A"),"2017 - kw",IF(AND(F77=G77,H77<>I77,F77="A"),"2018 - kw","N/A"))) -> N/A | B76: =IF(AND(F77="A",G77="A"),"A","") ->  | D76: =D75 & "kW" -> kW | E76: kW | AA76: =IF(AND(F77=G77,H77=I77,F77="A"),"2016 - kw","") ->  | AB76: =IF(OR(B76="2017 - kw",B76="2018 - kw"),"2016 - kw","") -> 
E77: Class A/B
A78: =IF(AND(F80=G80,H80=I80,J80=K80,F80="A"),"2016 - kwh",IF(AND(F80=G80,H80=I80,J80<>K80,F80="A"),"2017 - kwh",IF(AND(F80=G80,H80<>I80,F80="A"),"2018 - kwh","N/A"))) -> N/A | B78: =IF(AND(F80="A",G80="A"),"A","") ->  | C78: Customer 17 | E78: kWh | AA78: =IF(AND(F80=G80,H80=I80,F80="A"),"2016 - kwh","") ->  | AB78: =IF(OR(B78="2017 - kwh",B78="2018 - kwh"),"2016 - kwh","") -> 
A79: =IF(AND(F80=G80,H80=I80,J80=K80,F80="A"),"2016 - kw",IF(AND(F80=G80,H80=I80,J80<>K80,F80="A"),"2017 - kw",IF(AND(F80=G80,H80<>I80,F80="A"),"2018 - kw","N/A"))) -> N/A | B79: =IF(AND(F80="A",G80="A"),"A","") ->  | D79: =D78 & "kW" -> kW | E79: kW | AA79: =IF(AND(F80=G80,H80=I80,F80="A"),"2016 - kw","") ->  | AB79: =IF(OR(B79="2017 - kw",B79="2018 - kw"),"2016 - kw","") -> 
E80: Class A/B
A81: =IF(AND(F83=G83,H83=I83,J83=K83,F83="A"),"2016 - kwh",IF(AND(F83=G83,H83=I83,J83<>K83,F83="A"),"2017 - kwh",IF(AND(F83=G83,H83<>I83,F83="A"),"2018 - kwh","N/A"))) -> N/A | B81: =IF(AND(F83="A",G83="A"),"A","") ->  | C81: Customer 18 | E81: kWh | AA81: =IF(AND(F83=G83,H83=I83,F83="A"),"2016 - kwh","") ->  | AB81: =IF(OR(B81="2017 - kwh",B81="2018 - kwh"),"2016 - kwh","") -> 
A82: =IF(AND(F83=G83,H83=I83,J83=K83,F83="A"),"2016 - kw",IF(AND(F83=G83,H83=I83,J83<>K83,F83="A"),"2017 - kw",IF(AND(F83=G83,H83<>I83,F83="A"),"2018 - kw","N/A"))) -> N/A | B82: =IF(AND(F83="A",G83="A"),"A","") ->  | D82: =D81 & "kW" -> kW | E82: kW | AA82: =IF(AND(F83=G83,H83=I83,F83="A"),"2016 - kw","") ->  | AB82: =IF(OR(B82="2017 - kw",B82="2018 - kw"),"2016 - kw","") -> 
E83: Class A/B
A84: =IF(AND(F86=G86,H86=I86,J86=K86,F86="A"),"2016 - kwh",IF(AND(F86=G86,H86=I86,J86<>K86,F86="A"),"2017 - kwh",IF(AND(F86=G86,H86<>I86,F86="A"),"2018 - kwh","N/A"))) -> N/A | B84: =IF(AND(F86="A",G86="A"),"A","") ->  | C84: Customer 19 | E84: kWh | AA84: =IF(AND(F86=G86,H86=I86,F86="A"),"2016 - kwh","") ->  | AB84: =IF(OR(B84="2017 - kwh",B84="2018 - kwh"),"2016 - kwh","") -> 
A85: =IF(AND(F86=G86,H86=I86,J86=K86,F86="A"),"2016 - kw",IF(AND(F86=G86,H86=I86,J86<>K86,F86="A"),"2017 - kw",IF(AND(F86=G86,H86<>I86,F86="A"),"2018 - kw","N/A"))) -> N/A | B85: =IF(AND(F86="A",G86="A"),"A","") ->  | D85: =D84 & "kW" -> kW | E85: kW | AA85: =IF(AND(F86=G86,H86=I86,F86="A"),"2016 - kw","") ->  | AB85: =IF(OR(B85="2017 - kw",B85="2018 - kw"),"2016 - kw","") -> 
E86: Class A/B
A87: =IF(AND(F89=G89,H89=I89,J89=K89,F89="A"),"2016 - kwh",IF(AND(F89=G89,H89=I89,J89<>K89,F89="A"),"2017 - kwh",IF(AND(F89=G89,H89<>I89,F89="A"),"2018 - kwh","N/A"))) -> N/A | B87: =IF(AND(F89="A",G89="A"),"A","") ->  | C87: Customer 20 | E87: kWh | AA87: =IF(AND(F89=G89,H89=I89,F89="A"),"2016 - kwh","") ->  | AB87: =IF(OR(B87="2017 - kwh",B87="2018 - kwh"),"2016 - kwh","") -> 
A88: =IF(AND(F89=G89,H89=I89,J89=K89,F89="A"),"2016 - kw",IF(AND(F89=G89,H89=I89,J89<>K89,F89="A"),"2017 - kw",IF(AND(F89=G89,H89<>I89,F89="A"),"2018 - kw","N/A"))) -> N/A | B88: =IF(AND(F89="A",G89="A"),"A","") ->  | D88: =D87 & "kW" -> kW | E88: kW | AA88: =IF(AND(F89=G89,H89=I89,F89="A"),"2016 - kw","") ->  | AB88: =IF(OR(B88="2017 - kw",B88="2018 - kw"),"2016 - kw","") -> 
E89: Class A/B
A90: =IF(AND(F92=G92,H92=I92,J92=K92,F92="A"),"2016 - kwh",IF(AND(F92=G92,H92=I92,J92<>K92,F92="A"),"2017 - kwh",IF(AND(F92=G92,H92<>I92,F92="A"),"2018 - kwh","N/A"))) -> N/A | B90: =IF(AND(F92="A",G92="A"),"A","") ->  | C90: Customer 21 | E90: kWh | AA90: =IF(AND(F92=G92,H92=I92,F92="A"),"2016 - kwh","") ->  | AB90: =IF(OR(B90="2017 - kwh",B90="2018 - kwh"),"2016 - kwh","") -> 
A91: =IF(AND(F92=G92,H92=I92,J92=K92,F92="A"),"2016 - kw",IF(AND(F92=G92,H92=I92,J92<>K92,F92="A"),"2017 - kw",IF(AND(F92=G92,H92<>I92,F92="A"),"2018 - kw","N/A"))) -> N/A | B91: =IF(AND(F92="A",G92="A"),"A","") ->  | D91: =D90 & "kW" -> kW | E91: kW | AA91: =IF(AND(F92=G92,H92=I92,F92="A"),"2016 - kw","") ->  | AB91: =IF(OR(B91="2017 - kw",B91="2018 - kw"),"2016 - kw","") -> 
E92: Class A/B
A93: =IF(AND(F95=G95,H95=I95,J95=K95,F95="A"),"2016 - kwh",IF(AND(F95=G95,H95=I95,J95<>K95,F95="A"),"2017 - kwh",IF(AND(F95=G95,H95<>I95,F95="A"),"2018 - kwh","N/A"))) -> N/A | B93: =IF(AND(F95="A",G95="A"),"A","") ->  | C93: Customer 22 | E93: kWh | AA93: =IF(AND(F95=G95,H95=I95,F95="A"),"2016 - kwh","") ->  | AB93: =IF(OR(B93="2017 - kwh",B93="2018 - kwh"),"2016 - kwh","") -> 
A94: =IF(AND(F95=G95,H95=I95,J95=K95,F95="A"),"2016 - kw",IF(AND(F95=G95,H95=I95,J95<>K95,F95="A"),"2017 - kw",IF(AND(F95=G95,H95<>I95,F95="A"),"2018 - kw","N/A"))) -> N/A | B94: =IF(AND(F95="A",G95="A"),"A","") ->  | D94: =D93 & "kW" -> kW | E94: kW | AA94: =IF(AND(F95=G95,H95=I95,F95="A"),"2016 - kw","") ->  | AB94: =IF(OR(B94="2017 - kw",B94="2018 - kw"),"2016 - kw","") -> 
E95: Class A/B
A96: =IF(AND(F98=G98,H98=I98,J98=K98,F98="A"),"2016 - kwh",IF(AND(F98=G98,H98=I98,J98<>K98,F98="A"),"2017 - kwh",IF(AND(F98=G98,H98<>I98,F98="A"),"2018 - kwh","N/A"))) -> N/A | B96: =IF(AND(F98="A",G98="A"),"A","") ->  | C96: Customer 23 | E96: kWh | AA96: =IF(AND(F98=G98,H98=I98,F98="A"),"2016 - kwh","") ->  | AB96: =IF(OR(B96="2017 - kwh",B96="2018 - kwh"),"2016 - kwh","") -> 
A97: =IF(AND(F98=G98,H98=I98,J98=K98,F98="A"),"2016 - kw",IF(AND(F98=G98,H98=I98,J98<>K98,F98="A"),"2017 - kw",IF(AND(F98=G98,H98<>I98,F98="A"),"2018 - kw","N/A"))) -> N/A | B97: =IF(AND(F98="A",G98="A"),"A","") ->  | D97: =D96 & "kW" -> kW | E97: kW | AA97: =IF(AND(F98=G98,H98=I98,F98="A"),"2016 - kw","") ->  | AB97: =IF(OR(B97="2017 - kw",B97="2018 - kw"),"2016 - kw","") -> 
E98: Class A/B
A99: =IF(AND(F101=G101,H101=I101,J101=K101,F101="A"),"2016 - kwh",IF(AND(F101=G101,H101=I101,J101<>K101,F101="A"),"2017 - kwh",IF(AND(F101=G101,H101<>I101,F101="A"),"2018 - kwh","N/A"))) -> N/A | B99: =IF(AND(F101="A",G101="A"),"A","") ->  | C99: Customer 24 | E99: kWh | AA99: =IF(AND(F101=G101,H101=I101,F101="A"),"2016 - kwh","") ->  | AB99: =IF(OR(B99="2017 - kwh",B99="2018 - kwh"),"2016 - kwh","") -> 
A100: =IF(AND(F101=G101,H101=I101,J101=K101,F101="A"),"2016 - kw",IF(AND(F101=G101,H101=I101,J101<>K101,F101="A"),"2017 - kw",IF(AND(F101=G101,H101<>I101,F101="A"),"2018 - kw","N/A"))) -> N/A | B100: =IF(AND(F101="A",G101="A"),"A","") ->  | D100: =D99 & "kW" -> kW | E100: kW | AA100: =IF(AND(F101=G101,H101=I101,F101="A"),"2016 - kw","") ->  | AB100: =IF(OR(B100="2017 - kw",B100="2018 - kw"),"2016 - kw","") -> 
E101: Class A/B
A102: =IF(AND(F104=G104,H104=I104,J104=K104,F104="A"),"2016 - kwh",IF(AND(F104=G104,H104=I104,J104<>K104,F104="A"),"2017 - kwh",IF(AND(F104=G104,H104<>I104,F104="A"),"2018 - kwh","N/A"))) -> N/A | B102: =IF(AND(F104="A",G104="A"),"A","") ->  | C102: Customer 25 | E102: kWh | AA102: =IF(AND(F104=G104,H104=I104,F104="A"),"2016 - kwh","") ->  | AB102: =IF(OR(B102="2017 - kwh",B102="2018 - kwh"),"2016 - kwh","") -> 
A103: =IF(AND(F104=G104,H104=I104,J104=K104,F104="A"),"2016 - kw",IF(AND(F104=G104,H104=I104,J104<>K104,F104="A"),"2017 - kw",IF(AND(F104=G104,H104<>I104,F104="A"),"2018 - kw","N/A"))) -> N/A | B103: =IF(AND(F104="A",G104="A"),"A","") ->  | D103: =D102 & "kW" -> kW | E103: kW | AA103: =IF(AND(F104=G104,H104=I104,F104="A"),"2016 - kw","") ->  | AB103: =IF(OR(B103="2017 - kw",B103="2018 - kw"),"2016 - kw","") -> 
E104: Class A/B
A105: =IF(AND(F107=G107,H107=I107,J107=K107,F107="A"),"2016 - kwh",IF(AND(F107=G107,H107=I107,J107<>K107,F107="A"),"2017 - kwh",IF(AND(F107=G107,H107<>I107,F107="A"),"2018 - kwh","N/A"))) -> N/A | B105: =IF(AND(F107="A",G107="A"),"A","") ->  | C105: Customer 26 | E105: kWh | AA105: =IF(AND(F107=G107,H107=I107,F107="A"),"2016 - kwh","") ->  | AB105: =IF(OR(B105="2017 - kwh",B105="2018 - kwh"),"2016 - kwh","") -> 
A106: =IF(AND(F107=G107,H107=I107,J107=K107,F107="A"),"2016 - kw",IF(AND(F107=G107,H107=I107,J107<>K107,F107="A"),"2017 - kw",IF(AND(F107=G107,H107<>I107,F107="A"),"2018 - kw","N/A"))) -> N/A | B106: =IF(AND(F107="A",G107="A"),"A","") ->  | D106: =D105 & "kW" -> kW | E106: kW | AA106: =IF(AND(F107=G107,H107=I107,F107="A"),"2016 - kw","") ->  | AB106: =IF(OR(B106="2017 - kw",B106="2018 - kw"),"2016 - kw","") -> 
E107: Class A/B
A108: =IF(AND(F110=G110,H110=I110,J110=K110,F110="A"),"2016 - kwh",IF(AND(F110=G110,H110=I110,J110<>K110,F110="A"),"2017 - kwh",IF(AND(F110=G110,H110<>I110,F110="A"),"2018 - kwh","N/A"))) -> N/A | B108: =IF(AND(F110="A",G110="A"),"A","") ->  | C108: Customer 27 | E108: kWh | AA108: =IF(AND(F110=G110,H110=I110,F110="A"),"2016 - kwh","") ->  | AB108: =IF(OR(B108="2017 - kwh",B108="2018 - kwh"),"2016 - kwh","") -> 
A109: =IF(AND(F110=G110,H110=I110,J110=K110,F110="A"),"2016 - kw",IF(AND(F110=G110,H110=I110,J110<>K110,F110="A"),"2017 - kw",IF(AND(F110=G110,H110<>I110,F110="A"),"2018 - kw","N/A"))) -> N/A | B109: =IF(AND(F110="A",G110="A"),"A","") ->  | D109: =D108 & "kW" -> kW | E109: kW | AA109: =IF(AND(F110=G110,H110=I110,F110="A"),"2016 - kw","") ->  | AB109: =IF(OR(B109="2017 - kw",B109="2018 - kw"),"2016 - kw","") -> 
E110: Class A/B
A111: =IF(AND(F113=G113,H113=I113,J113=K113,F113="A"),"2016 - kwh",IF(AND(F113=G113,H113=I113,J113<>K113,F113="A"),"2017 - kwh",IF(AND(F113=G113,H113<>I113,F113="A"),"2018 - kwh","N/A"))) -> N/A | B111: =IF(AND(F113="A",G113="A"),"A","") ->  | C111: Customer 28 | E111: kWh | AA111: =IF(AND(F113=G113,H113=I113,F113="A"),"2016 - kwh","") ->  | AB111: =IF(OR(B111="2017 - kwh",B111="2018 - kwh"),"2016 - kwh","") -> 
A112: =IF(AND(F113=G113,H113=I113,J113=K113,F113="A"),"2016 - kw",IF(AND(F113=G113,H113=I113,J113<>K113,F113="A"),"2017 - kw",IF(AND(F113=G113,H113<>I113,F113="A"),"2018 - kw","N/A"))) -> N/A | B112: =IF(AND(F113="A",G113="A"),"A","") ->  | D112: =D111 & "kW" -> kW | E112: kW | AA112: =IF(AND(F113=G113,H113=I113,F113="A"),"2016 - kw","") ->  | AB112: =IF(OR(B112="2017 - kw",B112="2018 - kw"),"2016 - kw","") -> 
E113: Class A/B
A114: =IF(AND(F116=G116,H116=I116,J116=K116,F116="A"),"2016 - kwh",IF(AND(F116=G116,H116=I116,J116<>K116,F116="A"),"2017 - kwh",IF(AND(F116=G116,H116<>I116,F116="A"),"2018 - kwh","N/A"))) -> N/A | B114: =IF(AND(F116="A",G116="A"),"A","") ->  | C114: Customer 29 | E114: kWh | AA114: =IF(AND(F116=G116,H116=I116,F116="A"),"2016 - kwh","") ->  | AB114: =IF(OR(B114="2017 - kwh",B114="2018 - kwh"),"2016 - kwh","") -> 
A115: =IF(AND(F116=G116,H116=I116,J116=K116,F116="A"),"2016 - kw",IF(AND(F116=G116,H116=I116,J116<>K116,F116="A"),"2017 - kw",IF(AND(F116=G116,H116<>I116,F116="A"),"2018 - kw","N/A"))) -> N/A | B115: =IF(AND(F116="A",G116="A"),"A","") ->  | D115: =D114 & "kW" -> kW | E115: kW | AA115: =IF(AND(F116=G116,H116=I116,F116="A"),"2016 - kw","") ->  | AB115: =IF(OR(B115="2017 - kw",B115="2018 - kw"),"2016 - kw","") -> 
E116: Class A/B
A117: =IF(AND(F119=G119,H119=I119,J119=K119,F119="A"),"2016 - kwh",IF(AND(F119=G119,H119=I119,J119<>K119,F119="A"),"2017 - kwh",IF(AND(F119=G119,H119<>I119,F119="A"),"2018 - kwh","N/A"))) -> N/A | B117: =IF(AND(F119="A",G119="A"),"A","") ->  | C117: Customer 30 | E117: kWh | AA117: =IF(AND(F119=G119,H119=I119,F119="A"),"2016 - kwh","") ->  | AB117: =IF(OR(B117="2017 - kwh",B117="2018 - kwh"),"2016 - kwh","") -> 
A118: =IF(AND(F119=G119,H119=I119,J119=K119,F119="A"),"2016 - kw",IF(AND(F119=G119,H119=I119,J119<>K119,F119="A"),"2017 - kw",IF(AND(F119=G119,H119<>I119,F119="A"),"2018 - kw","N/A"))) -> N/A | B118: =IF(AND(F119="A",G119="A"),"A","") ->  | D118: =D117 & "kW" -> kW | E118: kW | AA118: =IF(AND(F119=G119,H119=I119,F119="A"),"2016 - kw","") ->  | AB118: =IF(OR(B118="2017 - kw",B118="2018 - kw"),"2016 - kw","") -> 
E119: Class A/B
A120: =IF(AND(F122=G122,H122=I122,J122=K122,F122="A"),"2016 - kwh",IF(AND(F122=G122,H122=I122,J122<>K122,F122="A"),"2017 - kwh",IF(AND(F122=G122,H122<>I122,F122="A"),"2018 - kwh","N/A"))) -> N/A | B120: =IF(AND(F122="A",G122="A"),"A","") ->  | C120: Customer 31 | E120: kWh | AA120: =IF(AND(F122=G122,H122=I122,F122="A"),"2016 - kwh","") ->  | AB120: =IF(OR(B120="2017 - kwh",B120="2018 - kwh"),"2016 - kwh","") -> 
A121: =IF(AND(F122=G122,H122=I122,J122=K122,F122="A"),"2016 - kw",IF(AND(F122=G122,H122=I122,J122<>K122,F122="A"),"2017 - kw",IF(AND(F122=G122,H122<>I122,F122="A"),"2018 - kw","N/A"))) -> N/A | B121: =IF(AND(F122="A",G122="A"),"A","") ->  | D121: =D120 & "kW" -> kW | E121: kW | AA121: =IF(AND(F122=G122,H122=I122,F122="A"),"2016 - kw","") ->  | AB121: =IF(OR(B121="2017 - kw",B121="2018 - kw"),"2016 - kw","") -> 
E122: Class A/B
A123: =IF(AND(F125=G125,H125=I125,J125=K125,F125="A"),"2016 - kwh",IF(AND(F125=G125,H125=I125,J125<>K125,F125="A"),"2017 - kwh",IF(AND(F125=G125,H125<>I125,F125="A"),"2018 - kwh","N/A"))) -> N/A | B123: =IF(AND(F125="A",G125="A"),"A","") ->  | C123: Customer 32 | E123: kWh | AA123: =IF(AND(F125=G125,H125=I125,F125="A"),"2016 - kwh","") ->  | AB123: =IF(OR(B123="2017 - kwh",B123="2018 - kwh"),"2016 - kwh","") -> 
A124: =IF(AND(F125=G125,H125=I125,J125=K125,F125="A"),"2016 - kw",IF(AND(F125=G125,H125=I125,J125<>K125,F125="A"),"2017 - kw",IF(AND(F125=G125,H125<>I125,F125="A"),"2018 - kw","N/A"))) -> N/A | B124: =IF(AND(F125="A",G125="A"),"A","") ->  | D124: =D123 & "kW" -> kW | E124: kW | AA124: =IF(AND(F125=G125,H125=I125,F125="A"),"2016 - kw","") ->  | AB124: =IF(OR(B124="2017 - kw",B124="2018 - kw"),"2016 - kw","") -> 
E125: Class A/B
A126: =IF(AND(F128=G128,H128=I128,J128=K128,F128="A"),"2016 - kwh",IF(AND(F128=G128,H128=I128,J128<>K128,F128="A"),"2017 - kwh",IF(AND(F128=G128,H128<>I128,F128="A"),"2018 - kwh","N/A"))) -> N/A | B126: =IF(AND(F128="A",G128="A"),"A","") ->  | C126: Customer 33 | E126: kWh | AA126: =IF(AND(F128=G128,H128=I128,F128="A"),"2016 - kwh","") ->  | AB126: =IF(OR(B126="2017 - kwh",B126="2018 - kwh"),"2016 - kwh","") -> 
A127: =IF(AND(F128=G128,H128=I128,J128=K128,F128="A"),"2016 - kw",IF(AND(F128=G128,H128=I128,J128<>K128,F128="A"),"2017 - kw",IF(AND(F128=G128,H128<>I128,F128="A"),"2018 - kw","N/A"))) -> N/A | B127: =IF(AND(F128="A",G128="A"),"A","") ->  | D127: =D126 & "kW" -> kW | E127: kW | AA127: =IF(AND(F128=G128,H128=I128,F128="A"),"2016 - kw","") ->  | AB127: =IF(OR(B127="2017 - kw",B127="2018 - kw"),"2016 - kw","") -> 
E128: Class A/B
A129: =IF(AND(F131=G131,H131=I131,J131=K131,F131="A"),"2016 - kwh",IF(AND(F131=G131,H131=I131,J131<>K131,F131="A"),"2017 - kwh",IF(AND(F131=G131,H131<>I131,F131="A"),"2018 - kwh","N/A"))) -> N/A | B129: =IF(AND(F131="A",G131="A"),"A","") ->  | C129: Customer 34 | E129: kWh | AA129: =IF(AND(F131=G131,H131=I131,F131="A"),"2016 - kwh","") ->  | AB129: =IF(OR(B129="2017 - kwh",B129="2018 - kwh"),"2016 - kwh","") -> 
A130: =IF(AND(F131=G131,H131=I131,J131=K131,F131="A"),"2016 - kw",IF(AND(F131=G131,H131=I131,J131<>K131,F131="A"),"2017 - kw",IF(AND(F131=G131,H131<>I131,F131="A"),"2018 - kw","N/A"))) -> N/A | B130: =IF(AND(F131="A",G131="A"),"A","") ->  | D130: =D129 & "kW" -> kW | E130: kW | AA130: =IF(AND(F131=G131,H131=I131,F131="A"),"2016 - kw","") ->  | AB130: =IF(OR(B130="2017 - kw",B130="2018 - kw"),"2016 - kw","") -> 
E131: Class A/B
A132: =IF(AND(F134=G134,H134=I134,J134=K134,F134="A"),"2016 - kwh",IF(AND(F134=G134,H134=I134,J134<>K134,F134="A"),"2017 - kwh",IF(AND(F134=G134,H134<>I134,F134="A"),"2018 - kwh","N/A"))) -> N/A | B132: =IF(AND(F134="A",G134="A"),"A","") ->  | C132: Customer 35 | E132: kWh | AA132: =IF(AND(F134=G134,H134=I134,F134="A"),"2016 - kwh","") ->  | AB132: =IF(OR(B132="2017 - kwh",B132="2018 - kwh"),"2016 - kwh","") -> 
A133: =IF(AND(F134=G134,H134=I134,J134=K134,F134="A"),"2016 - kw",IF(AND(F134=G134,H134=I134,J134<>K134,F134="A"),"2017 - kw",IF(AND(F134=G134,H134<>I134,F134="A"),"2018 - kw","N/A"))) -> N/A | B133: =IF(AND(F134="A",G134="A"),"A","") ->  | D133: =D132 & "kW" -> kW | E133: kW | AA133: =IF(AND(F134=G134,H134=I134,F134="A"),"2016 - kw","") ->  | AB133: =IF(OR(B133="2017 - kw",B133="2018 - kw"),"2016 - kw","") -> 
E134: Class A/B
A135: =IF(AND(F137=G137,H137=I137,J137=K137,F137="A"),"2016 - kwh",IF(AND(F137=G137,H137=I137,J137<>K137,F137="A"),"2017 - kwh",IF(AND(F137=G137,H137<>I137,F137="A"),"2018 - kwh","N/A"))) -> N/A | B135: =IF(AND(F137="A",G137="A"),"A","") ->  | C135: Customer 36 | E135: kWh | AA135: =IF(AND(F137=G137,H137=I137,F137="A"),"2016 - kwh","") ->  | AB135: =IF(OR(B135="2017 - kwh",B135="2018 - kwh"),"2016 - kwh","") -> 
A136: =IF(AND(F137=G137,H137=I137,J137=K137,F137="A"),"2016 - kw",IF(AND(F137=G137,H137=I137,J137<>K137,F137="A"),"2017 - kw",IF(AND(F137=G137,H137<>I137,F137="A"),"2018 - kw","N/A"))) -> N/A | B136: =IF(AND(F137="A",G137="A"),"A","") ->  | D136: =D135 & "kW" -> kW | E136: kW | AA136: =IF(AND(F137=G137,H137=I137,F137="A"),"2016 - kw","") ->  | AB136: =IF(OR(B136="2017 - kw",B136="2018 - kw"),"2016 - kw","") -> 
E137: Class A/B
A138: =IF(AND(F140=G140,H140=I140,J140=K140,F140="A"),"2016 - kwh",IF(AND(F140=G140,H140=I140,J140<>K140,F140="A"),"2017 - kwh",IF(AND(F140=G140,H140<>I140,F140="A"),"2018 - kwh","N/A"))) -> N/A | B138: =IF(AND(F140="A",G140="A"),"A","") ->  | C138: Customer 37 | E138: kWh | AA138: =IF(AND(F140=G140,H140=I140,F140="A"),"2016 - kwh","") ->  | AB138: =IF(OR(B138="2017 - kwh",B138="2018 - kwh"),"2016 - kwh","") -> 
A139: =IF(AND(F140=G140,H140=I140,J140=K140,F140="A"),"2016 - kw",IF(AND(F140=G140,H140=I140,J140<>K140,F140="A"),"2017 - kw",IF(AND(F140=G140,H140<>I140,F140="A"),"2018 - kw","N/A"))) -> N/A | B139: =IF(AND(F140="A",G140="A"),"A","") ->  | D139: =D138 & "kW" -> kW | E139: kW | AA139: =IF(AND(F140=G140,H140=I140,F140="A"),"2016 - kw","") ->  | AB139: =IF(OR(B139="2017 - kw",B139="2018 - kw"),"2016 - kw","") -> 
E140: Class A/B
A141: =IF(AND(F143=G143,H143=I143,J143=K143,F143="A"),"2016 - kwh",IF(AND(F143=G143,H143=I143,J143<>K143,F143="A"),"2017 - kwh",IF(AND(F143=G143,H143<>I143,F143="A"),"2018 - kwh","N/A"))) -> N/A | B141: =IF(AND(F143="A",G143="A"),"A","") ->  | C141: Customer 38 | E141: kWh | AA141: =IF(AND(F143=G143,H143=I143,F143="A"),"2016 - kwh","") ->  | AB141: =IF(OR(B141="2017 - kwh",B141="2018 - kwh"),"2016 - kwh","") -> 
A142: =IF(AND(F143=G143,H143=I143,J143=K143,F143="A"),"2016 - kw",IF(AND(F143=G143,H143=I143,J143<>K143,F143="A"),"2017 - kw",IF(AND(F143=G143,H143<>I143,F143="A"),"2018 - kw","N/A"))) -> N/A | B142: =IF(AND(F143="A",G143="A"),"A","") ->  | D142: =D141 & "kW" -> kW | E142: kW | AA142: =IF(AND(F143=G143,H143=I143,F143="A"),"2016 - kw","") ->  | AB142: =IF(OR(B142="2017 - kw",B142="2018 - kw"),"2016 - kw","") -> 
E143: Class A/B
A144: =IF(AND(F146=G146,H146=I146,J146=K146,F146="A"),"2016 - kwh",IF(AND(F146=G146,H146=I146,J146<>K146,F146="A"),"2017 - kwh",IF(AND(F146=G146,H146<>I146,F146="A"),"2018 - kwh","N/A"))) -> N/A | B144: =IF(AND(F146="A",G146="A"),"A","") ->  | C144: Customer 39 | E144: kWh | AA144: =IF(AND(F146=G146,H146=I146,F146="A"),"2016 - kwh","") ->  | AB144: =IF(OR(B144="2017 - kwh",B144="2018 - kwh"),"2016 - kwh","") -> 
A145: =IF(AND(F146=G146,H146=I146,J146=K146,F146="A"),"2016 - kw",IF(AND(F146=G146,H146=I146,J146<>K146,F146="A"),"2017 - kw",IF(AND(F146=G146,H146<>I146,F146="A"),"2018 - kw","N/A"))) -> N/A | B145: =IF(AND(F146="A",G146="A"),"A","") ->  | D145: =D144 & "kW" -> kW | E145: kW | AA145: =IF(AND(F146=G146,H146=I146,F146="A"),"2016 - kw","") ->  | AB145: =IF(OR(B145="2017 - kw",B145="2018 - kw"),"2016 - kw","") -> 
E146: Class A/B
A147: =IF(AND(F149=G149,H149=I149,J149=K149,F149="A"),"2016 - kwh",IF(AND(F149=G149,H149=I149,J149<>K149,F149="A"),"2017 - kwh",IF(AND(F149=G149,H149<>I149,F149="A"),"2018 - kwh","N/A"))) -> N/A | B147: =IF(AND(F149="A",G149="A"),"A","") ->  | C147: Customer 40 | E147: kWh | AA147: =IF(AND(F149=G149,H149=I149,F149="A"),"2016 - kwh","") ->  | AB147: =IF(OR(B147="2017 - kwh",B147="2018 - kwh"),"2016 - kwh","") -> 
A148: =IF(AND(F149=G149,H149=I149,J149=K149,F149="A"),"2016 - kw",IF(AND(F149=G149,H149=I149,J149<>K149,F149="A"),"2017 - kw",IF(AND(F149=G149,H149<>I149,F149="A"),"2018 - kw","N/A"))) -> N/A | B148: =IF(AND(F149="A",G149="A"),"A","") ->  | D148: =D147 & "kW" -> kW | E148: kW | AA148: =IF(AND(F149=G149,H149=I149,F149="A"),"2016 - kw","") ->  | AB148: =IF(OR(B148="2017 - kw",B148="2018 - kw"),"2016 - kw","") -> 
E149: Class A/B
A150: =IF(AND(F152=G152,H152=I152,J152=K152,F152="A"),"2016 - kwh",IF(AND(F152=G152,H152=I152,J152<>K152,F152="A"),"2017 - kwh",IF(AND(F152=G152,H152<>I152,F152="A"),"2018 - kwh","N/A"))) -> N/A | B150: =IF(AND(F152="A",G152="A"),"A","") ->  | C150: Customer 41 | E150: kWh | AA150: =IF(AND(F152=G152,H152=I152,F152="A"),"2016 - kwh","") ->  | AB150: =IF(OR(B150="2017 - kwh",B150="2018 - kwh"),"2016 - kwh","") -> 
A151: =IF(AND(F152=G152,H152=I152,J152=K152,F152="A"),"2016 - kw",IF(AND(F152=G152,H152=I152,J152<>K152,F152="A"),"2017 - kw",IF(AND(F152=G152,H152<>I152,F152="A"),"2018 - kw","N/A"))) -> N/A | B151: =IF(AND(F152="A",G152="A"),"A","") ->  | D151: =D150 & "kW" -> kW | E151: kW | AA151: =IF(AND(F152=G152,H152=I152,F152="A"),"2016 - kw","") ->  | AB151: =IF(OR(B151="2017 - kw",B151="2018 - kw"),"2016 - kw","") -> 
E152: Class A/B
A153: =IF(AND(F155=G155,H155=I155,J155=K155,F155="A"),"2016 - kwh",IF(AND(F155=G155,H155=I155,J155<>K155,F155="A"),"2017 - kwh",IF(AND(F155=G155,H155<>I155,F155="A"),"2018 - kwh","N/A"))) -> N/A | B153: =IF(AND(F155="A",G155="A"),"A","") ->  | C153: Customer 42 | E153: kWh | AA153: =IF(AND(F155=G155,H155=I155,F155="A"),"2016 - kwh","") ->  | AB153: =IF(OR(B153="2017 - kwh",B153="2018 - kwh"),"2016 - kwh","") -> 
A154: =IF(AND(F155=G155,H155=I155,J155=K155,F155="A"),"2016 - kw",IF(AND(F155=G155,H155=I155,J155<>K155,F155="A"),"2017 - kw",IF(AND(F155=G155,H155<>I155,F155="A"),"2018 - kw","N/A"))) -> N/A | B154: =IF(AND(F155="A",G155="A"),"A","") ->  | D154: =D153 & "kW" -> kW | E154: kW | AA154: =IF(AND(F155=G155,H155=I155,F155="A"),"2016 - kw","") ->  | AB154: =IF(OR(B154="2017 - kw",B154="2018 - kw"),"2016 - kw","") -> 
E155: Class A/B
A156: =IF(AND(F158=G158,H158=I158,J158=K158,F158="A"),"2016 - kwh",IF(AND(F158=G158,H158=I158,J158<>K158,F158="A"),"2017 - kwh",IF(AND(F158=G158,H158<>I158,F158="A"),"2018 - kwh","N/A"))) -> N/A | B156: =IF(AND(F158="A",G158="A"),"A","") ->  | C156: Customer 43 | E156: kWh | AA156: =IF(AND(F158=G158,H158=I158,F158="A"),"2016 - kwh","") ->  | AB156: =IF(OR(B156="2017 - kwh",B156="2018 - kwh"),"2016 - kwh","") -> 
A157: =IF(AND(F158=G158,H158=I158,J158=K158,F158="A"),"2016 - kw",IF(AND(F158=G158,H158=I158,J158<>K158,F158="A"),"2017 - kw",IF(AND(F158=G158,H158<>I158,F158="A"),"2018 - kw","N/A"))) -> N/A | B157: =IF(AND(F158="A",G158="A"),"A","") ->  | D157: =D156 & "kW" -> kW | E157: kW | AA157: =IF(AND(F158=G158,H158=I158,F158="A"),"2016 - kw","") ->  | AB157: =IF(OR(B157="2017 - kw",B157="2018 - kw"),"2016 - kw","") -> 
E158: Class A/B
A159: =IF(AND(F161=G161,H161=I161,J161=K161,F161="A"),"2016 - kwh",IF(AND(F161=G161,H161=I161,J161<>K161,F161="A"),"2017 - kwh",IF(AND(F161=G161,H161<>I161,F161="A"),"2018 - kwh","N/A"))) -> N/A | B159: =IF(AND(F161="A",G161="A"),"A","") ->  | C159: Customer 44 | E159: kWh | AA159: =IF(AND(F161=G161,H161=I161,F161="A"),"2016 - kwh","") ->  | AB159: =IF(OR(B159="2017 - kwh",B159="2018 - kwh"),"2016 - kwh","") -> 
A160: =IF(AND(F161=G161,H161=I161,J161=K161,F161="A"),"2016 - kw",IF(AND(F161=G161,H161=I161,J161<>K161,F161="A"),"2017 - kw",IF(AND(F161=G161,H161<>I161,F161="A"),"2018 - kw","N/A"))) -> N/A | B160: =IF(AND(F161="A",G161="A"),"A","") ->  | D160: =D159 & "kW" -> kW | E160: kW | AA160: =IF(AND(F161=G161,H161=I161,F161="A"),"2016 - kw","") ->  | AB160: =IF(OR(B160="2017 - kw",B160="2018 - kw"),"2016 - kw","") -> 
E161: Class A/B
A162: =IF(AND(F164=G164,H164=I164,J164=K164,F164="A"),"2016 - kwh",IF(AND(F164=G164,H164=I164,J164<>K164,F164="A"),"2017 - kwh",IF(AND(F164=G164,H164<>I164,F164="A"),"2018 - kwh","N/A"))) -> N/A | B162: =IF(AND(F164="A",G164="A"),"A","") ->  | C162: Customer 45 | E162: kWh | AA162: =IF(AND(F164=G164,H164=I164,F164="A"),"2016 - kwh","") ->  | AB162: =IF(OR(B162="2017 - kwh",B162="2018 - kwh"),"2016 - kwh","") -> 
A163: =IF(AND(F164=G164,H164=I164,J164=K164,F164="A"),"2016 - kw",IF(AND(F164=G164,H164=I164,J164<>K164,F164="A"),"2017 - kw",IF(AND(F164=G164,H164<>I164,F164="A"),"2018 - kw","N/A"))) -> N/A | B163: =IF(AND(F164="A",G164="A"),"A","") ->  | D163: =D162 & "kW" -> kW | E163: kW | AA163: =IF(AND(F164=G164,H164=I164,F164="A"),"2016 - kw","") ->  | AB163: =IF(OR(B163="2017 - kw",B163="2018 - kw"),"2016 - kw","") -> 
E164: Class A/B
A165: =IF(AND(F167=G167,H167=I167,J167=K167,F167="A"),"2016 - kwh",IF(AND(F167=G167,H167=I167,J167<>K167,F167="A"),"2017 - kwh",IF(AND(F167=G167,H167<>I167,F167="A"),"2018 - kwh","N/A"))) -> N/A | B165: =IF(AND(F167="A",G167="A"),"A","") ->  | C165: Customer 46 | E165: kWh | AA165: =IF(AND(F167=G167,H167=I167,F167="A"),"2016 - kwh","") ->  | AB165: =IF(OR(B165="2017 - kwh",B165="2018 - kwh"),"2016 - kwh","") -> 
A166: =IF(AND(F167=G167,H167=I167,J167=K167,F167="A"),"2016 - kw",IF(AND(F167=G167,H167=I167,J167<>K167,F167="A"),"2017 - kw",IF(AND(F167=G167,H167<>I167,F167="A"),"2018 - kw","N/A"))) -> N/A | B166: =IF(AND(F167="A",G167="A"),"A","") ->  | D166: =D165 & "kW" -> kW | E166: kW | AA166: =IF(AND(F167=G167,H167=I167,F167="A"),"2016 - kw","") ->  | AB166: =IF(OR(B166="2017 - kw",B166="2018 - kw"),"2016 - kw","") -> 
E167: Class A/B
A168: =IF(AND(F170=G170,H170=I170,J170=K170,F170="A"),"2016 - kwh",IF(AND(F170=G170,H170=I170,J170<>K170,F170="A"),"2017 - kwh",IF(AND(F170=G170,H170<>I170,F170="A"),"2018 - kwh","N/A"))) -> N/A | B168: =IF(AND(F170="A",G170="A"),"A","") ->  | C168: Customer 47 | E168: kWh | AA168: =IF(AND(F170=G170,H170=I170,F170="A"),"2016 - kwh","") ->  | AB168: =IF(OR(B168="2017 - kwh",B168="2018 - kwh"),"2016 - kwh","") -> 
A169: =IF(AND(F170=G170,H170=I170,J170=K170,F170="A"),"2016 - kw",IF(AND(F170=G170,H170=I170,J170<>K170,F170="A"),"2017 - kw",IF(AND(F170=G170,H170<>I170,F170="A"),"2018 - kw","N/A"))) -> N/A | B169: =IF(AND(F170="A",G170="A"),"A","") ->  | D169: =D168 & "kW" -> kW | E169: kW | AA169: =IF(AND(F170=G170,H170=I170,F170="A"),"2016 - kw","") ->  | AB169: =IF(OR(B169="2017 - kw",B169="2018 - kw"),"2016 - kw","") -> 
E170: Class A/B
A171: =IF(AND(F173=G173,H173=I173,J173=K173,F173="A"),"2016 - kwh",IF(AND(F173=G173,H173=I173,J173<>K173,F173="A"),"2017 - kwh",IF(AND(F173=G173,H173<>I173,F173="A"),"2018 - kwh","N/A"))) -> N/A | B171: =IF(AND(F173="A",G173="A"),"A","") ->  | C171: Customer 48 | E171: kWh | AA171: =IF(AND(F173=G173,H173=I173,F173="A"),"2016 - kwh","") ->  | AB171: =IF(OR(B171="2017 - kwh",B171="2018 - kwh"),"2016 - kwh","") -> 
A172: =IF(AND(F173=G173,H173=I173,J173=K173,F173="A"),"2016 - kw",IF(AND(F173=G173,H173=I173,J173<>K173,F173="A"),"2017 - kw",IF(AND(F173=G173,H173<>I173,F173="A"),"2018 - kw","N/A"))) -> N/A | B172: =IF(AND(F173="A",G173="A"),"A","") ->  | D172: =D171 & "kW" -> kW | E172: kW | AA172: =IF(AND(F173=G173,H173=I173,F173="A"),"2016 - kw","") ->  | AB172: =IF(OR(B172="2017 - kw",B172="2018 - kw"),"2016 - kw","") -> 
E173: Class A/B
A174: =IF(AND(F176=G176,H176=I176,J176=K176,F176="A"),"2016 - kwh",IF(AND(F176=G176,H176=I176,J176<>K176,F176="A"),"2017 - kwh",IF(AND(F176=G176,H176<>I176,F176="A"),"2018 - kwh","N/A"))) -> N/A | B174: =IF(AND(F176="A",G176="A"),"A","") ->  | C174: Customer 49 | E174: kWh | AA174: =IF(AND(F176=G176,H176=I176,F176="A"),"2016 - kwh","") ->  | AB174: =IF(OR(B174="2017 - kwh",B174="2018 - kwh"),"2016 - kwh","") -> 
A175: =IF(AND(F176=G176,H176=I176,J176=K176,F176="A"),"2016 - kw",IF(AND(F176=G176,H176=I176,J176<>K176,F176="A"),"2017 - kw",IF(AND(F176=G176,H176<>I176,F176="A"),"2018 - kw","N/A"))) -> N/A | B175: =IF(AND(F176="A",G176="A"),"A","") ->  | D175: =D174 & "kW" -> kW | E175: kW | AA175: =IF(AND(F176=G176,H176=I176,F176="A"),"2016 - kw","") ->  | AB175: =IF(OR(B175="2017 - kw",B175="2018 - kw"),"2016 - kw","") -> 
E176: Class A/B
A177: =IF(AND(F179=G179,H179=I179,J179=K179,F179="A"),"2016 - kwh",IF(AND(F179=G179,H179=I179,J179<>K179,F179="A"),"2017 - kwh",IF(AND(F179=G179,H179<>I179,F179="A"),"2018 - kwh","N/A"))) -> N/A | B177: =IF(AND(F179="A",G179="A"),"A","") ->  | C177: Customer 50 | E177: kWh | AA177: =IF(AND(F179=G179,H179=I179,F179="A"),"2016 - kwh","") ->  | AB177: =IF(OR(B177="2017 - kwh",B177="2018 - kwh"),"2016 - kwh","") -> 
A178: =IF(AND(F179=G179,H179=I179,J179=K179,F179="A"),"2016 - kw",IF(AND(F179=G179,H179=I179,J179<>K179,F179="A"),"2017 - kw",IF(AND(F179=G179,H179<>I179,F179="A"),"2018 - kw","N/A"))) -> N/A | B178: =IF(AND(F179="A",G179="A"),"A","") ->  | D178: =D177 & "kW" -> kW | E178: kW | AA178: =IF(AND(F179=G179,H179=I179,F179="A"),"2016 - kw","") ->  | AB178: =IF(OR(B178="2017 - kw",B178="2018 - kw"),"2016 - kw","") -> 
E179: Class A/B
A180: =IF(AND(F182=G182,H182=I182,J182=K182,F182="A"),"2016 - kwh",IF(AND(F182=G182,H182=I182,J182<>K182,F182="A"),"2017 - kwh",IF(AND(F182=G182,H182<>I182,F182="A"),"2018 - kwh","N/A"))) -> N/A | B180: =IF(AND(F182="A",G182="A"),"A","") ->  | C180: Customer 51 | E180: kWh | AA180: =IF(AND(F182=G182,H182=I182,F182="A"),"2016 - kwh","") ->  | AB180: =IF(OR(B180="2017 - kwh",B180="2018 - kwh"),"2016 - kwh","") -> 
A181: =IF(AND(F182=G182,H182=I182,J182=K182,F182="A"),"2016 - kw",IF(AND(F182=G182,H182=I182,J182<>K182,F182="A"),"2017 - kw",IF(AND(F182=G182,H182<>I182,F182="A"),"2018 - kw","N/A"))) -> N/A | B181: =IF(AND(F182="A",G182="A"),"A","") ->  | D181: =D180 & "kW" -> kW | E181: kW | AA181: =IF(AND(F182=G182,H182=I182,F182="A"),"2016 - kw","") ->  | AB181: =IF(OR(B181="2017 - kw",B181="2018 - kw"),"2016 - kw","") -> 
E182: Class A/B
A183: =IF(AND(F185=G185,H185=I185,J185=K185,F185="A"),"2016 - kwh",IF(AND(F185=G185,H185=I185,J185<>K185,F185="A"),"2017 - kwh",IF(AND(F185=G185,H185<>I185,F185="A"),"2018 - kwh","N/A"))) -> N/A | B183: =IF(AND(F185="A",G185="A"),"A","") ->  | C183: Customer 52 | E183: kWh | AA183: =IF(AND(F185=G185,H185=I185,F185="A"),"2016 - kwh","") ->  | AB183: =IF(OR(B183="2017 - kwh",B183="2018 - kwh"),"2016 - kwh","") -> 
A184: =IF(AND(F185=G185,H185=I185,J185=K185,F185="A"),"2016 - kw",IF(AND(F185=G185,H185=I185,J185<>K185,F185="A"),"2017 - kw",IF(AND(F185=G185,H185<>I185,F185="A"),"2018 - kw","N/A"))) -> N/A | B184: =IF(AND(F185="A",G185="A"),"A","") ->  | D184: =D183 & "kW" -> kW | E184: kW | AA184: =IF(AND(F185=G185,H185=I185,F185="A"),"2016 - kw","") ->  | AB184: =IF(OR(B184="2017 - kw",B184="2018 - kw"),"2016 - kw","") -> 
E185: Class A/B
A186: =IF(AND(F188=G188,H188=I188,J188=K188,F188="A"),"2016 - kwh",IF(AND(F188=G188,H188=I188,J188<>K188,F188="A"),"2017 - kwh",IF(AND(F188=G188,H188<>I188,F188="A"),"2018 - kwh","N/A"))) -> N/A | B186: =IF(AND(F188="A",G188="A"),"A","") ->  | C186: Customer 53 | E186: kWh | AA186: =IF(AND(F188=G188,H188=I188,F188="A"),"2016 - kwh","") ->  | AB186: =IF(OR(B186="2017 - kwh",B186="2018 - kwh"),"2016 - kwh","") -> 
A187: =IF(AND(F188=G188,H188=I188,J188=K188,F188="A"),"2016 - kw",IF(AND(F188=G188,H188=I188,J188<>K188,F188="A"),"2017 - kw",IF(AND(F188=G188,H188<>I188,F188="A"),"2018 - kw","N/A"))) -> N/A | B187: =IF(AND(F188="A",G188="A"),"A","") ->  | D187: =D186 & "kW" -> kW | E187: kW | AA187: =IF(AND(F188=G188,H188=I188,F188="A"),"2016 - kw","") ->  | AB187: =IF(OR(B187="2017 - kw",B187="2018 - kw"),"2016 - kw","") -> 
E188: Class A/B
A189: =IF(AND(F191=G191,H191=I191,J191=K191,F191="A"),"2016 - kwh",IF(AND(F191=G191,H191=I191,J191<>K191,F191="A"),"2017 - kwh",IF(AND(F191=G191,H191<>I191,F191="A"),"2018 - kwh","N/A"))) -> N/A | B189: =IF(AND(F191="A",G191="A"),"A","") ->  | C189: Customer 54 | E189: kWh | AA189: =IF(AND(F191=G191,H191=I191,F191="A"),"2016 - kwh","") ->  | AB189: =IF(OR(B189="2017 - kwh",B189="2018 - kwh"),"2016 - kwh","") -> 
A190: =IF(AND(F191=G191,H191=I191,J191=K191,F191="A"),"2016 - kw",IF(AND(F191=G191,H191=I191,J191<>K191,F191="A"),"2017 - kw",IF(AND(F191=G191,H191<>I191,F191="A"),"2018 - kw","N/A"))) -> N/A | B190: =IF(AND(F191="A",G191="A"),"A","") ->  | D190: =D189 & "kW" -> kW | E190: kW | AA190: =IF(AND(F191=G191,H191=I191,F191="A"),"2016 - kw","") ->  | AB190: =IF(OR(B190="2017 - kw",B190="2018 - kw"),"2016 - kw","") -> 
E191: Class A/B
A192: =IF(AND(F194=G194,H194=I194,J194=K194,F194="A"),"2016 - kwh",IF(AND(F194=G194,H194=I194,J194<>K194,F194="A"),"2017 - kwh",IF(AND(F194=G194,H194<>I194,F194="A"),"2018 - kwh","N/A"))) -> N/A | B192: =IF(AND(F194="A",G194="A"),"A","") ->  | C192: Customer 55 | E192: kWh | AA192: =IF(AND(F194=G194,H194=I194,F194="A"),"2016 - kwh","") ->  | AB192: =IF(OR(B192="2017 - kwh",B192="2018 - kwh"),"2016 - kwh","") -> 
A193: =IF(AND(F194=G194,H194=I194,J194=K194,F194="A"),"2016 - kw",IF(AND(F194=G194,H194=I194,J194<>K194,F194="A"),"2017 - kw",IF(AND(F194=G194,H194<>I194,F194="A"),"2018 - kw","N/A"))) -> N/A | B193: =IF(AND(F194="A",G194="A"),"A","") ->  | D193: =D192 & "kW" -> kW | E193: kW | AA193: =IF(AND(F194=G194,H194=I194,F194="A"),"2016 - kw","") ->  | AB193: =IF(OR(B193="2017 - kw",B193="2018 - kw"),"2016 - kw","") -> 
E194: Class A/B
A195: =IF(AND(F197=G197,H197=I197,J197=K197,F197="A"),"2016 - kwh",IF(AND(F197=G197,H197=I197,J197<>K197,F197="A"),"2017 - kwh",IF(AND(F197=G197,H197<>I197,F197="A"),"2018 - kwh","N/A"))) -> N/A | B195: =IF(AND(F197="A",G197="A"),"A","") ->  | C195: Customer 56 | E195: kWh | AA195: =IF(AND(F197=G197,H197=I197,F197="A"),"2016 - kwh","") ->  | AB195: =IF(OR(B195="2017 - kwh",B195="2018 - kwh"),"2016 - kwh","") -> 
A196: =IF(AND(F197=G197,H197=I197,J197=K197,F197="A"),"2016 - kw",IF(AND(F197=G197,H197=I197,J197<>K197,F197="A"),"2017 - kw",IF(AND(F197=G197,H197<>I197,F197="A"),"2018 - kw","N/A"))) -> N/A | B196: =IF(AND(F197="A",G197="A"),"A","") ->  | D196: =D195 & "kW" -> kW | E196: kW | AA196: =IF(AND(F197=G197,H197=I197,F197="A"),"2016 - kw","") ->  | AB196: =IF(OR(B196="2017 - kw",B196="2018 - kw"),"2016 - kw","") -> 
E197: Class A/B
A198: =IF(AND(F200=G200,H200=I200,J200=K200,F200="A"),"2016 - kwh",IF(AND(F200=G200,H200=I200,J200<>K200,F200="A"),"2017 - kwh",IF(AND(F200=G200,H200<>I200,F200="A"),"2018 - kwh","N/A"))) -> N/A | B198: =IF(AND(F200="A",G200="A"),"A","") ->  | C198: Customer 57 | E198: kWh | AA198: =IF(AND(F200=G200,H200=I200,F200="A"),"2016 - kwh","") ->  | AB198: =IF(OR(B198="2017 - kwh",B198="2018 - kwh"),"2016 - kwh","") -> 
A199: =IF(AND(F200=G200,H200=I200,J200=K200,F200="A"),"2016 - kw",IF(AND(F200=G200,H200=I200,J200<>K200,F200="A"),"2017 - kw",IF(AND(F200=G200,H200<>I200,F200="A"),"2018 - kw","N/A"))) -> N/A | B199: =IF(AND(F200="A",G200="A"),"A","") ->  | D199: =D198 & "kW" -> kW | E199: kW | AA199: =IF(AND(F200=G200,H200=I200,F200="A"),"2016 - kw","") ->  | AB199: =IF(OR(B199="2017 - kw",B199="2018 - kw"),"2016 - kw","") -> 
E200: Class A/B
A201: =IF(AND(F203=G203,H203=I203,J203=K203,F203="A"),"2016 - kwh",IF(AND(F203=G203,H203=I203,J203<>K203,F203="A"),"2017 - kwh",IF(AND(F203=G203,H203<>I203,F203="A"),"2018 - kwh","N/A"))) -> N/A | B201: =IF(AND(F203="A",G203="A"),"A","") ->  | C201: Customer 58 | E201: kWh | AA201: =IF(AND(F203=G203,H203=I203,F203="A"),"2016 - kwh","") ->  | AB201: =IF(OR(B201="2017 - kwh",B201="2018 - kwh"),"2016 - kwh","") -> 
A202: =IF(AND(F203=G203,H203=I203,J203=K203,F203="A"),"2016 - kw",IF(AND(F203=G203,H203=I203,J203<>K203,F203="A"),"2017 - kw",IF(AND(F203=G203,H203<>I203,F203="A"),"2018 - kw","N/A"))) -> N/A | B202: =IF(AND(F203="A",G203="A"),"A","") ->  | D202: =D201 & "kW" -> kW | E202: kW | AA202: =IF(AND(F203=G203,H203=I203,F203="A"),"2016 - kw","") ->  | AB202: =IF(OR(B202="2017 - kw",B202="2018 - kw"),"2016 - kw","") -> 
E203: Class A/B
A204: =IF(AND(F206=G206,H206=I206,J206=K206,F206="A"),"2016 - kwh",IF(AND(F206=G206,H206=I206,J206<>K206,F206="A"),"2017 - kwh",IF(AND(F206=G206,H206<>I206,F206="A"),"2018 - kwh","N/A"))) -> N/A | B204: =IF(AND(F206="A",G206="A"),"A","") ->  | C204: Customer 59 | E204: kWh | AA204: =IF(AND(F206=G206,H206=I206,F206="A"),"2016 - kwh","") ->  | AB204: =IF(OR(B204="2017 - kwh",B204="2018 - kwh"),"2016 - kwh","") -> 
A205: =IF(AND(F206=G206,H206=I206,J206=K206,F206="A"),"2016 - kw",IF(AND(F206=G206,H206=I206,J206<>K206,F206="A"),"2017 - kw",IF(AND(F206=G206,H206<>I206,F206="A"),"2018 - kw","N/A"))) -> N/A | B205: =IF(AND(F206="A",G206="A"),"A","") ->  | D205: =D204 & "kW" -> kW | E205: kW | AA205: =IF(AND(F206=G206,H206=I206,F206="A"),"2016 - kw","") ->  | AB205: =IF(OR(B205="2017 - kw",B205="2018 - kw"),"2016 - kw","") -> 
E206: Class A/B
A207: =IF(AND(F209=G209,H209=I209,J209=K209,F209="A"),"2016 - kwh",IF(AND(F209=G209,H209=I209,J209<>K209,F209="A"),"2017 - kwh",IF(AND(F209=G209,H209<>I209,F209="A"),"2018 - kwh","N/A"))) -> N/A | B207: =IF(AND(F209="A",G209="A"),"A","") ->  | C207: Customer 60 | E207: kWh | AA207: =IF(AND(F209=G209,H209=I209,F209="A"),"2016 - kwh","") ->  | AB207: =IF(OR(B207="2017 - kwh",B207="2018 - kwh"),"2016 - kwh","") -> 
A208: =IF(AND(F209=G209,H209=I209,J209=K209,F209="A"),"2016 - kw",IF(AND(F209=G209,H209=I209,J209<>K209,F209="A"),"2017 - kw",IF(AND(F209=G209,H209<>I209,F209="A"),"2018 - kw","N/A"))) -> N/A | B208: =IF(AND(F209="A",G209="A"),"A","") ->  | D208: =D207 & "kW" -> kW | E208: kW | AA208: =IF(AND(F209=G209,H209=I209,F209="A"),"2016 - kw","") ->  | AB208: =IF(OR(B208="2017 - kw",B208="2018 - kw"),"2016 - kw","") -> 
E209: Class A/B
A210: =IF(AND(F212=G212,H212=I212,J212=K212,F212="A"),"2016 - kwh",IF(AND(F212=G212,H212=I212,J212<>K212,F212="A"),"2017 - kwh",IF(AND(F212=G212,H212<>I212,F212="A"),"2018 - kwh","N/A"))) -> N/A | B210: =IF(AND(F212="A",G212="A"),"A","") ->  | C210: Customer 61 | E210: kWh | AA210: =IF(AND(F212=G212,H212=I212,F212="A"),"2016 - kwh","") ->  | AB210: =IF(OR(B210="2017 - kwh",B210="2018 - kwh"),"2016 - kwh","") -> 
A211: =IF(AND(F212=G212,H212=I212,J212=K212,F212="A"),"2016 - kw",IF(AND(F212=G212,H212=I212,J212<>K212,F212="A"),"2017 - kw",IF(AND(F212=G212,H212<>I212,F212="A"),"2018 - kw","N/A"))) -> N/A | B211: =IF(AND(F212="A",G212="A"),"A","") ->  | D211: =D210 & "kW" -> kW | E211: kW | AA211: =IF(AND(F212=G212,H212=I212,F212="A"),"2016 - kw","") ->  | AB211: =IF(OR(B211="2017 - kw",B211="2018 - kw"),"2016 - kw","") -> 
E212: Class A/B
A213: =IF(AND(F215=G215,H215=I215,J215=K215,F215="A"),"2016 - kwh",IF(AND(F215=G215,H215=I215,J215<>K215,F215="A"),"2017 - kwh",IF(AND(F215=G215,H215<>I215,F215="A"),"2018 - kwh","N/A"))) -> N/A | B213: =IF(AND(F215="A",G215="A"),"A","") ->  | C213: Customer 62 | E213: kWh | AA213: =IF(AND(F215=G215,H215=I215,F215="A"),"2016 - kwh","") ->  | AB213: =IF(OR(B213="2017 - kwh",B213="2018 - kwh"),"2016 - kwh","") -> 
A214: =IF(AND(F215=G215,H215=I215,J215=K215,F215="A"),"2016 - kw",IF(AND(F215=G215,H215=I215,J215<>K215,F215="A"),"2017 - kw",IF(AND(F215=G215,H215<>I215,F215="A"),"2018 - kw","N/A"))) -> N/A | B214: =IF(AND(F215="A",G215="A"),"A","") ->  | D214: =D213 & "kW" -> kW | E214: kW | AA214: =IF(AND(F215=G215,H215=I215,F215="A"),"2016 - kw","") ->  | AB214: =IF(OR(B214="2017 - kw",B214="2018 - kw"),"2016 - kw","") -> 
E215: Class A/B
A216: =IF(AND(F218=G218,H218=I218,J218=K218,F218="A"),"2016 - kwh",IF(AND(F218=G218,H218=I218,J218<>K218,F218="A"),"2017 - kwh",IF(AND(F218=G218,H218<>I218,F218="A"),"2018 - kwh","N/A"))) -> N/A | B216: =IF(AND(F218="A",G218="A"),"A","") ->  | C216: Customer 63 | E216: kWh | AA216: =IF(AND(F218=G218,H218=I218,F218="A"),"2016 - kwh","") ->  | AB216: =IF(OR(B216="2017 - kwh",B216="2018 - kwh"),"2016 - kwh","") -> 
A217: =IF(AND(F218=G218,H218=I218,J218=K218,F218="A"),"2016 - kw",IF(AND(F218=G218,H218=I218,J218<>K218,F218="A"),"2017 - kw",IF(AND(F218=G218,H218<>I218,F218="A"),"2018 - kw","N/A"))) -> N/A | B217: =IF(AND(F218="A",G218="A"),"A","") ->  | D217: =D216 & "kW" -> kW | E217: kW | AA217: =IF(AND(F218=G218,H218=I218,F218="A"),"2016 - kw","") ->  | AB217: =IF(OR(B217="2017 - kw",B217="2018 - kw"),"2016 - kw","") -> 
E218: Class A/B
A219: =IF(AND(F221=G221,H221=I221,J221=K221,F221="A"),"2016 - kwh",IF(AND(F221=G221,H221=I221,J221<>K221,F221="A"),"2017 - kwh",IF(AND(F221=G221,H221<>I221,F221="A"),"2018 - kwh","N/A"))) -> N/A | B219: =IF(AND(F221="A",G221="A"),"A","") ->  | C219: Customer 64 | E219: kWh | AA219: =IF(AND(F221=G221,H221=I221,F221="A"),"2016 - kwh","") ->  | AB219: =IF(OR(B219="2017 - kwh",B219="2018 - kwh"),"2016 - kwh","") -> 
A220: =IF(AND(F221=G221,H221=I221,J221=K221,F221="A"),"2016 - kw",IF(AND(F221=G221,H221=I221,J221<>K221,F221="A"),"2017 - kw",IF(AND(F221=G221,H221<>I221,F221="A"),"2018 - kw","N/A"))) -> N/A | B220: =IF(AND(F221="A",G221="A"),"A","") ->  | D220: =D219 & "kW" -> kW | E220: kW | AA220: =IF(AND(F221=G221,H221=I221,F221="A"),"2016 - kw","") ->  | AB220: =IF(OR(B220="2017 - kw",B220="2018 - kw"),"2016 - kw","") -> 
... 563 more rows

Sheet 6.1a GA Allocation
A14: This tab allocates the GA balance to transition customers (i.e Class A customers who were former Class B customers and Class B customers who were former Class A customers) who contributed to the current GA balance. The tables below calculate specific amounts for each customer who made the change. The general GA rate rider to non-RPP customers is not to be charged to the transition customers that are allocated amounts in the table below. Consistent with prior decisions, distributors are generally expected to settle the amount through 12 equal adjustments to bills.
A16: Year the Account 1589 GA Balance Last Disposed | B16: =G1LD -> 2016
A17: Allocation of total Non-RPP Consumption (kWh) between Current Class B and Class A/B Transition Customers
C18: Total | D18: 2021 | E18: =D18-1 -> 2020 | F18: =E18-1 -> 2019 | G18: =F18-1 -> 2018 | H18: =G18-1 -> 2017
A19: Non-RPP Consumption Less WMP Consumption | B19: A | C19: =SUM(D19:H19) -> 501045174 | D19: 77027825 | E19: 101102624 | F19: 108935714 | G19: 110692782 | H19: 103286229
A20: Less Class A Consumption for Partial Year Class A Customers | B20: B | C20: =SUM(D20:H20) -> 9065795 | D20: 0 | E20: 0 | F20: 0 | G20: 0 | H20: 9065795
A21: Less Consumption for Full Year Class A Customers | B21: C | C21: =SUM(D21:H21) -> 91043769 | D21: =SUM(IF('6. Class A Consumption Data'!E492:E791="kWh",'6. Class A Consumption Data'!F492:F791)) -> 19769610 | E21: =SUM(IF('6. Class A Consumption Data'!E492:E791="kWh",'6. Class A Consumption Data'!H492:H791)) -> 18907938 | F21: =SUM(IF('6. Class A Consumption Data'!E492:E791="kWh",'6. Class A Consumption Data'!J492:J791)) -> 17721765 | G21: =SUM(IF('6. Class A Consumption Data'!E492:E791="kWh",'6. Class A Consumption Data'!L492:L791)) -> 17417765 | H21: =SUM(IF('6. Class A Consumption Data'!E492:E791="kWh",'6. Class A Consumption Data'!N492:N791)) -> 17226691
A22: Total Class B Consumption for Years During Balance Accumulation | B22: D = A-B-C | C22: =SUM(D22:H22) -> 400935610 | D22: =D19-D20-D21 -> 57258215 | E22: =E19-E20-E21 -> 82194686 | F22: =F19-F20-F21 -> 91213949 | G22: =G19-G20-G21 -> 93275017 | H22: =H19-H20-H21 -> 76993743
A23: All Class B Consumption for Transition Customers | B23: E | C23: =SUM(D23:H23) -> 8160896 | D23: =D184 -> 0 | E23: =E184 -> 0 | F23: =F184 -> 0 | G23: =G184 -> 0 | H23: =H184 -> 8160896
A24: Transition Customers' Portion of Total Consumption | B24: F = E/D | C24: =IFERROR(+C23/C22,0) -> 0.02035463001
A25: Allocation of Total GA Balance $
A27: Total GA Balance | B27: G | C27: ='3. Continuity Schedule'!BT29 -> 4388.128921
A28: Transition Customers Portion of GA Balance | B28: H=F*G | C28: =+C24*C27 -> 89.31874062
A29: GA Balance to be disposed to Current Class B Customers through Rate Rider | B29: I=G-H | C29: =+C27-C28 -> 4298.81018
A31: Allocation of GA Balances to Class A/B Transition Customers
A32: # of Class A/B Transition Customers | C32: =COUNTIF(C34:C183,"<>0") -> 1
A33: Customer | C33: Total Metered Consumption (kWh) for Transition Customers During the Period When They Were Class B Customers | D33: Metered Consumption (kWh) for Transition Customers During the Period When They Were Class B Customers in 2021 | E33: Metered Consumption (kWh) for Transition Customers During the Period When They Were Class B Customers in 2020 | F33: Metered Consumption (kWh) for Transition Customers During the Period When They Were Class B Customers in 2019 | G33: Metered Consumption (kWh) for Transition Customers During the Period When They Were Class B Customers in 2018 | H33: Metered Consumption (kWh) for Transition Customers During the Period When They Were Class B Customers in 2017 | I33: % of kWh | J33: Customer Specific GA Allocation for the Period When They Were Class B customers | K33: Monthly Equal Payments
A34: Customer 1 | C34: =SUM(D34:H34) -> 8160896 | D34: =SUM(IF('6. Class A Consumption Data'!F32:G32="B",'6. Class A Consumption Data'!F30:G30)) -> 0 | E34: =SUM(IF('6. Class A Consumption Data'!H32:I32="B",'6. Class A Consumption Data'!H30:I30)) -> 0 | F34: =SUM(IF('6. Class A Consumption Data'!J32:K32="B",'6. Class A Consumption Data'!J30:K30)) -> 0 | G34: =SUM(IF('6. Class A Consumption Data'!L32:M32="B",'6. Class A Consumption Data'!L30:M30)) -> 0 | H34: =SUM(IF('6. Class A Consumption Data'!N32:O32="B",'6. Class A Consumption Data'!N30:O30)) -> 8160896 | I34: =IFERROR(+C34/$C$184,0) -> 1 | J34: =+I34*$C$28 -> 89.31874062 | K34: =+J34/12 -> 7.443228385
A35: Customer 2 | C35: 0 | D35: 0 | E35: 0 | F35: 0 | G35: 0 | H35: 0 | I35: =IFERROR(+C35/$C$184,0) -> 0 | J35: =+I35*$C$28 -> 0 | K35: =+J35/12 -> 0
A36: Customer 3 | C36: 0 | D36: 0 | E36: 0 | F36: 0 | G36: 0 | H36: 0 | I36: 0 | J36: =+I36*$C$28 -> 0 | K36: =+J36/12 -> 0
A37: Customer 4 | C37: 0 | D37: 0 | E37: 0 | F37: 0 | G37: 0 | H37: 0 | I37: 0 | J37: =+I37*$C$28 -> 0 | K37: =+J37/12 -> 0
A38: Customer 5 | C38: 0 | D38: 0 | E38: 0 | F38: 0 | G38: 0 | H38: 0 | I38: 0 | J38: =+I38*$C$28 -> 0 | K38: =+J38/12 -> 0
A39: Customer 6 | C39: 0 | D39: 0 | E39: 0 | F39: 0 | G39: 0 | H39: 0 | I39: 0 | J39: 0 | K39: 0
A40: Customer 7 | C40: 0 | D40: 0 | E40: 0 | F40: 0 | G40: 0 | H40: 0 | I40: 0 | J40: 0 | K40: 0
A41: Customer 8 | C41: 0 | D41: 0 | E41: 0 | F41: 0 | G41: 0 | H41: 0 | I41: 0 | J41: 0 | K41: 0
A42: Customer 9 | C42: 0 | D42: 0 | E42: 0 | F42: 0 | G42: 0 | H42: 0 | I42: 0 | J42: 0 | K42: 0
A43: Customer 10 | C43: 0 | D43: 0 | E43: 0 | F43: 0 | G43: 0 | H43: 0 | I43: 0 | J43: 0 | K43: 0
A44: Customer 11 | C44: 0 | D44: 0 | E44: 0 | F44: 0 | G44: 0 | H44: 0 | I44: 0 | J44: 0 | K44: 0
A45: Customer 12 | C45: 0 | D45: 0 | E45: 0 | F45: 0 | G45: 0 | H45: 0 | I45: 0 | J45: 0 | K45: 0
A46: Customer 13 | C46: 0 | D46: 0 | E46: 0 | F46: 0 | G46: 0 | H46: 0 | I46: 0 | J46: 0 | K46: 0
A47: Customer 14 | C47: 0 | D47: 0 | E47: 0 | F47: 0 | G47: 0 | H47: 0 | I47: 0 | J47: 0 | K47: 0
A48: Customer 15 | C48: 0 | D48: 0 | E48: 0 | F48: 0 | G48: 0 | H48: 0 | I48: 0 | J48: 0 | K48: 0
A49: Customer 16 | C49: 0 | D49: 0 | E49: 0 | F49: 0 | G49: 0 | H49: 0 | I49: 0 | J49: 0 | K49: 0
A50: Customer 17 | C50: 0 | D50: 0 | E50: 0 | F50: 0 | G50: 0 | H50: 0 | I50: 0 | J50: 0 | K50: 0
A51: Customer 18 | C51: 0 | D51: 0 | E51: 0 | F51: 0 | G51: 0 | H51: 0 | I51: 0 | J51: 0 | K51: 0
A52: Customer 19 | C52: 0 | D52: 0 | E52: 0 | F52: 0 | G52: 0 | H52: 0 | I52: 0 | J52: 0 | K52: 0
A53: Customer 20 | C53: 0 | D53: 0 | E53: 0 | F53: 0 | G53: 0 | H53: 0 | I53: 0 | J53: 0 | K53: 0
A54: Customer 21 | C54: 0 | D54: 0 | E54: 0 | F54: 0 | G54: 0 | H54: 0 | I54: 0 | J54: 0 | K54: 0
A55: Customer 22 | C55: 0 | D55: 0 | E55: 0 | F55: 0 | G55: 0 | H55: 0 | I55: 0 | J55: 0 | K55: 0
A56: Customer 23 | C56: 0 | D56: 0 | E56: 0 | F56: 0 | G56: 0 | H56: 0 | I56: 0 | J56: 0 | K56: 0
A57: Customer 24 | C57: 0 | D57: 0 | E57: 0 | F57: 0 | G57: 0 | H57: 0 | I57: 0 | J57: 0 | K57: 0
A58: Customer 25 | C58: 0 | D58: 0 | E58: 0 | F58: 0 | G58: 0 | H58: 0 | I58: 0 | J58: 0 | K58: 0
A59: Customer 26 | C59: 0 | D59: 0 | E59: 0 | F59: 0 | G59: 0 | H59: 0 | I59: 0 | J59: 0 | K59: 0
A60: Customer 27 | C60: 0 | D60: 0 | E60: 0 | F60: 0 | G60: 0 | H60: 0 | I60: 0 | J60: 0 | K60: 0
A61: Customer 28 | C61: 0 | D61: 0 | E61: 0 | F61: 0 | G61: 0 | H61: 0 | I61: 0 | J61: 0 | K61: 0
A62: Customer 29 | C62: 0 | D62: 0 | E62: 0 | F62: 0 | G62: 0 | H62: 0 | I62: 0 | J62: 0 | K62: 0
A63: Customer 30 | C63: 0 | D63: 0 | E63: 0 | F63: 0 | G63: 0 | H63: 0 | I63: 0 | J63: 0 | K63: 0
A64: Customer 31 | C64: 0 | D64: 0 | E64: 0 | F64: 0 | G64: 0 | H64: 0 | I64: 0 | J64: 0 | K64: 0
A65: Customer 32 | C65: 0 | D65: 0 | E65: 0 | F65: 0 | G65: 0 | H65: 0 | I65: 0 | J65: 0 | K65: 0
A66: Customer 33 | C66: =SUM(D66:H66) -> 0 | D66: 0 | E66: 0 | F66: 0 | G66: 0 | H66: 0 | I66: 0 | J66: 0 | K66: 0
A67: Customer 34 | C67: 0 | D67: 0 | E67: 0 | F67: 0 | G67: 0 | H67: 0 | I67: 0 | J67: 0 | K67: 0
A68: Customer 35 | C68: 0 | D68: 0 | E68: 0 | F68: 0 | G68: 0 | H68: 0 | I68: 0 | J68: 0 | K68: 0
A69: Customer 36 | C69: 0 | D69: 0 | E69: 0 | F69: 0 | G69: 0 | H69: 0 | I69: 0 | J69: 0 | K69: 0
A70: Customer 37 | C70: 0 | D70: 0 | E70: 0 | F70: 0 | G70: 0 | H70: 0 | I70: 0 | J70: 0 | K70: 0
A71: Customer 38 | C71: 0 | D71: 0 | E71: 0 | F71: 0 | G71: 0 | H71: 0 | I71: 0 | J71: 0 | K71: 0
A72: Customer 39 | C72: 0 | D72: 0 | E72: 0 | F72: 0 | G72: 0 | H72: 0 | I72: 0 | J72: 0 | K72: 0
A73: Customer 40 | C73: 0 | D73: 0 | E73: 0 | F73: 0 | G73: 0 | H73: 0 | I73: 0 | J73: 0 | K73: 0
A74: Customer 41 | C74: 0 | D74: 0 | E74: 0 | F74: 0 | G74: 0 | H74: 0 | I74: 0 | J74: 0 | K74: 0
A75: Customer 42 | C75: 0 | D75: 0 | E75: 0 | F75: 0 | G75: 0 | H75: 0 | I75: 0 | J75: 0 | K75: 0
A76: Customer 43 | C76: 0 | D76: 0 | E76: 0 | F76: 0 | G76: 0 | H76: 0 | I76: 0 | J76: 0 | K76: 0
A77: Customer 44 | C77: 0 | D77: 0 | E77: 0 | F77: 0 | G77: 0 | H77: 0 | I77: 0 | J77: 0 | K77: 0
A78: Customer 45 | C78: 0 | D78: 0 | E78: 0 | F78: 0 | G78: 0 | H78: 0 | I78: 0 | J78: 0 | K78: 0
A79: Customer 46 | C79: 0 | D79: 0 | E79: 0 | F79: 0 | G79: 0 | H79: 0 | I79: 0 | J79: 0 | K79: 0
A80: Customer 47 | C80: 0 | D80: 0 | E80: 0 | F80: 0 | G80: 0 | H80: 0 | I80: 0 | J80: 0 | K80: 0
A81: Customer 48 | C81: 0 | D81: 0 | E81: 0 | F81: 0 | G81: 0 | H81: 0 | I81: 0 | J81: 0 | K81: 0
A82: Customer 49 | C82: 0 | D82: 0 | E82: 0 | F82: 0 | G82: 0 | H82: 0 | I82: 0 | J82: 0 | K82: 0
A83: Customer 50 | C83: 0 | D83: 0 | E83: 0 | F83: 0 | G83: 0 | H83: 0 | I83: 0 | J83: 0 | K83: 0
A84: Customer 51 | C84: 0 | D84: 0 | E84: 0 | F84: 0 | G84: 0 | H84: 0 | I84: 0 | J84: 0 | K84: 0
A85: Customer 52 | C85: 0 | D85: 0 | E85: 0 | F85: 0 | G85: 0 | H85: 0 | I85: 0 | J85: 0 | K85: 0
A86: Customer 53 | C86: 0 | D86: 0 | E86: 0 | F86: 0 | G86: 0 | H86: 0 | I86: 0 | J86: 0 | K86: 0
A87: Customer 54 | C87: 0 | D87: 0 | E87: 0 | F87: 0 | G87: 0 | H87: 0 | I87: 0 | J87: 0 | K87: 0
A88: Customer 55 | C88: 0 | D88: 0 | E88: 0 | F88: 0 | G88: 0 | H88: 0 | I88: 0 | J88: 0 | K88: 0
A89: Customer 56 | C89: 0 | D89: 0 | E89: 0 | F89: 0 | G89: 0 | H89: 0 | I89: 0 | J89: 0 | K89: 0
A90: Customer 57 | C90: 0 | D90: 0 | E90: 0 | F90: 0 | G90: 0 | H90: 0 | I90: 0 | J90: 0 | K90: 0
A91: Customer 58 | C91: 0 | D91: 0 | E91: 0 | F91: 0 | G91: 0 | H91: 0 | I91: 0 | J91: 0 | K91: 0
A92: Customer 59 | C92: 0 | D92: 0 | E92: 0 | F92: 0 | G92: 0 | H92: 0 | I92: 0 | J92: 0 | K92: 0
A93: Customer 60 | C93: 0 | D93: 0 | E93: 0 | F93: 0 | G93: 0 | H93: 0 | I93: 0 | J93: 0 | K93: 0
A94: Customer 61 | C94: 0 | D94: 0 | E94: 0 | F94: 0 | G94: 0 | H94: 0 | I94: 0 | J94: 0 | K94: 0
A95: Customer 62 | C95: 0 | D95: 0 | E95: 0 | F95: 0 | G95: 0 | H95: 0 | I95: 0 | J95: 0 | K95: 0
A96: Customer 63 | C96: 0 | D96: 0 | E96: 0 | F96: 0 | G96: 0 | H96: 0 | I96: 0 | J96: 0 | K96: 0
A97: Customer 64 | C97: 0 | D97: 0 | E97: 0 | F97: 0 | G97: 0 | H97: 0 | I97: 0 | J97: 0 | K97: 0
A98: Customer 65 | C98: =SUM(D98:H98) -> 0 | D98: 0 | E98: 0 | F98: 0 | G98: 0 | H98: 0 | I98: 0 | J98: 0 | K98: 0
A99: Customer 66 | C99: 0 | D99: 0 | E99: 0 | F99: 0 | G99: 0 | H99: 0 | I99: =IFERROR(+C99/$C$184,0) -> 0 | J99: 0 | K99: 0
A100: Customer 67 | C100: 0 | D100: 0 | E100: 0 | F100: 0 | G100: 0 | H100: 0 | I100: 0 | J100: 0 | K100: 0
A101: Customer 68 | C101: 0 | D101: 0 | E101: 0 | F101: 0 | G101: 0 | H101: 0 | I101: 0 | J101: 0 | K101: 0
A102: Customer 69 | C102: 0 | D102: 0 | E102: 0 | F102: 0 | G102: 0 | H102: 0 | I102: 0 | J102: =+I102*$C$28 -> 0 | K102: =+J102/12 -> 0
A103: Customer 70 | C103: 0 | D103: 0 | E103: 0 | F103: 0 | G103: 0 | H103: 0 | I103: 0 | J103: 0 | K103: 0
A104: Customer 71 | C104: 0 | D104: 0 | E104: 0 | F104: 0 | G104: 0 | H104: 0 | I104: 0 | J104: 0 | K104: 0
A105: Customer 72 | C105: 0 | D105: 0 | E105: 0 | F105: 0 | G105: 0 | H105: 0 | I105: 0 | J105: 0 | K105: 0
A106: Customer 73 | C106: 0 | D106: 0 | E106: 0 | F106: 0 | G106: 0 | H106: 0 | I106: 0 | J106: 0 | K106: 0
A107: Customer 74 | C107: 0 | D107: 0 | E107: 0 | F107: 0 | G107: 0 | H107: 0 | I107: 0 | J107: 0 | K107: 0
A108: Customer 75 | C108: 0 | D108: 0 | E108: 0 | F108: 0 | G108: 0 | H108: 0 | I108: 0 | J108: 0 | K108: 0
A109: Customer 76 | C109: 0 | D109: 0 | E109: 0 | F109: 0 | G109: 0 | H109: 0 | I109: 0 | J109: 0 | K109: 0
A110: Customer 77 | C110: 0 | D110: 0 | E110: 0 | F110: 0 | G110: 0 | H110: 0 | I110: 0 | J110: 0 | K110: 0
A111: Customer 78 | C111: 0 | D111: 0 | E111: 0 | F111: 0 | G111: 0 | H111: 0 | I111: 0 | J111: 0 | K111: 0
A112: Customer 79 | C112: 0 | D112: 0 | E112: 0 | F112: 0 | G112: 0 | H112: 0 | I112: 0 | J112: 0 | K112: 0
A113: Customer 80 | C113: 0 | D113: 0 | E113: 0 | F113: 0 | G113: 0 | H113: 0 | I113: 0 | J113: 0 | K113: 0
A114: Customer 81 | C114: 0 | D114: 0 | E114: 0 | F114: 0 | G114: 0 | H114: 0 | I114: 0 | J114: 0 | K114: 0
A115: Customer 82 | C115: 0 | D115: 0 | E115: 0 | F115: 0 | G115: 0 | H115: 0 | I115: 0 | J115: 0 | K115: 0
A116: Customer 83 | C116: 0 | D116: 0 | E116: 0 | F116: 0 | G116: 0 | H116: 0 | I116: 0 | J116: 0 | K116: 0
A117: Customer 84 | C117: 0 | D117: 0 | E117: 0 | F117: 0 | G117: 0 | H117: 0 | I117: 0 | J117: 0 | K117: 0
A118: Customer 85 | C118: 0 | D118: 0 | E118: 0 | F118: 0 | G118: 0 | H118: 0 | I118: 0 | J118: 0 | K118: 0
A119: Customer 86 | C119: 0 | D119: 0 | E119: 0 | F119: 0 | G119: 0 | H119: 0 | I119: 0 | J119: 0 | K119: 0
A120: Customer 87 | C120: 0 | D120: 0 | E120: 0 | F120: 0 | G120: 0 | H120: 0 | I120: 0 | J120: 0 | K120: 0
A121: Customer 88 | C121: 0 | D121: 0 | E121: 0 | F121: 0 | G121: 0 | H121: 0 | I121: 0 | J121: 0 | K121: 0
A122: Customer 89 | C122: 0 | D122: 0 | E122: 0 | F122: 0 | G122: 0 | H122: 0 | I122: 0 | J122: 0 | K122: 0
A123: Customer 90 | C123: 0 | D123: 0 | E123: 0 | F123: 0 | G123: 0 | H123: 0 | I123: 0 | J123: 0 | K123: 0
A124: Customer 91 | C124: 0 | D124: 0 | E124: 0 | F124: 0 | G124: 0 | H124: 0 | I124: 0 | J124: 0 | K124: 0
A125: Customer 92 | C125: 0 | D125: 0 | E125: 0 | F125: 0 | G125: 0 | H125: 0 | I125: 0 | J125: 0 | K125: 0
A126: Customer 93 | C126: 0 | D126: 0 | E126: 0 | F126: 0 | G126: 0 | H126: 0 | I126: 0 | J126: 0 | K126: 0
A127: Customer 94 | C127: 0 | D127: 0 | E127: 0 | F127: 0 | G127: 0 | H127: 0 | I127: 0 | J127: 0 | K127: 0
A128: Customer 95 | C128: 0 | D128: 0 | E128: 0 | F128: 0 | G128: 0 | H128: 0 | I128: 0 | J128: 0 | K128: 0
A129: Customer 96 | C129: 0 | D129: 0 | E129: 0 | F129: 0 | G129: 0 | H129: 0 | I129: 0 | J129: 0 | K129: 0
A130: Customer 97 | C130: =SUM(D130:H130) -> 0 | D130: 0 | E130: 0 | F130: 0 | G130: 0 | H130: 0 | I130: 0 | J130: 0 | K130: 0
A131: Customer 98 | C131: 0 | D131: 0 | E131: 0 | F131: 0 | G131: 0 | H131: 0 | I131: 0 | J131: 0 | K131: 0
A132: Customer 99 | C132: 0 | D132: 0 | E132: 0 | F132: 0 | G132: 0 | H132: 0 | I132: 0 | J132: 0 | K132: 0
A133: Customer 100 | C133: 0 | D133: 0 | E133: 0 | F133: 0 | G133: 0 | H133: 0 | I133: 0 | J133: 0 | K133: 0
A134: Customer 101 | C134: 0 | D134: 0 | E134: 0 | F134: 0 | G134: 0 | H134: 0 | I134: 0 | J134: 0 | K134: 0
A135: Customer 102 | C135: 0 | D135: 0 | E135: 0 | F135: 0 | G135: 0 | H135: 0 | I135: 0 | J135: 0 | K135: 0
A136: Customer 103 | C136: 0 | D136: 0 | E136: 0 | F136: 0 | G136: 0 | H136: 0 | I136: 0 | J136: 0 | K136: 0
A137: Customer 104 | C137: 0 | D137: 0 | E137: 0 | F137: 0 | G137: 0 | H137: 0 | I137: 0 | J137: 0 | K137: 0
A138: Customer 105 | C138: 0 | D138: 0 | E138: 0 | F138: 0 | G138: 0 | H138: 0 | I138: 0 | J138: 0 | K138: 0
A139: Customer 106 | C139: 0 | D139: 0 | E139: 0 | F139: 0 | G139: 0 | H139: 0 | I139: 0 | J139: 0 | K139: 0
A140: Customer 107 | C140: 0 | D140: 0 | E140: 0 | F140: 0 | G140: 0 | H140: 0 | I140: 0 | J140: 0 | K140: 0
A141: Customer 108 | C141: 0 | D141: 0 | E141: 0 | F141: 0 | G141: 0 | H141: 0 | I141: 0 | J141: 0 | K141: 0
A142: Customer 109 | C142: 0 | D142: 0 | E142: 0 | F142: 0 | G142: 0 | H142: 0 | I142: 0 | J142: 0 | K142: 0
A143: Customer 110 | C143: 0 | D143: 0 | E143: 0 | F143: 0 | G143: 0 | H143: 0 | I143: 0 | J143: 0 | K143: 0
A144: Customer 111 | C144: 0 | D144: 0 | E144: 0 | F144: 0 | G144: 0 | H144: 0 | I144: 0 | J144: 0 | K144: 0
A145: Customer 112 | C145: 0 | D145: 0 | E145: 0 | F145: 0 | G145: 0 | H145: 0 | I145: 0 | J145: 0 | K145: 0
A146: Customer 113 | C146: 0 | D146: 0 | E146: 0 | F146: 0 | G146: 0 | H146: 0 | I146: 0 | J146: 0 | K146: 0
A147: Customer 114 | C147: 0 | D147: 0 | E147: 0 | F147: 0 | G147: 0 | H147: 0 | I147: 0 | J147: 0 | K147: 0
A148: Customer 115 | C148: 0 | D148: 0 | E148: 0 | F148: 0 | G148: 0 | H148: 0 | I148: 0 | J148: 0 | K148: 0
A149: Customer 116 | C149: 0 | D149: 0 | E149: 0 | F149: 0 | G149: 0 | H149: 0 | I149: 0 | J149: 0 | K149: 0
A150: Customer 117 | C150: 0 | D150: 0 | E150: 0 | F150: 0 | G150: 0 | H150: 0 | I150: 0 | J150: 0 | K150: 0
A151: Customer 118 | C151: 0 | D151: 0 | E151: 0 | F151: 0 | G151: 0 | H151: 0 | I151: 0 | J151: 0 | K151: 0
A152: Customer 119 | C152: 0 | D152: 0 | E152: 0 | F152: 0 | G152: 0 | H152: 0 | I152: 0 | J152: 0 | K152: 0
A153: Customer 120 | C153: 0 | D153: 0 | E153: 0 | F153: 0 | G153: 0 | H153: 0 | I153: 0 | J153: 0 | K153: 0
A154: Customer 121 | C154: 0 | D154: 0 | E154: 0 | F154: 0 | G154: 0 | H154: 0 | I154: 0 | J154: 0 | K154: 0
A155: Customer 122 | C155: 0 | D155: 0 | E155: 0 | F155: 0 | G155: 0 | H155: 0 | I155: 0 | J155: 0 | K155: 0
A156: Customer 123 | C156: 0 | D156: 0 | E156: 0 | F156: 0 | G156: 0 | H156: 0 | I156: 0 | J156: 0 | K156: 0
A157: Customer 124 | C157: 0 | D157: 0 | E157: 0 | F157: 0 | G157: 0 | H157: 0 | I157: 0 | J157: 0 | K157: 0
A158: Customer 125 | C158: 0 | D158: 0 | E158: 0 | F158: 0 | G158: 0 | H158: 0 | I158: 0 | J158: 0 | K158: 0
A159: Customer 126 | C159: 0 | D159: 0 | E159: 0 | F159: 0 | G159: 0 | H159: 0 | I159: 0 | J159: 0 | K159: 0
A160: Customer 127 | C160: 0 | D160: 0 | E160: 0 | F160: 0 | G160: 0 | H160: 0 | I160: 0 | J160: 0 | K160: 0
A161: Customer 128 | C161: 0 | D161: 0 | E161: 0 | F161: 0 | G161: 0 | H161: 0 | I161: 0 | J161: 0 | K161: 0
A162: Customer 129 | C162: =SUM(D162:H162) -> 0 | D162: 0 | E162: 0 | F162: 0 | G162: 0 | H162: 0 | I162: 0 | J162: 0 | K162: 0
A163: Customer 130 | C163: 0 | D163: 0 | E163: 0 | F163: 0 | G163: 0 | H163: 0 | I163: =IFERROR(+C163/$C$184,0) -> 0 | J163: 0 | K163: 0
A164: Customer 131 | C164: 0 | D164: 0 | E164: 0 | F164: 0 | G164: 0 | H164: 0 | I164: 0 | J164: 0 | K164: 0
A165: Customer 132 | C165: 0 | D165: 0 | E165: 0 | F165: 0 | G165: 0 | H165: 0 | I165: 0 | J165: 0 | K165: 0
A166: Customer 133 | C166: 0 | D166: 0 | E166: 0 | F166: 0 | G166: 0 | H166: 0 | I166: 0 | J166: =+I166*$C$28 -> 0 | K166: =+J166/12 -> 0
A167: Customer 134 | C167: 0 | D167: 0 | E167: 0 | F167: 0 | G167: 0 | H167: 0 | I167: 0 | J167: 0 | K167: 0
A168: Customer 135 | C168: 0 | D168: 0 | E168: 0 | F168: 0 | G168: 0 | H168: 0 | I168: 0 | J168: 0 | K168: 0
A169: Customer 136 | C169: 0 | D169: 0 | E169: 0 | F169: 0 | G169: 0 | H169: 0 | I169: 0 | J169: 0 | K169: 0
A170: Customer 137 | C170: 0 | D170: 0 | E170: 0 | F170: 0 | G170: 0 | H170: 0 | I170: 0 | J170: 0 | K170: 0
A171: Customer 138 | C171: 0 | D171: 0 | E171: 0 | F171: 0 | G171: 0 | H171: 0 | I171: 0 | J171: 0 | K171: 0
A172: Customer 139 | C172: 0 | D172: 0 | E172: 0 | F172: 0 | G172: 0 | H172: 0 | I172: 0 | J172: 0 | K172: 0
A173: Customer 140 | C173: 0 | D173: 0 | E173: 0 | F173: 0 | G173: 0 | H173: 0 | I173: 0 | J173: 0 | K173: 0
A174: Customer 141 | C174: 0 | D174: 0 | E174: 0 | F174: 0 | G174: 0 | H174: 0 | I174: 0 | J174: 0 | K174: 0
A175: Customer 142 | C175: 0 | D175: 0 | E175: 0 | F175: 0 | G175: 0 | H175: 0 | I175: 0 | J175: 0 | K175: 0
A176: Customer 143 | C176: 0 | D176: 0 | E176: 0 | F176: 0 | G176: 0 | H176: 0 | I176: 0 | J176: 0 | K176: 0
A177: Customer 144 | C177: 0 | D177: 0 | E177: 0 | F177: 0 | G177: 0 | H177: 0 | I177: 0 | J177: 0 | K177: 0
A178: Customer 145 | C178: 0 | D178: 0 | E178: 0 | F178: 0 | G178: 0 | H178: 0 | I178: 0 | J178: 0 | K178: 0
A179: Customer 146 | C179: 0 | D179: 0 | E179: 0 | F179: 0 | G179: 0 | H179: 0 | I179: 0 | J179: 0 | K179: 0
A180: Customer 147 | C180: 0 | D180: 0 | E180: 0 | F180: 0 | G180: 0 | H180: 0 | I180: 0 | J180: 0 | K180: 0
A181: Customer 148 | C181: 0 | D181: 0 | E181: 0 | F181: 0 | G181: 0 | H181: 0 | I181: 0 | J181: 0 | K181: 0
A182: Customer 149 | C182: 0 | D182: 0 | E182: 0 | F182: 0 | G182: 0 | H182: 0 | I182: 0 | J182: 0 | K182: 0
A183: Customer 150 | C183: 0 | D183: 0 | E183: 0 | F183: 0 | G183: 0 | H183: 0 | I183: 0 | J183: 0 | K183: 0
A184: Total | C184: =SUM(C34:C183) -> 8160896 | D184: 0 | E184: 0 | F184: 0 | G184: 0 | H184: 8160896 | I184: 1 | J184: 89.31874062

Sheet 6.1 GA
B2: TRUE
B6: Total
A12: The purpose of this tab is to calculate the GA rate riders for all current Class B customers who did not transition between Class A and B in the period since the Account 1589 GA was last disposed. Calculations in this tab will be modified upon completion of tab 6.1a, which allocates a portion of the GA balance to transition customers, if applicable. Effective January 2017, the billing determinant and all rate riders for the disposition of GA balances will be calculated on an energy basis (kWhs) regardless of the billing determinant used for distribution rates for the particular class (see Chapter 3, Filing Requirements) | I12: Default Rate Rider Recovery Period (in months) | K12: 12
I13: Proposed Rate Rider Recovery Period (in months) | K13: 12 | L13: =IF(K13>0, "Rate Rider Recovery to be used below", "If no rate rider recovery period is proposed then the default recovery period of 12 months will be used") -> Rate Rider Recovery to be used below
C14: Total Metered Non-RPP 2021 Consumption excluding WMP | E14: Total Metered 2021 Consumption for Class A Customers that were Class A for the entire period GA balance accumulated | G14: Total Metered 2021 Consumption for Customers that Transitioned Between Class A and B during the period GA balance accumulated | I14: Non-RPP Metered 2021 Consumption for Current Class B Customers (Non-RPP Consumption excluding WMP, Class A and Transition Customers' Consumption) | K14: % of total kWh | L14: Total GA $ allocated to Current Class B Customers | M14: GA Rate Rider
C15: kWh | D15: kW | E15: kWh | F15: kW | G15: kWh | H15: kW | I15: kWh | J15: kW
A17: RESIDENTIAL SERVICE CLASSIFICATION | B17: kWh | C17: 1937382 | D17: 0 | E17: =SUM(IF('6. Class A Consumption Data'!D492:D791=A17,'6. Class A Consumption Data'!F492:F791)) -> 0 | G17: =SUM(IF(('6. Class A Consumption Data'!D30:D479=A17)*('6. Class A Consumption Data'!B30:B479 <> "A"),'6. Class A Consumption Data'!F30:G479)) -> 0 | I17: =ROUND((C17-E17-G17),0) -> 1937382 | J17: =(D17-F17-H17) -> 0 | K17: =(I17/I24) -> 0.0338358784 | L17: =ROUND((0*K17),0) -> 0 | M17: =ROUND(IF(ISERROR(L17/I17),0,IF(OR(ISBLANK(K13), OR(K13=0, K13="")), L17/I17/(K12/12), L17/I17/(K13/12))),4) -> 0 | N17: kWh
A18: GENERAL SERVICE LESS THAN 50 KW SERVICE CLASSIFICATION | B18: kWh | C18: 6104658 | D18: 0 | E18: =SUM(IF('6. Class A Consumption Data'!D492:D791=A18,'6. Class A Consumption Data'!F492:F791)) -> 0 | G18: =SUM(IF(('6. Class A Consumption Data'!D30:D479=A18)*('6. Class A Consumption Data'!B30:B479 <> "A"),'6. Class A Consumption Data'!F30:G479)) -> 0 | I18: 6104658 | J18: 0 | K18: =(I18/I24) -> 0.106616282 | L18: 0 | M18: =ROUND(IF(ISERROR(L18/I18),0,IF(OR(ISBLANK(K13), OR(K13=0, K13="")), L18/I18/(K12/12), L18/I18/(K13/12))),4) -> 0 | N18: kWh
A19: GENERAL SERVICE 50 to 4,999 kW SERVICE CLASSIFICATION | B19: kWh | C19: 16475346 | D19: 0 | E19: =SUM(IF('6. Class A Consumption Data'!D492:D791=A19,'6. Class A Consumption Data'!F492:F791)) -> 19769610 | G19: =SUM(IF(('6. Class A Consumption Data'!D30:D479=A19)*('6. Class A Consumption Data'!B30:B479 <> "A"),'6. Class A Consumption Data'!F30:G479)) -> 0 | I19: -3294264 | J19: 0 | K19: =(I19/I24) -> -0.05753347358 | L19: 0 | M19: =ROUND(IF(ISERROR(L19/I19),0,IF(OR(ISBLANK(K13), OR(K13=0, K13="")), L19/I19/(K12/12), L19/I19/(K13/12))),4) -> 0 | N19: kWh
A20: UNMETERED SCATTERED LOAD SERVICE CLASSIFICATION | B20: kWh | C20: 248173 | D20: 0 | E20: =SUM(IF('6. Class A Consumption Data'!D492:D791=A20,'6. Class A Consumption Data'!F492:F791)) -> 0 | G20: =SUM(IF(('6. Class A Consumption Data'!D30:D479=A20)*('6. Class A Consumption Data'!B30:B479 <> "A"),'6. Class A Consumption Data'!F30:G479)) -> 0 | I20: 248173 | J20: 0 | K20: =(I20/I24) -> 0.004334277623 | L20: 0 | M20: =ROUND(IF(ISERROR(L20/I20),0,IF(OR(ISBLANK(K13), OR(K13=0, K13="")), L20/I20/(K12/12), L20/I20/(K13/12))),4) -> 0 | N20: kWh
A21: SENTINEL LIGHTING SERVICE CLASSIFICATION | B21: kWh | C21: 137713 | D21: 357 | E21: =SUM(IF('6. Class A Consumption Data'!D492:D791=A21,'6. Class A Consumption Data'!F492:F791)) -> 0 | G21: =SUM(IF(('6. Class A Consumption Data'!D30:D479=A21)*('6. Class A Consumption Data'!B30:B479 <> "A"),'6. Class A Consumption Data'!F30:G479)) -> 0 | I21: 137713 | J21: 357 | K21: =(I21/I24) -> 0.00240512213 | L21: 0 | M21: =ROUND(IF(ISERROR(L21/I21),0,IF(OR(ISBLANK(K13), OR(K13=0, K13="")), L21/I21/(K12/12), L21/I21/(K13/12))),4) -> 0 | N21: kWh
A22: STREET LIGHTING SERVICE CLASSIFICATION | B22: kWh | C22: 1265084 | D22: 3399 | E22: =SUM(IF('6. Class A Consumption Data'!D492:D791=A22,'6. Class A Consumption Data'!F492:F791)) -> 0 | G22: =SUM(IF(('6. Class A Consumption Data'!D30:D479=A22)*('6. Class A Consumption Data'!B30:B479 <> "A"),'6. Class A Consumption Data'!F30:G479)) -> 0 | I22: 1265084 | J22: 3399 | K22: =(I22/I24) -> 0.02209436672 | L22: 0 | M22: =ROUND(IF(ISERROR(L22/I22),0,IF(OR(ISBLANK(K13), OR(K13=0, K13="")), L22/I22/(K12/12), L22/I22/(K13/12))),4) -> 0 | N22: kWh
A23: EMBEDDED DISTRIBUTOR SERVICE CLASSIFICATION | B23: kWh | C23: 50859469 | D23: 115598 | E23: =SUM(IF('6. Class A Consumption Data'!D492:D791=A23,'6. Class A Consumption Data'!F492:F791)) -> 0 | G23: =SUM(IF(('6. Class A Consumption Data'!D30:D479=A23)*('6. Class A Consumption Data'!B30:B479 <> "A"),'6. Class A Consumption Data'!F30:G479)) -> 0 | I23: 50859469 | J23: 115598 | K23: =(I23/I24) -> 0.8882475467 | L23: 0 | M23: =ROUND(IF(ISERROR(L23/I23),0,IF(OR(ISBLANK(K13), OR(K13=0, K13="")), L23/I23/(K12/12), L23/I23/(K13/12))),4) -> 0 | N23: kWh
B24: Total | C24: 77027825 | D24: 119354 | E24: =SUM(E17:E23) -> 19769610 | F24: 0 | G24: 0 | H24: 0 | I24: 57258215 | J24: 119354 | K24: 1 | L24: 0

Sheet 6.2a CBR B_Allocation
A14: This tab allocates the CBR Class B balance to transition customers (i.e Class A customers who were former Class B customers and Class B customers who were former Class A customers) who contributed to the current CBR Class B balance. The tables below calculate specific amounts for each customer who made the change. The general CBR Class B rate rider is not to be charged to the transition customers that are allocated amounts in the table below. Consistent with prior decisions, distributors are generally expected to settle the amount through 12 equal adjustments to bills.
A16: Year Account 1580 CBR Class B was Last Disposed | B16: =G1LDCBR -> 2020
A17: Allocation of Total Consumption (kWh) between Current Class B and Class A/B Transition Customers
C18: Total | D18: 2021 | E18: =D18-1 -> 2020 | F18: =E18-1 -> 2019 | G18: =F18-1 -> 2018 | H18: =G18-1 -> 2017
A19: Total Consumption Less WMP Consumption | B19: A | C19: 242792191 | D19: 242792191
A20: Less Class A Consumption for Partial Year Class A Customers | B20: B | C20: 0 | D20: 0 | E20: 0 | F20: 0 | G20: 0 | H20: 9065795
A21: Less Consumption for Full Year Class A Customers | B21: C | C21: 19769610 | D21: =SUM(IF('6. Class A Consumption Data'!E492:E791="kWh",'6. Class A Consumption Data'!F492:F791)) -> 19769610 | E21: =SUM(IF('6. Class A Consumption Data'!E492:E791="kWh",'6. Class A Consumption Data'!H492:H791)) -> 18907938 | F21: =SUM(IF('6. Class A Consumption Data'!E492:E791="kWh",'6. Class A Consumption Data'!J492:J791)) -> 17721765 | G21: =SUM(IF('6. Class A Consumption Data'!E492:E791="kWh",'6. Class A Consumption Data'!L492:L791)) -> 17417765 | H21: =SUM(IF('6. Class A Consumption Data'!E492:E791="kWh",'6. Class A Consumption Data'!N492:N791)) -> 17226691
A22: Total Class B Consumption for Years During Balance Accumulation | B22: D = A-B-C | C22: 223022581 | D22: =D19-D20-D21 -> 223022581 | E22: =E19-E20-E21 -> -18907938 | F22: =F19-F20-F21 -> -17721765 | G22: =G19-G20-G21 -> -17417765 | H22: =H19-H20-H21 -> -26292486
A23: All Class B Consumption for Transition Customers | B23: E | C23: 0 | D23: =D184 -> 0 | E23: =E184 -> 0 | F23: =F184 -> 0 | G23: =G184 -> 0 | H23: =H184 -> 8160896
A24: Transition Customers' Portion of Total Consumption | B24: F = E/D | C24: =IFERROR(+C23/C22,0) -> 0
A26: Allocation of Total CBR Class B Balance $
A27: Total CBR Class B Balance | B27: G | C27: ='3. Continuity Schedule'!BT25 -> 2243.864033
A28: Transition Customers Portion of CBR Class B Balance | B28: H=F*G | C28: =+C24*C27 -> 0
A29: CBR Class B Balance to be disposed to Current Class B Customers through Rate Rider | B29: I=G-H | C29: =+C27-C28 -> 2243.864033
A31: Allocation of CBR Class B Balances to Transition Customers
A32: # of Class A/B Transition Customers | C32: =COUNTIF(C34:C183,"<>0") -> 0
A33: Customer | C33: Total Metered Class B Consumption (kWh) for Transition Customers During the Period When They were Class B Customers | D33: Metered Class B Consumption (kWh) for Transition Customers During the Period When They were Class B Customers in 2021 | E33: Metered Class B Consumption (kWh) for Transition Customers During the Period When They were Class B Customers in 2020 | F33: Metered Class B Consumption (kWh) for Transition Customers During the Period When They were Class B Customers in 2019 | G33: Metered Class B Consumption (kWh) for Transition Customers During the Period When They were Class B Customers in 2018 | H33: Metered Class B Consumption (kWh) for Transition Customers During the Period When They were Class B Customers in 2017 | I33: % of kWh | J33: Customer Specific CBR Class B Allocation for the Period When They Were Class B Customers | K33: Monthly Equal Payments | L33: Revised Monthly Payment | N33: If the CBR Class B rate rider calculated in tab 6.2 rounds to zero at the fourth decimal place for one or more rate classes, the entire balance in Account 1580 CBR Class B, including the amount allocated to transition customers will be transferred to Account 1580 WMS and disposed through the general purpose Group 1 rate riders
A34: Customer 1 | C34: 0 | D34: 0 | E34: =SUM(IF('6. Class A Consumption Data'!H32:I32="B",'6. Class A Consumption Data'!H30:I30)) -> 0 | F34: =SUM(IF('6. Class A Consumption Data'!J32:K32="B",'6. Class A Consumption Data'!J30:K30)) -> 0 | G34: =SUM(IF('6. Class A Consumption Data'!L32:M32="B",'6. Class A Consumption Data'!L30:M30)) -> 0 | H34: =SUM(IF('6. Class A Consumption Data'!N32:O32="B",'6. Class A Consumption Data'!N30:O30)) -> 8160896 | I34: =IFERROR(+C34/($C$184),0) -> 0 | J34: =+I34*$C$28 -> 0 | K34: =+J34/12 -> 0 | L34: 0
A35: Customer 2 | C35: 0 | D35: 0 | E35: =SUM(IF('6. Class A Consumption Data'!H35:I35="B",'6. Class A Consumption Data'!H33:I33)) -> 0 | F35: =SUM(IF('6. Class A Consumption Data'!J35:K35="B",'6. Class A Consumption Data'!J33:K33)) -> 0 | G35: =SUM(IF('6. Class A Consumption Data'!L35:M35="B",'6. Class A Consumption Data'!L33:M33)) -> 0 | H35: =SUM(IF('6. Class A Consumption Data'!N35:O35="B",'6. Class A Consumption Data'!N33:O33)) -> 0 | I35: 0 | J35: 0 | K35: 0 | L35: 0
A36: Customer 3 | C36: 0 | D36: 0 | E36: =SUM(IF('6. Class A Consumption Data'!H38:I38="B",'6. Class A Consumption Data'!H36:I36)) -> 0 | F36: =SUM(IF('6. Class A Consumption Data'!J38:K38="B",'6. Class A Consumption Data'!J36:K36)) -> 0 | G36: =SUM(IF('6. Class A Consumption Data'!L38:M38="B",'6. Class A Consumption Data'!L36:M36)) -> 0 | H36: =SUM(IF('6. Class A Consumption Data'!N38:O38="B",'6. Class A Consumption Data'!N36:O36)) -> 0 | I36: 0 | J36: 0 | K36: 0 | L36: 0
A37: Customer 4 | C37: 0 | D37: 0 | E37: =SUM(IF('6. Class A Consumption Data'!H41:I41="B",'6. Class A Consumption Data'!H39:I39)) -> 0 | F37: =SUM(IF('6. Class A Consumption Data'!J41:K41="B",'6. Class A Consumption Data'!J39:K39)) -> 0 | G37: =SUM(IF('6. Class A Consumption Data'!L41:M41="B",'6. Class A Consumption Data'!L39:M39)) -> 0 | H37: =SUM(IF('6. Class A Consumption Data'!N41:O41="B",'6. Class A Consumption Data'!N39:O39)) -> 0 | I37: 0 | J37: 0 | K37: 0 | L37: 0
A38: Customer 5 | C38: 0 | D38: 0 | E38: =SUM(IF('6. Class A Consumption Data'!H44:I44="B",'6. Class A Consumption Data'!H42:I42)) -> 0 | F38: =SUM(IF('6. Class A Consumption Data'!J44:K44="B",'6. Class A Consumption Data'!J42:K42)) -> 0 | G38: =SUM(IF('6. Class A Consumption Data'!L44:M44="B",'6. Class A Consumption Data'!L42:M42)) -> 0 | H38: =SUM(IF('6. Class A Consumption Data'!N44:O44="B",'6. Class A Consumption Data'!N42:O42)) -> 0 | I38: 0 | J38: 0 | K38: 0 | L38: 0
A39: Customer 6 | C39: 0 | D39: 0 | E39: =SUM(IF('6. Class A Consumption Data'!H47:I47="B",'6. Class A Consumption Data'!H45:I45)) -> 0 | F39: =SUM(IF('6. Class A Consumption Data'!J47:K47="B",'6. Class A Consumption Data'!J45:K45)) -> 0 | G39: =SUM(IF('6. Class A Consumption Data'!L47:M47="B",'6. Class A Consumption Data'!L45:M45)) -> 0 | H39: =SUM(IF('6. Class A Consumption Data'!N47:O47="B",'6. Class A Consumption Data'!N45:O45)) -> 0 | I39: 0 | J39: 0 | K39: 0 | L39: 0
A40: Customer 7 | C40: 0 | D40: 0 | E40: =SUM(IF('6. Class A Consumption Data'!H50:I50="B",'6. Class A Consumption Data'!H48:I48)) -> 0 | F40: =SUM(IF('6. Class A Consumption Data'!J50:K50="B",'6. Class A Consumption Data'!J48:K48)) -> 0 | G40: =SUM(IF('6. Class A Consumption Data'!L50:M50="B",'6. Class A Consumption Data'!L48:M48)) -> 0 | H40: =SUM(IF('6. Class A Consumption Data'!N50:O50="B",'6. Class A Consumption Data'!N48:O48)) -> 0 | I40: 0 | J40: 0 | K40: 0 | L40: 0
A41: Customer 8 | C41: 0 | D41: 0 | E41: =SUM(IF('6. Class A Consumption Data'!H53:I53="B",'6. Class A Consumption Data'!H51:I51)) -> 0 | F41: =SUM(IF('6. Class A Consumption Data'!J53:K53="B",'6. Class A Consumption Data'!J51:K51)) -> 0 | G41: =SUM(IF('6. Class A Consumption Data'!L53:M53="B",'6. Class A Consumption Data'!L51:M51)) -> 0 | H41: =SUM(IF('6. Class A Consumption Data'!N53:O53="B",'6. Class A Consumption Data'!N51:O51)) -> 0 | I41: 0 | J41: 0 | K41: 0 | L41: 0
A42: Customer 9 | C42: 0 | D42: 0 | E42: =SUM(IF('6. Class A Consumption Data'!H56:I56="B",'6. Class A Consumption Data'!H54:I54)) -> 0 | F42: =SUM(IF('6. Class A Consumption Data'!J56:K56="B",'6. Class A Consumption Data'!J54:K54)) -> 0 | G42: =SUM(IF('6. Class A Consumption Data'!L56:M56="B",'6. Class A Consumption Data'!L54:M54)) -> 0 | H42: =SUM(IF('6. Class A Consumption Data'!N56:O56="B",'6. Class A Consumption Data'!N54:O54)) -> 0 | I42: 0 | J42: 0 | K42: 0 | L42: 0
A43: Customer 10 | C43: 0 | D43: 0 | E43: =SUM(IF('6. Class A Consumption Data'!H59:I59="B",'6. Class A Consumption Data'!H57:I57)) -> 0 | F43: =SUM(IF('6. Class A Consumption Data'!J59:K59="B",'6. Class A Consumption Data'!J57:K57)) -> 0 | G43: =SUM(IF('6. Class A Consumption Data'!L59:M59="B",'6. Class A Consumption Data'!L57:M57)) -> 0 | H43: =SUM(IF('6. Class A Consumption Data'!N59:O59="B",'6. Class A Consumption Data'!N57:O57)) -> 0 | I43: 0 | J43: 0 | K43: 0 | L43: 0
A44: Customer 11 | C44: 0 | D44: 0 | E44: =SUM(IF('6. Class A Consumption Data'!H62:I62="B",'6. Class A Consumption Data'!H60:I60)) -> 0 | F44: =SUM(IF('6. Class A Consumption Data'!J62:K62="B",'6. Class A Consumption Data'!J60:K60)) -> 0 | G44: =SUM(IF('6. Class A Consumption Data'!L62:M62="B",'6. Class A Consumption Data'!L60:M60)) -> 0 | H44: =SUM(IF('6. Class A Consumption Data'!N62:O62="B",'6. Class A Consumption Data'!N60:O60)) -> 0 | I44: 0 | J44: 0 | K44: 0 | L44: 0
A45: Customer 12 | C45: 0 | D45: 0 | E45: =SUM(IF('6. Class A Consumption Data'!H65:I65="B",'6. Class A Consumption Data'!H63:I63)) -> 0 | F45: =SUM(IF('6. Class A Consumption Data'!J65:K65="B",'6. Class A Consumption Data'!J63:K63)) -> 0 | G45: =SUM(IF('6. Class A Consumption Data'!L65:M65="B",'6. Class A Consumption Data'!L63:M63)) -> 0 | H45: =SUM(IF('6. Class A Consumption Data'!N65:O65="B",'6. Class A Consumption Data'!N63:O63)) -> 0 | I45: 0 | J45: 0 | K45: 0 | L45: 0
A46: Customer 13 | C46: 0 | D46: 0 | E46: =SUM(IF('6. Class A Consumption Data'!H68:I68="B",'6. Class A Consumption Data'!H66:I66)) -> 0 | F46: =SUM(IF('6. Class A Consumption Data'!J68:K68="B",'6. Class A Consumption Data'!J66:K66)) -> 0 | G46: =SUM(IF('6. Class A Consumption Data'!L68:M68="B",'6. Class A Consumption Data'!L66:M66)) -> 0 | H46: =SUM(IF('6. Class A Consumption Data'!N68:O68="B",'6. Class A Consumption Data'!N66:O66)) -> 0 | I46: 0 | J46: 0 | K46: 0 | L46: 0
A47: Customer 14 | C47: 0 | D47: 0 | E47: =SUM(IF('6. Class A Consumption Data'!H71:I71="B",'6. Class A Consumption Data'!H69:I69)) -> 0 | F47: =SUM(IF('6. Class A Consumption Data'!J71:K71="B",'6. Class A Consumption Data'!J69:K69)) -> 0 | G47: =SUM(IF('6. Class A Consumption Data'!L71:M71="B",'6. Class A Consumption Data'!L69:M69)) -> 0 | H47: =SUM(IF('6. Class A Consumption Data'!N71:O71="B",'6. Class A Consumption Data'!N69:O69)) -> 0 | I47: 0 | J47: 0 | K47: 0 | L47: 0
A48: Customer 15 | C48: 0 | D48: 0 | E48: =SUM(IF('6. Class A Consumption Data'!H74:I74="B",'6. Class A Consumption Data'!H72:I72)) -> 0 | F48: =SUM(IF('6. Class A Consumption Data'!J74:K74="B",'6. Class A Consumption Data'!J72:K72)) -> 0 | G48: =SUM(IF('6. Class A Consumption Data'!L74:M74="B",'6. Class A Consumption Data'!L72:M72)) -> 0 | H48: =SUM(IF('6. Class A Consumption Data'!N74:O74="B",'6. Class A Consumption Data'!N72:O72)) -> 0 | I48: 0 | J48: 0 | K48: 0 | L48: 0
A49: Customer 16 | C49: 0 | D49: 0 | E49: =SUM(IF('6. Class A Consumption Data'!H77:I77="B",'6. Class A Consumption Data'!H75:I75)) -> 0 | F49: =SUM(IF('6. Class A Consumption Data'!J77:K77="B",'6. Class A Consumption Data'!J75:K75)) -> 0 | G49: =SUM(IF('6. Class A Consumption Data'!L77:M77="B",'6. Class A Consumption Data'!L75:M75)) -> 0 | H49: =SUM(IF('6. Class A Consumption Data'!N77:O77="B",'6. Class A Consumption Data'!N75:O75)) -> 0 | I49: 0 | J49: 0 | K49: 0 | L49: 0
A50: Customer 17 | C50: 0 | D50: 0 | E50: =SUM(IF('6. Class A Consumption Data'!H80:I80="B",'6. Class A Consumption Data'!H78:I78)) -> 0 | F50: =SUM(IF('6. Class A Consumption Data'!J80:K80="B",'6. Class A Consumption Data'!J78:K78)) -> 0 | G50: =SUM(IF('6. Class A Consumption Data'!L80:M80="B",'6. Class A Consumption Data'!L78:M78)) -> 0 | H50: =SUM(IF('6. Class A Consumption Data'!N80:O80="B",'6. Class A Consumption Data'!N78:O78)) -> 0 | I50: 0 | J50: 0 | K50: 0 | L50: 0
A51: Customer 18 | C51: 0 | D51: 0 | E51: =SUM(IF('6. Class A Consumption Data'!H83:I83="B",'6. Class A Consumption Data'!H81:I81)) -> 0 | F51: =SUM(IF('6. Class A Consumption Data'!J83:K83="B",'6. Class A Consumption Data'!J81:K81)) -> 0 | G51: =SUM(IF('6. Class A Consumption Data'!L83:M83="B",'6. Class A Consumption Data'!L81:M81)) -> 0 | H51: =SUM(IF('6. Class A Consumption Data'!N83:O83="B",'6. Class A Consumption Data'!N81:O81)) -> 0 | I51: 0 | J51: 0 | K51: 0 | L51: 0
A52: Customer 19 | C52: 0 | D52: 0 | E52: =SUM(IF('6. Class A Consumption Data'!H86:I86="B",'6. Class A Consumption Data'!H84:I84)) -> 0 | F52: =SUM(IF('6. Class A Consumption Data'!J86:K86="B",'6. Class A Consumption Data'!J84:K84)) -> 0 | G52: =SUM(IF('6. Class A Consumption Data'!L86:M86="B",'6. Class A Consumption Data'!L84:M84)) -> 0 | H52: =SUM(IF('6. Class A Consumption Data'!N86:O86="B",'6. Class A Consumption Data'!N84:O84)) -> 0 | I52: 0 | J52: 0 | K52: 0 | L52: 0
A53: Customer 20 | C53: 0 | D53: 0 | E53: =SUM(IF('6. Class A Consumption Data'!H89:I89="B",'6. Class A Consumption Data'!H87:I87)) -> 0 | F53: =SUM(IF('6. Class A Consumption Data'!J89:K89="B",'6. Class A Consumption Data'!J87:K87)) -> 0 | G53: =SUM(IF('6. Class A Consumption Data'!L89:M89="B",'6. Class A Consumption Data'!L87:M87)) -> 0 | H53: =SUM(IF('6. Class A Consumption Data'!N89:O89="B",'6. Class A Consumption Data'!N87:O87)) -> 0 | I53: 0 | J53: 0 | K53: 0 | L53: 0
A54: Customer 21 | C54: 0 | D54: 0 | E54: =SUM(IF('6. Class A Consumption Data'!H92:I92="B",'6. Class A Consumption Data'!H90:I90)) -> 0 | F54: =SUM(IF('6. Class A Consumption Data'!J92:K92="B",'6. Class A Consumption Data'!J90:K90)) -> 0 | G54: =SUM(IF('6. Class A Consumption Data'!L92:M92="B",'6. Class A Consumption Data'!L90:M90)) -> 0 | H54: =SUM(IF('6. Class A Consumption Data'!N92:O92="B",'6. Class A Consumption Data'!N90:O90)) -> 0 | I54: 0 | J54: 0 | K54: 0 | L54: 0
A55: Customer 22 | C55: 0 | D55: 0 | E55: =SUM(IF('6. Class A Consumption Data'!H95:I95="B",'6. Class A Consumption Data'!H93:I93)) -> 0 | F55: =SUM(IF('6. Class A Consumption Data'!J95:K95="B",'6. Class A Consumption Data'!J93:K93)) -> 0 | G55: =SUM(IF('6. Class A Consumption Data'!L95:M95="B",'6. Class A Consumption Data'!L93:M93)) -> 0 | H55: =SUM(IF('6. Class A Consumption Data'!N95:O95="B",'6. Class A Consumption Data'!N93:O93)) -> 0 | I55: 0 | J55: 0 | K55: 0 | L55: 0
A56: Customer 23 | C56: 0 | D56: 0 | E56: =SUM(IF('6. Class A Consumption Data'!H98:I98="B",'6. Class A Consumption Data'!H96:I96)) -> 0 | F56: =SUM(IF('6. Class A Consumption Data'!J98:K98="B",'6. Class A Consumption Data'!J96:K96)) -> 0 | G56: =SUM(IF('6. Class A Consumption Data'!L98:M98="B",'6. Class A Consumption Data'!L96:M96)) -> 0 | H56: =SUM(IF('6. Class A Consumption Data'!N98:O98="B",'6. Class A Consumption Data'!N96:O96)) -> 0 | I56: 0 | J56: 0 | K56: 0 | L56: 0
A57: Customer 24 | C57: 0 | D57: 0 | E57: =SUM(IF('6. Class A Consumption Data'!H101:I101="B",'6. Class A Consumption Data'!H99:I99)) -> 0 | F57: =SUM(IF('6. Class A Consumption Data'!J101:K101="B",'6. Class A Consumption Data'!J99:K99)) -> 0 | G57: =SUM(IF('6. Class A Consumption Data'!L101:M101="B",'6. Class A Consumption Data'!L99:M99)) -> 0 | H57: =SUM(IF('6. Class A Consumption Data'!N101:O101="B",'6. Class A Consumption Data'!N99:O99)) -> 0 | I57: 0 | J57: 0 | K57: 0 | L57: 0
A58: Customer 25 | C58: 0 | D58: 0 | E58: =SUM(IF('6. Class A Consumption Data'!H104:I104="B",'6. Class A Consumption Data'!H102:I102)) -> 0 | F58: =SUM(IF('6. Class A Consumption Data'!J104:K104="B",'6. Class A Consumption Data'!J102:K102)) -> 0 | G58: =SUM(IF('6. Class A Consumption Data'!L104:M104="B",'6. Class A Consumption Data'!L102:M102)) -> 0 | H58: =SUM(IF('6. Class A Consumption Data'!N104:O104="B",'6. Class A Consumption Data'!N102:O102)) -> 0 | I58: 0 | J58: 0 | K58: 0 | L58: 0
A59: Customer 26 | C59: 0 | D59: 0 | E59: =SUM(IF('6. Class A Consumption Data'!H107:I107="B",'6. Class A Consumption Data'!H105:I105)) -> 0 | F59: =SUM(IF('6. Class A Consumption Data'!J107:K107="B",'6. Class A Consumption Data'!J105:K105)) -> 0 | G59: =SUM(IF('6. Class A Consumption Data'!L107:M107="B",'6. Class A Consumption Data'!L105:M105)) -> 0 | H59: =SUM(IF('6. Class A Consumption Data'!N107:O107="B",'6. Class A Consumption Data'!N105:O105)) -> 0 | I59: 0 | J59: 0 | K59: 0 | L59: 0
A60: Customer 27 | C60: 0 | D60: 0 | E60: =SUM(IF('6. Class A Consumption Data'!H110:I110="B",'6. Class A Consumption Data'!H108:I108)) -> 0 | F60: =SUM(IF('6. Class A Consumption Data'!J110:K110="B",'6. Class A Consumption Data'!J108:K108)) -> 0 | G60: =SUM(IF('6. Class A Consumption Data'!L110:M110="B",'6. Class A Consumption Data'!L108:M108)) -> 0 | H60: =SUM(IF('6. Class A Consumption Data'!N110:O110="B",'6. Class A Consumption Data'!N108:O108)) -> 0 | I60: 0 | J60: 0 | K60: 0 | L60: 0
A61: Customer 28 | C61: 0 | D61: 0 | E61: =SUM(IF('6. Class A Consumption Data'!H113:I113="B",'6. Class A Consumption Data'!H111:I111)) -> 0 | F61: =SUM(IF('6. Class A Consumption Data'!J113:K113="B",'6. Class A Consumption Data'!J111:K111)) -> 0 | G61: =SUM(IF('6. Class A Consumption Data'!L113:M113="B",'6. Class A Consumption Data'!L111:M111)) -> 0 | H61: =SUM(IF('6. Class A Consumption Data'!N113:O113="B",'6. Class A Consumption Data'!N111:O111)) -> 0 | I61: 0 | J61: 0 | K61: 0 | L61: 0
A62: Customer 29 | C62: 0 | D62: 0 | E62: =SUM(IF('6. Class A Consumption Data'!H116:I116="B",'6. Class A Consumption Data'!H114:I114)) -> 0 | F62: =SUM(IF('6. Class A Consumption Data'!J116:K116="B",'6. Class A Consumption Data'!J114:K114)) -> 0 | G62: =SUM(IF('6. Class A Consumption Data'!L116:M116="B",'6. Class A Consumption Data'!L114:M114)) -> 0 | H62: =SUM(IF('6. Class A Consumption Data'!N116:O116="B",'6. Class A Consumption Data'!N114:O114)) -> 0 | I62: 0 | J62: 0 | K62: 0 | L62: 0
A63: Customer 30 | C63: 0 | D63: 0 | E63: =SUM(IF('6. Class A Consumption Data'!H119:I119="B",'6. Class A Consumption Data'!H117:I117)) -> 0 | F63: =SUM(IF('6. Class A Consumption Data'!J119:K119="B",'6. Class A Consumption Data'!J117:K117)) -> 0 | G63: =SUM(IF('6. Class A Consumption Data'!L119:M119="B",'6. Class A Consumption Data'!L117:M117)) -> 0 | H63: =SUM(IF('6. Class A Consumption Data'!N119:O119="B",'6. Class A Consumption Data'!N117:O117)) -> 0 | I63: 0 | J63: 0 | K63: 0 | L63: 0
A64: Customer 31 | C64: 0 | D64: 0 | E64: =SUM(IF('6. Class A Consumption Data'!H122:I122="B",'6. Class A Consumption Data'!H120:I120)) -> 0 | F64: =SUM(IF('6. Class A Consumption Data'!J122:K122="B",'6. Class A Consumption Data'!J120:K120)) -> 0 | G64: =SUM(IF('6. Class A Consumption Data'!L122:M122="B",'6. Class A Consumption Data'!L120:M120)) -> 0 | H64: =SUM(IF('6. Class A Consumption Data'!N122:O122="B",'6. Class A Consumption Data'!N120:O120)) -> 0 | I64: 0 | J64: 0 | K64: 0 | L64: 0
A65: Customer 32 | C65: 0 | D65: 0 | E65: =SUM(IF('6. Class A Consumption Data'!H125:I125="B",'6. Class A Consumption Data'!H123:I123)) -> 0 | F65: =SUM(IF('6. Class A Consumption Data'!J125:K125="B",'6. Class A Consumption Data'!J123:K123)) -> 0 | G65: =SUM(IF('6. Class A Consumption Data'!L125:M125="B",'6. Class A Consumption Data'!L123:M123)) -> 0 | H65: =SUM(IF('6. Class A Consumption Data'!N125:O125="B",'6. Class A Consumption Data'!N123:O123)) -> 0 | I65: 0 | J65: 0 | K65: 0 | L65: 0
A66: Customer 33 | C66: 0 | D66: 0 | E66: =SUM(IF('6. Class A Consumption Data'!H128:I128="B",'6. Class A Consumption Data'!H126:I126)) -> 0 | F66: =SUM(IF('6. Class A Consumption Data'!J128:K128="B",'6. Class A Consumption Data'!J126:K126)) -> 0 | G66: =SUM(IF('6. Class A Consumption Data'!L128:M128="B",'6. Class A Consumption Data'!L126:M126)) -> 0 | H66: =SUM(IF('6. Class A Consumption Data'!N128:O128="B",'6. Class A Consumption Data'!N126:O126)) -> 0 | I66: =IFERROR(+C66/($C$184),0) -> 0 | J66: =+I66*$C$28 -> 0 | K66: =+J66/12 -> 0 | L66: 0
A67: Customer 34 | C67: 0 | D67: 0 | E67: =SUM(IF('6. Class A Consumption Data'!H131:I131="B",'6. Class A Consumption Data'!H129:I129)) -> 0 | F67: =SUM(IF('6. Class A Consumption Data'!J131:K131="B",'6. Class A Consumption Data'!J129:K129)) -> 0 | G67: =SUM(IF('6. Class A Consumption Data'!L131:M131="B",'6. Class A Consumption Data'!L129:M129)) -> 0 | H67: =SUM(IF('6. Class A Consumption Data'!N131:O131="B",'6. Class A Consumption Data'!N129:O129)) -> 0 | I67: 0 | J67: 0 | K67: 0 | L67: 0
A68: Customer 35 | C68: 0 | D68: 0 | E68: =SUM(IF('6. Class A Consumption Data'!H134:I134="B",'6. Class A Consumption Data'!H132:I132)) -> 0 | F68: =SUM(IF('6. Class A Consumption Data'!J134:K134="B",'6. Class A Consumption Data'!J132:K132)) -> 0 | G68: =SUM(IF('6. Class A Consumption Data'!L134:M134="B",'6. Class A Consumption Data'!L132:M132)) -> 0 | H68: =SUM(IF('6. Class A Consumption Data'!N134:O134="B",'6. Class A Consumption Data'!N132:O132)) -> 0 | I68: 0 | J68: 0 | K68: 0 | L68: 0
A69: Customer 36 | C69: 0 | D69: 0 | E69: =SUM(IF('6. Class A Consumption Data'!H137:I137="B",'6. Class A Consumption Data'!H135:I135)) -> 0 | F69: =SUM(IF('6. Class A Consumption Data'!J137:K137="B",'6. Class A Consumption Data'!J135:K135)) -> 0 | G69: =SUM(IF('6. Class A Consumption Data'!L137:M137="B",'6. Class A Consumption Data'!L135:M135)) -> 0 | H69: =SUM(IF('6. Class A Consumption Data'!N137:O137="B",'6. Class A Consumption Data'!N135:O135)) -> 0 | I69: 0 | J69: 0 | K69: 0 | L69: 0
A70: Customer 37 | C70: 0 | D70: 0 | E70: =SUM(IF('6. Class A Consumption Data'!H140:I140="B",'6. Class A Consumption Data'!H138:I138)) -> 0 | F70: =SUM(IF('6. Class A Consumption Data'!J140:K140="B",'6. Class A Consumption Data'!J138:K138)) -> 0 | G70: =SUM(IF('6. Class A Consumption Data'!L140:M140="B",'6. Class A Consumption Data'!L138:M138)) -> 0 | H70: =SUM(IF('6. Class A Consumption Data'!N140:O140="B",'6. Class A Consumption Data'!N138:O138)) -> 0 | I70: 0 | J70: 0 | K70: 0 | L70: 0
A71: Customer 38 | C71: 0 | D71: 0 | E71: =SUM(IF('6. Class A Consumption Data'!H143:I143="B",'6. Class A Consumption Data'!H141:I141)) -> 0 | F71: =SUM(IF('6. Class A Consumption Data'!J143:K143="B",'6. Class A Consumption Data'!J141:K141)) -> 0 | G71: =SUM(IF('6. Class A Consumption Data'!L143:M143="B",'6. Class A Consumption Data'!L141:M141)) -> 0 | H71: =SUM(IF('6. Class A Consumption Data'!N143:O143="B",'6. Class A Consumption Data'!N141:O141)) -> 0 | I71: 0 | J71: 0 | K71: 0 | L71: 0
A72: Customer 39 | C72: 0 | D72: 0 | E72: =SUM(IF('6. Class A Consumption Data'!H146:I146="B",'6. Class A Consumption Data'!H144:I144)) -> 0 | F72: =SUM(IF('6. Class A Consumption Data'!J146:K146="B",'6. Class A Consumption Data'!J144:K144)) -> 0 | G72: =SUM(IF('6. Class A Consumption Data'!L146:M146="B",'6. Class A Consumption Data'!L144:M144)) -> 0 | H72: =SUM(IF('6. Class A Consumption Data'!N146:O146="B",'6. Class A Consumption Data'!N144:O144)) -> 0 | I72: 0 | J72: 0 | K72: 0 | L72: 0
A73: Customer 40 | C73: 0 | D73: 0 | E73: =SUM(IF('6. Class A Consumption Data'!H149:I149="B",'6. Class A Consumption Data'!H147:I147)) -> 0 | F73: =SUM(IF('6. Class A Consumption Data'!J149:K149="B",'6. Class A Consumption Data'!J147:K147)) -> 0 | G73: =SUM(IF('6. Class A Consumption Data'!L149:M149="B",'6. Class A Consumption Data'!L147:M147)) -> 0 | H73: =SUM(IF('6. Class A Consumption Data'!N149:O149="B",'6. Class A Consumption Data'!N147:O147)) -> 0 | I73: 0 | J73: 0 | K73: 0 | L73: 0
A74: Customer 41 | C74: 0 | D74: 0 | E74: =SUM(IF('6. Class A Consumption Data'!H152:I152="B",'6. Class A Consumption Data'!H150:I150)) -> 0 | F74: =SUM(IF('6. Class A Consumption Data'!J152:K152="B",'6. Class A Consumption Data'!J150:K150)) -> 0 | G74: =SUM(IF('6. Class A Consumption Data'!L152:M152="B",'6. Class A Consumption Data'!L150:M150)) -> 0 | H74: =SUM(IF('6. Class A Consumption Data'!N152:O152="B",'6. Class A Consumption Data'!N150:O150)) -> 0 | I74: 0 | J74: 0 | K74: 0 | L74: 0
A75: Customer 42 | C75: 0 | D75: 0 | E75: =SUM(IF('6. Class A Consumption Data'!H155:I155="B",'6. Class A Consumption Data'!H153:I153)) -> 0 | F75: =SUM(IF('6. Class A Consumption Data'!J155:K155="B",'6. Class A Consumption Data'!J153:K153)) -> 0 | G75: =SUM(IF('6. Class A Consumption Data'!L155:M155="B",'6. Class A Consumption Data'!L153:M153)) -> 0 | H75: =SUM(IF('6. Class A Consumption Data'!N155:O155="B",'6. Class A Consumption Data'!N153:O153)) -> 0 | I75: 0 | J75: 0 | K75: 0 | L75: 0
A76: Customer 43 | C76: 0 | D76: 0 | E76: =SUM(IF('6. Class A Consumption Data'!H158:I158="B",'6. Class A Consumption Data'!H156:I156)) -> 0 | F76: =SUM(IF('6. Class A Consumption Data'!J158:K158="B",'6. Class A Consumption Data'!J156:K156)) -> 0 | G76: =SUM(IF('6. Class A Consumption Data'!L158:M158="B",'6. Class A Consumption Data'!L156:M156)) -> 0 | H76: =SUM(IF('6. Class A Consumption Data'!N158:O158="B",'6. Class A Consumption Data'!N156:O156)) -> 0 | I76: 0 | J76: 0 | K76: 0 | L76: 0
A77: Customer 44 | C77: 0 | D77: 0 | E77: =SUM(IF('6. Class A Consumption Data'!H161:I161="B",'6. Class A Consumption Data'!H159:I159)) -> 0 | F77: =SUM(IF('6. Class A Consumption Data'!J161:K161="B",'6. Class A Consumption Data'!J159:K159)) -> 0 | G77: =SUM(IF('6. Class A Consumption Data'!L161:M161="B",'6. Class A Consumption Data'!L159:M159)) -> 0 | H77: =SUM(IF('6. Class A Consumption Data'!N161:O161="B",'6. Class A Consumption Data'!N159:O159)) -> 0 | I77: 0 | J77: 0 | K77: 0 | L77: 0
A78: Customer 45 | C78: 0 | D78: 0 | E78: =SUM(IF('6. Class A Consumption Data'!H164:I164="B",'6. Class A Consumption Data'!H162:I162)) -> 0 | F78: =SUM(IF('6. Class A Consumption Data'!J164:K164="B",'6. Class A Consumption Data'!J162:K162)) -> 0 | G78: =SUM(IF('6. Class A Consumption Data'!L164:M164="B",'6. Class A Consumption Data'!L162:M162)) -> 0 | H78: =SUM(IF('6. Class A Consumption Data'!N164:O164="B",'6. Class A Consumption Data'!N162:O162)) -> 0 | I78: 0 | J78: 0 | K78: 0 | L78: 0
A79: Customer 46 | C79: 0 | D79: 0 | E79: =SUM(IF('6. Class A Consumption Data'!H167:I167="B",'6. Class A Consumption Data'!H165:I165)) -> 0 | F79: =SUM(IF('6. Class A Consumption Data'!J167:K167="B",'6. Class A Consumption Data'!J165:K165)) -> 0 | G79: =SUM(IF('6. Class A Consumption Data'!L167:M167="B",'6. Class A Consumption Data'!L165:M165)) -> 0 | H79: =SUM(IF('6. Class A Consumption Data'!N167:O167="B",'6. Class A Consumption Data'!N165:O165)) -> 0 | I79: 0 | J79: 0 | K79: 0 | L79: 0
A80: Customer 47 | C80: 0 | D80: 0 | E80: =SUM(IF('6. Class A Consumption Data'!H170:I170="B",'6. Class A Consumption Data'!H168:I168)) -> 0 | F80: =SUM(IF('6. Class A Consumption Data'!J170:K170="B",'6. Class A Consumption Data'!J168:K168)) -> 0 | G80: =SUM(IF('6. Class A Consumption Data'!L170:M170="B",'6. Class A Consumption Data'!L168:M168)) -> 0 | H80: =SUM(IF('6. Class A Consumption Data'!N170:O170="B",'6. Class A Consumption Data'!N168:O168)) -> 0 | I80: 0 | J80: 0 | K80: 0 | L80: 0
A81: Customer 48 | C81: 0 | D81: 0 | E81: =SUM(IF('6. Class A Consumption Data'!H173:I173="B",'6. Class A Consumption Data'!H171:I171)) -> 0 | F81: =SUM(IF('6. Class A Consumption Data'!J173:K173="B",'6. Class A Consumption Data'!J171:K171)) -> 0 | G81: =SUM(IF('6. Class A Consumption Data'!L173:M173="B",'6. Class A Consumption Data'!L171:M171)) -> 0 | H81: =SUM(IF('6. Class A Consumption Data'!N173:O173="B",'6. Class A Consumption Data'!N171:O171)) -> 0 | I81: 0 | J81: 0 | K81: 0 | L81: 0
A82: Customer 49 | C82: 0 | D82: 0 | E82: =SUM(IF('6. Class A Consumption Data'!H176:I176="B",'6. Class A Consumption Data'!H174:I174)) -> 0 | F82: =SUM(IF('6. Class A Consumption Data'!J176:K176="B",'6. Class A Consumption Data'!J174:K174)) -> 0 | G82: =SUM(IF('6. Class A Consumption Data'!L176:M176="B",'6. Class A Consumption Data'!L174:M174)) -> 0 | H82: =SUM(IF('6. Class A Consumption Data'!N176:O176="B",'6. Class A Consumption Data'!N174:O174)) -> 0 | I82: 0 | J82: 0 | K82: 0 | L82: 0
A83: Customer 50 | C83: 0 | D83: 0 | E83: =SUM(IF('6. Class A Consumption Data'!H179:I179="B",'6. Class A Consumption Data'!H177:I177)) -> 0 | F83: =SUM(IF('6. Class A Consumption Data'!J179:K179="B",'6. Class A Consumption Data'!J177:K177)) -> 0 | G83: =SUM(IF('6. Class A Consumption Data'!L179:M179="B",'6. Class A Consumption Data'!L177:M177)) -> 0 | H83: =SUM(IF('6. Class A Consumption Data'!N179:O179="B",'6. Class A Consumption Data'!N177:O177)) -> 0 | I83: 0 | J83: 0 | K83: 0 | L83: 0
A84: Customer 51 | C84: 0 | D84: 0 | E84: =SUM(IF('6. Class A Consumption Data'!H182:I182="B",'6. Class A Consumption Data'!H180:I180)) -> 0 | F84: =SUM(IF('6. Class A Consumption Data'!J182:K182="B",'6. Class A Consumption Data'!J180:K180)) -> 0 | G84: =SUM(IF('6. Class A Consumption Data'!L182:M182="B",'6. Class A Consumption Data'!L180:M180)) -> 0 | H84: =SUM(IF('6. Class A Consumption Data'!N182:O182="B",'6. Class A Consumption Data'!N180:O180)) -> 0 | I84: 0 | J84: 0 | K84: 0 | L84: 0
A85: Customer 52 | C85: 0 | D85: 0 | E85: =SUM(IF('6. Class A Consumption Data'!H185:I185="B",'6. Class A Consumption Data'!H183:I183)) -> 0 | F85: =SUM(IF('6. Class A Consumption Data'!J185:K185="B",'6. Class A Consumption Data'!J183:K183)) -> 0 | G85: =SUM(IF('6. Class A Consumption Data'!L185:M185="B",'6. Class A Consumption Data'!L183:M183)) -> 0 | H85: =SUM(IF('6. Class A Consumption Data'!N185:O185="B",'6. Class A Consumption Data'!N183:O183)) -> 0 | I85: 0 | J85: 0 | K85: 0 | L85: 0
A86: Customer 53 | C86: 0 | D86: 0 | E86: =SUM(IF('6. Class A Consumption Data'!H188:I188="B",'6. Class A Consumption Data'!H186:I186)) -> 0 | F86: =SUM(IF('6. Class A Consumption Data'!J188:K188="B",'6. Class A Consumption Data'!J186:K186)) -> 0 | G86: =SUM(IF('6. Class A Consumption Data'!L188:M188="B",'6. Class A Consumption Data'!L186:M186)) -> 0 | H86: =SUM(IF('6. Class A Consumption Data'!N188:O188="B",'6. Class A Consumption Data'!N186:O186)) -> 0 | I86: 0 | J86: 0 | K86: 0 | L86: 0
A87: Customer 54 | C87: 0 | D87: 0 | E87: =SUM(IF('6. Class A Consumption Data'!H191:I191="B",'6. Class A Consumption Data'!H189:I189)) -> 0 | F87: =SUM(IF('6. Class A Consumption Data'!J191:K191="B",'6. Class A Consumption Data'!J189:K189)) -> 0 | G87: =SUM(IF('6. Class A Consumption Data'!L191:M191="B",'6. Class A Consumption Data'!L189:M189)) -> 0 | H87: =SUM(IF('6. Class A Consumption Data'!N191:O191="B",'6. Class A Consumption Data'!N189:O189)) -> 0 | I87: 0 | J87: 0 | K87: 0 | L87: 0
A88: Customer 55 | C88: 0 | D88: 0 | E88: =SUM(IF('6. Class A Consumption Data'!H194:I194="B",'6. Class A Consumption Data'!H192:I192)) -> 0 | F88: =SUM(IF('6. Class A Consumption Data'!J194:K194="B",'6. Class A Consumption Data'!J192:K192)) -> 0 | G88: =SUM(IF('6. Class A Consumption Data'!L194:M194="B",'6. Class A Consumption Data'!L192:M192)) -> 0 | H88: =SUM(IF('6. Class A Consumption Data'!N194:O194="B",'6. Class A Consumption Data'!N192:O192)) -> 0 | I88: 0 | J88: 0 | K88: 0 | L88: 0
A89: Customer 56 | C89: 0 | D89: 0 | E89: =SUM(IF('6. Class A Consumption Data'!H197:I197="B",'6. Class A Consumption Data'!H195:I195)) -> 0 | F89: =SUM(IF('6. Class A Consumption Data'!J197:K197="B",'6. Class A Consumption Data'!J195:K195)) -> 0 | G89: =SUM(IF('6. Class A Consumption Data'!L197:M197="B",'6. Class A Consumption Data'!L195:M195)) -> 0 | H89: =SUM(IF('6. Class A Consumption Data'!N197:O197="B",'6. Class A Consumption Data'!N195:O195)) -> 0 | I89: 0 | J89: 0 | K89: 0 | L89: 0
A90: Customer 57 | C90: 0 | D90: 0 | E90: =SUM(IF('6. Class A Consumption Data'!H200:I200="B",'6. Class A Consumption Data'!H198:I198)) -> 0 | F90: =SUM(IF('6. Class A Consumption Data'!J200:K200="B",'6. Class A Consumption Data'!J198:K198)) -> 0 | G90: =SUM(IF('6. Class A Consumption Data'!L200:M200="B",'6. Class A Consumption Data'!L198:M198)) -> 0 | H90: =SUM(IF('6. Class A Consumption Data'!N200:O200="B",'6. Class A Consumption Data'!N198:O198)) -> 0 | I90: 0 | J90: 0 | K90: 0 | L90: 0
A91: Customer 58 | C91: 0 | D91: 0 | E91: =SUM(IF('6. Class A Consumption Data'!H203:I203="B",'6. Class A Consumption Data'!H201:I201)) -> 0 | F91: =SUM(IF('6. Class A Consumption Data'!J203:K203="B",'6. Class A Consumption Data'!J201:K201)) -> 0 | G91: =SUM(IF('6. Class A Consumption Data'!L203:M203="B",'6. Class A Consumption Data'!L201:M201)) -> 0 | H91: =SUM(IF('6. Class A Consumption Data'!N203:O203="B",'6. Class A Consumption Data'!N201:O201)) -> 0 | I91: 0 | J91: 0 | K91: 0 | L91: 0
A92: Customer 59 | C92: 0 | D92: 0 | E92: =SUM(IF('6. Class A Consumption Data'!H206:I206="B",'6. Class A Consumption Data'!H204:I204)) -> 0 | F92: =SUM(IF('6. Class A Consumption Data'!J206:K206="B",'6. Class A Consumption Data'!J204:K204)) -> 0 | G92: =SUM(IF('6. Class A Consumption Data'!L206:M206="B",'6. Class A Consumption Data'!L204:M204)) -> 0 | H92: =SUM(IF('6. Class A Consumption Data'!N206:O206="B",'6. Class A Consumption Data'!N204:O204)) -> 0 | I92: 0 | J92: 0 | K92: 0 | L92: 0
A93: Customer 60 | C93: 0 | D93: 0 | E93: =SUM(IF('6. Class A Consumption Data'!H209:I209="B",'6. Class A Consumption Data'!H207:I207)) -> 0 | F93: =SUM(IF('6. Class A Consumption Data'!J209:K209="B",'6. Class A Consumption Data'!J207:K207)) -> 0 | G93: =SUM(IF('6. Class A Consumption Data'!L209:M209="B",'6. Class A Consumption Data'!L207:M207)) -> 0 | H93: =SUM(IF('6. Class A Consumption Data'!N209:O209="B",'6. Class A Consumption Data'!N207:O207)) -> 0 | I93: 0 | J93: 0 | K93: 0 | L93: 0
A94: Customer 61 | C94: 0 | D94: 0 | E94: =SUM(IF('6. Class A Consumption Data'!H212:I212="B",'6. Class A Consumption Data'!H210:I210)) -> 0 | F94: =SUM(IF('6. Class A Consumption Data'!J212:K212="B",'6. Class A Consumption Data'!J210:K210)) -> 0 | G94: =SUM(IF('6. Class A Consumption Data'!L212:M212="B",'6. Class A Consumption Data'!L210:M210)) -> 0 | H94: =SUM(IF('6. Class A Consumption Data'!N212:O212="B",'6. Class A Consumption Data'!N210:O210)) -> 0 | I94: 0 | J94: 0 | K94: 0 | L94: 0
A95: Customer 62 | C95: 0 | D95: 0 | E95: =SUM(IF('6. Class A Consumption Data'!H215:I215="B",'6. Class A Consumption Data'!H213:I213)) -> 0 | F95: =SUM(IF('6. Class A Consumption Data'!J215:K215="B",'6. Class A Consumption Data'!J213:K213)) -> 0 | G95: =SUM(IF('6. Class A Consumption Data'!L215:M215="B",'6. Class A Consumption Data'!L213:M213)) -> 0 | H95: =SUM(IF('6. Class A Consumption Data'!N215:O215="B",'6. Class A Consumption Data'!N213:O213)) -> 0 | I95: 0 | J95: 0 | K95: 0 | L95: 0
A96: Customer 63 | C96: 0 | D96: 0 | E96: =SUM(IF('6. Class A Consumption Data'!H218:I218="B",'6. Class A Consumption Data'!H216:I216)) -> 0 | F96: =SUM(IF('6. Class A Consumption Data'!J218:K218="B",'6. Class A Consumption Data'!J216:K216)) -> 0 | G96: =SUM(IF('6. Class A Consumption Data'!L218:M218="B",'6. Class A Consumption Data'!L216:M216)) -> 0 | H96: =SUM(IF('6. Class A Consumption Data'!N218:O218="B",'6. Class A Consumption Data'!N216:O216)) -> 0 | I96: 0 | J96: 0 | K96: 0 | L96: 0
A97: Customer 64 | C97: 0 | D97: 0 | E97: =SUM(IF('6. Class A Consumption Data'!H221:I221="B",'6. Class A Consumption Data'!H219:I219)) -> 0 | F97: =SUM(IF('6. Class A Consumption Data'!J221:K221="B",'6. Class A Consumption Data'!J219:K219)) -> 0 | G97: =SUM(IF('6. Class A Consumption Data'!L221:M221="B",'6. Class A Consumption Data'!L219:M219)) -> 0 | H97: =SUM(IF('6. Class A Consumption Data'!N221:O221="B",'6. Class A Consumption Data'!N219:O219)) -> 0 | I97: 0 | J97: 0 | K97: 0 | L97: 0
A98: Customer 65 | C98: 0 | D98: 0 | E98: =SUM(IF('6. Class A Consumption Data'!H224:I224="B",'6. Class A Consumption Data'!H222:I222)) -> 0 | F98: =SUM(IF('6. Class A Consumption Data'!J224:K224="B",'6. Class A Consumption Data'!J222:K222)) -> 0 | G98: =SUM(IF('6. Class A Consumption Data'!L224:M224="B",'6. Class A Consumption Data'!L222:M222)) -> 0 | H98: =SUM(IF('6. Class A Consumption Data'!N224:O224="B",'6. Class A Consumption Data'!N222:O222)) -> 0 | I98: =IFERROR(+C98/($C$184),0) -> 0 | J98: =+I98*$C$28 -> 0 | K98: =+J98/12 -> 0 | L98: 0
A99: Customer 66 | C99: 0 | D99: 0 | E99: =SUM(IF('6. Class A Consumption Data'!H227:I227="B",'6. Class A Consumption Data'!H225:I225)) -> 0 | F99: =SUM(IF('6. Class A Consumption Data'!J227:K227="B",'6. Class A Consumption Data'!J225:K225)) -> 0 | G99: =SUM(IF('6. Class A Consumption Data'!L227:M227="B",'6. Class A Consumption Data'!L225:M225)) -> 0 | H99: =SUM(IF('6. Class A Consumption Data'!N227:O227="B",'6. Class A Consumption Data'!N225:O225)) -> 0 | I99: 0 | J99: 0 | K99: 0 | L99: 0
A100: Customer 67 | C100: 0 | D100: 0 | E100: =SUM(IF('6. Class A Consumption Data'!H230:I230="B",'6. Class A Consumption Data'!H228:I228)) -> 0 | F100: =SUM(IF('6. Class A Consumption Data'!J230:K230="B",'6. Class A Consumption Data'!J228:K228)) -> 0 | G100: =SUM(IF('6. Class A Consumption Data'!L230:M230="B",'6. Class A Consumption Data'!L228:M228)) -> 0 | H100: =SUM(IF('6. Class A Consumption Data'!N230:O230="B",'6. Class A Consumption Data'!N228:O228)) -> 0 | I100: 0 | J100: 0 | K100: 0 | L100: 0
A101: Customer 68 | C101: 0 | D101: 0 | E101: =SUM(IF('6. Class A Consumption Data'!H233:I233="B",'6. Class A Consumption Data'!H231:I231)) -> 0 | F101: =SUM(IF('6. Class A Consumption Data'!J233:K233="B",'6. Class A Consumption Data'!J231:K231)) -> 0 | G101: =SUM(IF('6. Class A Consumption Data'!L233:M233="B",'6. Class A Consumption Data'!L231:M231)) -> 0 | H101: =SUM(IF('6. Class A Consumption Data'!N233:O233="B",'6. Class A Consumption Data'!N231:O231)) -> 0 | I101: 0 | J101: 0 | K101: 0 | L101: 0
A102: Customer 69 | C102: 0 | D102: 0 | E102: =SUM(IF('6. Class A Consumption Data'!H236:I236="B",'6. Class A Consumption Data'!H234:I234)) -> 0 | F102: =SUM(IF('6. Class A Consumption Data'!J236:K236="B",'6. Class A Consumption Data'!J234:K234)) -> 0 | G102: =SUM(IF('6. Class A Consumption Data'!L236:M236="B",'6. Class A Consumption Data'!L234:M234)) -> 0 | H102: =SUM(IF('6. Class A Consumption Data'!N236:O236="B",'6. Class A Consumption Data'!N234:O234)) -> 0 | I102: 0 | J102: 0 | K102: 0 | L102: 0
A103: Customer 70 | C103: 0 | D103: 0 | E103: =SUM(IF('6. Class A Consumption Data'!H239:I239="B",'6. Class A Consumption Data'!H237:I237)) -> 0 | F103: =SUM(IF('6. Class A Consumption Data'!J239:K239="B",'6. Class A Consumption Data'!J237:K237)) -> 0 | G103: =SUM(IF('6. Class A Consumption Data'!L239:M239="B",'6. Class A Consumption Data'!L237:M237)) -> 0 | H103: =SUM(IF('6. Class A Consumption Data'!N239:O239="B",'6. Class A Consumption Data'!N237:O237)) -> 0 | I103: 0 | J103: 0 | K103: 0 | L103: 0
A104: Customer 71 | C104: 0 | D104: 0 | E104: =SUM(IF('6. Class A Consumption Data'!H242:I242="B",'6. Class A Consumption Data'!H240:I240)) -> 0 | F104: =SUM(IF('6. Class A Consumption Data'!J242:K242="B",'6. Class A Consumption Data'!J240:K240)) -> 0 | G104: =SUM(IF('6. Class A Consumption Data'!L242:M242="B",'6. Class A Consumption Data'!L240:M240)) -> 0 | H104: =SUM(IF('6. Class A Consumption Data'!N242:O242="B",'6. Class A Consumption Data'!N240:O240)) -> 0 | I104: 0 | J104: 0 | K104: 0 | L104: 0
A105: Customer 72 | C105: 0 | D105: 0 | E105: =SUM(IF('6. Class A Consumption Data'!H245:I245="B",'6. Class A Consumption Data'!H243:I243)) -> 0 | F105: =SUM(IF('6. Class A Consumption Data'!J245:K245="B",'6. Class A Consumption Data'!J243:K243)) -> 0 | G105: =SUM(IF('6. Class A Consumption Data'!L245:M245="B",'6. Class A Consumption Data'!L243:M243)) -> 0 | H105: =SUM(IF('6. Class A Consumption Data'!N245:O245="B",'6. Class A Consumption Data'!N243:O243)) -> 0 | I105: 0 | J105: 0 | K105: 0 | L105: 0
A106: Customer 73 | C106: 0 | D106: 0 | E106: =SUM(IF('6. Class A Consumption Data'!H248:I248="B",'6. Class A Consumption Data'!H246:I246)) -> 0 | F106: =SUM(IF('6. Class A Consumption Data'!J248:K248="B",'6. Class A Consumption Data'!J246:K246)) -> 0 | G106: =SUM(IF('6. Class A Consumption Data'!L248:M248="B",'6. Class A Consumption Data'!L246:M246)) -> 0 | H106: =SUM(IF('6. Class A Consumption Data'!N248:O248="B",'6. Class A Consumption Data'!N246:O246)) -> 0 | I106: 0 | J106: 0 | K106: 0 | L106: 0
A107: Customer 74 | C107: 0 | D107: 0 | E107: =SUM(IF('6. Class A Consumption Data'!H251:I251="B",'6. Class A Consumption Data'!H249:I249)) -> 0 | F107: =SUM(IF('6. Class A Consumption Data'!J251:K251="B",'6. Class A Consumption Data'!J249:K249)) -> 0 | G107: =SUM(IF('6. Class A Consumption Data'!L251:M251="B",'6. Class A Consumption Data'!L249:M249)) -> 0 | H107: =SUM(IF('6. Class A Consumption Data'!N251:O251="B",'6. Class A Consumption Data'!N249:O249)) -> 0 | I107: 0 | J107: 0 | K107: 0 | L107: 0
A108: Customer 75 | C108: 0 | D108: 0 | E108: =SUM(IF('6. Class A Consumption Data'!H254:I254="B",'6. Class A Consumption Data'!H252:I252)) -> 0 | F108: =SUM(IF('6. Class A Consumption Data'!J254:K254="B",'6. Class A Consumption Data'!J252:K252)) -> 0 | G108: =SUM(IF('6. Class A Consumption Data'!L254:M254="B",'6. Class A Consumption Data'!L252:M252)) -> 0 | H108: =SUM(IF('6. Class A Consumption Data'!N254:O254="B",'6. Class A Consumption Data'!N252:O252)) -> 0 | I108: 0 | J108: 0 | K108: 0 | L108: 0
A109: Customer 76 | C109: 0 | D109: 0 | E109: =SUM(IF('6. Class A Consumption Data'!H257:I257="B",'6. Class A Consumption Data'!H255:I255)) -> 0 | F109: =SUM(IF('6. Class A Consumption Data'!J257:K257="B",'6. Class A Consumption Data'!J255:K255)) -> 0 | G109: =SUM(IF('6. Class A Consumption Data'!L257:M257="B",'6. Class A Consumption Data'!L255:M255)) -> 0 | H109: =SUM(IF('6. Class A Consumption Data'!N257:O257="B",'6. Class A Consumption Data'!N255:O255)) -> 0 | I109: 0 | J109: 0 | K109: 0 | L109: 0
A110: Customer 77 | C110: 0 | D110: 0 | E110: =SUM(IF('6. Class A Consumption Data'!H260:I260="B",'6. Class A Consumption Data'!H258:I258)) -> 0 | F110: =SUM(IF('6. Class A Consumption Data'!J260:K260="B",'6. Class A Consumption Data'!J258:K258)) -> 0 | G110: =SUM(IF('6. Class A Consumption Data'!L260:M260="B",'6. Class A Consumption Data'!L258:M258)) -> 0 | H110: =SUM(IF('6. Class A Consumption Data'!N260:O260="B",'6. Class A Consumption Data'!N258:O258)) -> 0 | I110: 0 | J110: 0 | K110: 0 | L110: 0
A111: Customer 78 | C111: 0 | D111: 0 | E111: =SUM(IF('6. Class A Consumption Data'!H263:I263="B",'6. Class A Consumption Data'!H261:I261)) -> 0 | F111: =SUM(IF('6. Class A Consumption Data'!J263:K263="B",'6. Class A Consumption Data'!J261:K261)) -> 0 | G111: =SUM(IF('6. Class A Consumption Data'!L263:M263="B",'6. Class A Consumption Data'!L261:M261)) -> 0 | H111: =SUM(IF('6. Class A Consumption Data'!N263:O263="B",'6. Class A Consumption Data'!N261:O261)) -> 0 | I111: 0 | J111: 0 | K111: 0 | L111: 0
A112: Customer 79 | C112: 0 | D112: 0 | E112: =SUM(IF('6. Class A Consumption Data'!H266:I266="B",'6. Class A Consumption Data'!H264:I264)) -> 0 | F112: =SUM(IF('6. Class A Consumption Data'!J266:K266="B",'6. Class A Consumption Data'!J264:K264)) -> 0 | G112: =SUM(IF('6. Class A Consumption Data'!L266:M266="B",'6. Class A Consumption Data'!L264:M264)) -> 0 | H112: =SUM(IF('6. Class A Consumption Data'!N266:O266="B",'6. Class A Consumption Data'!N264:O264)) -> 0 | I112: 0 | J112: 0 | K112: 0 | L112: 0
A113: Customer 80 | C113: 0 | D113: 0 | E113: =SUM(IF('6. Class A Consumption Data'!H269:I269="B",'6. Class A Consumption Data'!H267:I267)) -> 0 | F113: =SUM(IF('6. Class A Consumption Data'!J269:K269="B",'6. Class A Consumption Data'!J267:K267)) -> 0 | G113: =SUM(IF('6. Class A Consumption Data'!L269:M269="B",'6. Class A Consumption Data'!L267:M267)) -> 0 | H113: =SUM(IF('6. Class A Consumption Data'!N269:O269="B",'6. Class A Consumption Data'!N267:O267)) -> 0 | I113: 0 | J113: 0 | K113: 0 | L113: 0
A114: Customer 81 | C114: 0 | D114: 0 | E114: =SUM(IF('6. Class A Consumption Data'!H272:I272="B",'6. Class A Consumption Data'!H270:I270)) -> 0 | F114: =SUM(IF('6. Class A Consumption Data'!J272:K272="B",'6. Class A Consumption Data'!J270:K270)) -> 0 | G114: =SUM(IF('6. Class A Consumption Data'!L272:M272="B",'6. Class A Consumption Data'!L270:M270)) -> 0 | H114: =SUM(IF('6. Class A Consumption Data'!N272:O272="B",'6. Class A Consumption Data'!N270:O270)) -> 0 | I114: 0 | J114: 0 | K114: 0 | L114: 0
A115: Customer 82 | C115: 0 | D115: 0 | E115: =SUM(IF('6. Class A Consumption Data'!H275:I275="B",'6. Class A Consumption Data'!H273:I273)) -> 0 | F115: =SUM(IF('6. Class A Consumption Data'!J275:K275="B",'6. Class A Consumption Data'!J273:K273)) -> 0 | G115: =SUM(IF('6. Class A Consumption Data'!L275:M275="B",'6. Class A Consumption Data'!L273:M273)) -> 0 | H115: =SUM(IF('6. Class A Consumption Data'!N275:O275="B",'6. Class A Consumption Data'!N273:O273)) -> 0 | I115: 0 | J115: 0 | K115: 0 | L115: 0
A116: Customer 83 | C116: 0 | D116: 0 | E116: =SUM(IF('6. Class A Consumption Data'!H278:I278="B",'6. Class A Consumption Data'!H276:I276)) -> 0 | F116: =SUM(IF('6. Class A Consumption Data'!J278:K278="B",'6. Class A Consumption Data'!J276:K276)) -> 0 | G116: =SUM(IF('6. Class A Consumption Data'!L278:M278="B",'6. Class A Consumption Data'!L276:M276)) -> 0 | H116: =SUM(IF('6. Class A Consumption Data'!N278:O278="B",'6. Class A Consumption Data'!N276:O276)) -> 0 | I116: 0 | J116: 0 | K116: 0 | L116: 0
A117: Customer 84 | C117: 0 | D117: 0 | E117: =SUM(IF('6. Class A Consumption Data'!H281:I281="B",'6. Class A Consumption Data'!H279:I279)) -> 0 | F117: =SUM(IF('6. Class A Consumption Data'!J281:K281="B",'6. Class A Consumption Data'!J279:K279)) -> 0 | G117: =SUM(IF('6. Class A Consumption Data'!L281:M281="B",'6. Class A Consumption Data'!L279:M279)) -> 0 | H117: =SUM(IF('6. Class A Consumption Data'!N281:O281="B",'6. Class A Consumption Data'!N279:O279)) -> 0 | I117: 0 | J117: 0 | K117: 0 | L117: 0
A118: Customer 85 | C118: 0 | D118: 0 | E118: =SUM(IF('6. Class A Consumption Data'!H284:I284="B",'6. Class A Consumption Data'!H282:I282)) -> 0 | F118: =SUM(IF('6. Class A Consumption Data'!J284:K284="B",'6. Class A Consumption Data'!J282:K282)) -> 0 | G118: =SUM(IF('6. Class A Consumption Data'!L284:M284="B",'6. Class A Consumption Data'!L282:M282)) -> 0 | H118: =SUM(IF('6. Class A Consumption Data'!N284:O284="B",'6. Class A Consumption Data'!N282:O282)) -> 0 | I118: 0 | J118: 0 | K118: 0 | L118: 0
A119: Customer 86 | C119: 0 | D119: 0 | E119: =SUM(IF('6. Class A Consumption Data'!H287:I287="B",'6. Class A Consumption Data'!H285:I285)) -> 0 | F119: =SUM(IF('6. Class A Consumption Data'!J287:K287="B",'6. Class A Consumption Data'!J285:K285)) -> 0 | G119: =SUM(IF('6. Class A Consumption Data'!L287:M287="B",'6. Class A Consumption Data'!L285:M285)) -> 0 | H119: =SUM(IF('6. Class A Consumption Data'!N287:O287="B",'6. Class A Consumption Data'!N285:O285)) -> 0 | I119: 0 | J119: 0 | K119: 0 | L119: 0
A120: Customer 87 | C120: 0 | D120: 0 | E120: =SUM(IF('6. Class A Consumption Data'!H290:I290="B",'6. Class A Consumption Data'!H288:I288)) -> 0 | F120: =SUM(IF('6. Class A Consumption Data'!J290:K290="B",'6. Class A Consumption Data'!J288:K288)) -> 0 | G120: =SUM(IF('6. Class A Consumption Data'!L290:M290="B",'6. Class A Consumption Data'!L288:M288)) -> 0 | H120: =SUM(IF('6. Class A Consumption Data'!N290:O290="B",'6. Class A Consumption Data'!N288:O288)) -> 0 | I120: 0 | J120: 0 | K120: 0 | L120: 0
A121: Customer 88 | C121: 0 | D121: 0 | E121: =SUM(IF('6. Class A Consumption Data'!H293:I293="B",'6. Class A Consumption Data'!H291:I291)) -> 0 | F121: =SUM(IF('6. Class A Consumption Data'!J293:K293="B",'6. Class A Consumption Data'!J291:K291)) -> 0 | G121: =SUM(IF('6. Class A Consumption Data'!L293:M293="B",'6. Class A Consumption Data'!L291:M291)) -> 0 | H121: =SUM(IF('6. Class A Consumption Data'!N293:O293="B",'6. Class A Consumption Data'!N291:O291)) -> 0 | I121: 0 | J121: 0 | K121: 0 | L121: 0
A122: Customer 89 | C122: 0 | D122: 0 | E122: =SUM(IF('6. Class A Consumption Data'!H296:I296="B",'6. Class A Consumption Data'!H294:I294)) -> 0 | F122: =SUM(IF('6. Class A Consumption Data'!J296:K296="B",'6. Class A Consumption Data'!J294:K294)) -> 0 | G122: =SUM(IF('6. Class A Consumption Data'!L296:M296="B",'6. Class A Consumption Data'!L294:M294)) -> 0 | H122: =SUM(IF('6. Class A Consumption Data'!N296:O296="B",'6. Class A Consumption Data'!N294:O294)) -> 0 | I122: 0 | J122: 0 | K122: 0 | L122: 0
A123: Customer 90 | C123: 0 | D123: 0 | E123: =SUM(IF('6. Class A Consumption Data'!H299:I299="B",'6. Class A Consumption Data'!H297:I297)) -> 0 | F123: =SUM(IF('6. Class A Consumption Data'!J299:K299="B",'6. Class A Consumption Data'!J297:K297)) -> 0 | G123: =SUM(IF('6. Class A Consumption Data'!L299:M299="B",'6. Class A Consumption Data'!L297:M297)) -> 0 | H123: =SUM(IF('6. Class A Consumption Data'!N299:O299="B",'6. Class A Consumption Data'!N297:O297)) -> 0 | I123: 0 | J123: 0 | K123: 0 | L123: 0
A124: Customer 91 | C124: 0 | D124: 0 | E124: =SUM(IF('6. Class A Consumption Data'!H302:I302="B",'6. Class A Consumption Data'!H300:I300)) -> 0 | F124: =SUM(IF('6. Class A Consumption Data'!J302:K302="B",'6. Class A Consumption Data'!J300:K300)) -> 0 | G124: =SUM(IF('6. Class A Consumption Data'!L302:M302="B",'6. Class A Consumption Data'!L300:M300)) -> 0 | H124: =SUM(IF('6. Class A Consumption Data'!N302:O302="B",'6. Class A Consumption Data'!N300:O300)) -> 0 | I124: 0 | J124: 0 | K124: 0 | L124: 0
A125: Customer 92 | C125: 0 | D125: 0 | E125: =SUM(IF('6. Class A Consumption Data'!H305:I305="B",'6. Class A Consumption Data'!H303:I303)) -> 0 | F125: =SUM(IF('6. Class A Consumption Data'!J305:K305="B",'6. Class A Consumption Data'!J303:K303)) -> 0 | G125: =SUM(IF('6. Class A Consumption Data'!L305:M305="B",'6. Class A Consumption Data'!L303:M303)) -> 0 | H125: =SUM(IF('6. Class A Consumption Data'!N305:O305="B",'6. Class A Consumption Data'!N303:O303)) -> 0 | I125: 0 | J125: 0 | K125: 0 | L125: 0
A126: Customer 93 | C126: 0 | D126: 0 | E126: =SUM(IF('6. Class A Consumption Data'!H308:I308="B",'6. Class A Consumption Data'!H306:I306)) -> 0 | F126: =SUM(IF('6. Class A Consumption Data'!J308:K308="B",'6. Class A Consumption Data'!J306:K306)) -> 0 | G126: =SUM(IF('6. Class A Consumption Data'!L308:M308="B",'6. Class A Consumption Data'!L306:M306)) -> 0 | H126: =SUM(IF('6. Class A Consumption Data'!N308:O308="B",'6. Class A Consumption Data'!N306:O306)) -> 0 | I126: 0 | J126: 0 | K126: 0 | L126: 0
A127: Customer 94 | C127: 0 | D127: 0 | E127: =SUM(IF('6. Class A Consumption Data'!H311:I311="B",'6. Class A Consumption Data'!H309:I309)) -> 0 | F127: =SUM(IF('6. Class A Consumption Data'!J311:K311="B",'6. Class A Consumption Data'!J309:K309)) -> 0 | G127: =SUM(IF('6. Class A Consumption Data'!L311:M311="B",'6. Class A Consumption Data'!L309:M309)) -> 0 | H127: =SUM(IF('6. Class A Consumption Data'!N311:O311="B",'6. Class A Consumption Data'!N309:O309)) -> 0 | I127: 0 | J127: 0 | K127: 0 | L127: 0
A128: Customer 95 | C128: 0 | D128: 0 | E128: =SUM(IF('6. Class A Consumption Data'!H314:I314="B",'6. Class A Consumption Data'!H312:I312)) -> 0 | F128: =SUM(IF('6. Class A Consumption Data'!J314:K314="B",'6. Class A Consumption Data'!J312:K312)) -> 0 | G128: =SUM(IF('6. Class A Consumption Data'!L314:M314="B",'6. Class A Consumption Data'!L312:M312)) -> 0 | H128: =SUM(IF('6. Class A Consumption Data'!N314:O314="B",'6. Class A Consumption Data'!N312:O312)) -> 0 | I128: 0 | J128: 0 | K128: 0 | L128: 0
A129: Customer 96 | C129: 0 | D129: 0 | E129: =SUM(IF('6. Class A Consumption Data'!H317:I317="B",'6. Class A Consumption Data'!H315:I315)) -> 0 | F129: =SUM(IF('6. Class A Consumption Data'!J317:K317="B",'6. Class A Consumption Data'!J315:K315)) -> 0 | G129: =SUM(IF('6. Class A Consumption Data'!L317:M317="B",'6. Class A Consumption Data'!L315:M315)) -> 0 | H129: =SUM(IF('6. Class A Consumption Data'!N317:O317="B",'6. Class A Consumption Data'!N315:O315)) -> 0 | I129: 0 | J129: 0 | K129: 0 | L129: 0
A130: Customer 97 | C130: 0 | D130: 0 | E130: =SUM(IF('6. Class A Consumption Data'!H320:I320="B",'6. Class A Consumption Data'!H318:I318)) -> 0 | F130: =SUM(IF('6. Class A Consumption Data'!J320:K320="B",'6. Class A Consumption Data'!J318:K318)) -> 0 | G130: =SUM(IF('6. Class A Consumption Data'!L320:M320="B",'6. Class A Consumption Data'!L318:M318)) -> 0 | H130: =SUM(IF('6. Class A Consumption Data'!N320:O320="B",'6. Class A Consumption Data'!N318:O318)) -> 0 | I130: =IFERROR(+C130/($C$184),0) -> 0 | J130: =+I130*$C$28 -> 0 | K130: =+J130/12 -> 0 | L130: 0
A131: Customer 98 | C131: 0 | D131: 0 | E131: =SUM(IF('6. Class A Consumption Data'!H323:I323="B",'6. Class A Consumption Data'!H321:I321)) -> 0 | F131: =SUM(IF('6. Class A Consumption Data'!J323:K323="B",'6. Class A Consumption Data'!J321:K321)) -> 0 | G131: =SUM(IF('6. Class A Consumption Data'!L323:M323="B",'6. Class A Consumption Data'!L321:M321)) -> 0 | H131: =SUM(IF('6. Class A Consumption Data'!N323:O323="B",'6. Class A Consumption Data'!N321:O321)) -> 0 | I131: 0 | J131: 0 | K131: 0 | L131: 0
A132: Customer 99 | C132: 0 | D132: 0 | E132: =SUM(IF('6. Class A Consumption Data'!H326:I326="B",'6. Class A Consumption Data'!H324:I324)) -> 0 | F132: =SUM(IF('6. Class A Consumption Data'!J326:K326="B",'6. Class A Consumption Data'!J324:K324)) -> 0 | G132: =SUM(IF('6. Class A Consumption Data'!L326:M326="B",'6. Class A Consumption Data'!L324:M324)) -> 0 | H132: =SUM(IF('6. Class A Consumption Data'!N326:O326="B",'6. Class A Consumption Data'!N324:O324)) -> 0 | I132: 0 | J132: 0 | K132: 0 | L132: 0
A133: Customer 100 | C133: 0 | D133: 0 | E133: =SUM(IF('6. Class A Consumption Data'!H329:I329="B",'6. Class A Consumption Data'!H327:I327)) -> 0 | F133: =SUM(IF('6. Class A Consumption Data'!J329:K329="B",'6. Class A Consumption Data'!J327:K327)) -> 0 | G133: =SUM(IF('6. Class A Consumption Data'!L329:M329="B",'6. Class A Consumption Data'!L327:M327)) -> 0 | H133: =SUM(IF('6. Class A Consumption Data'!N329:O329="B",'6. Class A Consumption Data'!N327:O327)) -> 0 | I133: 0 | J133: 0 | K133: 0 | L133: 0
A134: Customer 101 | C134: 0 | D134: 0 | E134: =SUM(IF('6. Class A Consumption Data'!H332:I332="B",'6. Class A Consumption Data'!H330:I330)) -> 0 | F134: =SUM(IF('6. Class A Consumption Data'!J332:K332="B",'6. Class A Consumption Data'!J330:K330)) -> 0 | G134: =SUM(IF('6. Class A Consumption Data'!L332:M332="B",'6. Class A Consumption Data'!L330:M330)) -> 0 | H134: =SUM(IF('6. Class A Consumption Data'!N332:O332="B",'6. Class A Consumption Data'!N330:O330)) -> 0 | I134: 0 | J134: 0 | K134: 0 | L134: 0
A135: Customer 102 | C135: 0 | D135: 0 | E135: =SUM(IF('6. Class A Consumption Data'!H335:I335="B",'6. Class A Consumption Data'!H333:I333)) -> 0 | F135: =SUM(IF('6. Class A Consumption Data'!J335:K335="B",'6. Class A Consumption Data'!J333:K333)) -> 0 | G135: =SUM(IF('6. Class A Consumption Data'!L335:M335="B",'6. Class A Consumption Data'!L333:M333)) -> 0 | H135: =SUM(IF('6. Class A Consumption Data'!N335:O335="B",'6. Class A Consumption Data'!N333:O333)) -> 0 | I135: 0 | J135: 0 | K135: 0 | L135: 0
A136: Customer 103 | C136: 0 | D136: 0 | E136: =SUM(IF('6. Class A Consumption Data'!H338:I338="B",'6. Class A Consumption Data'!H336:I336)) -> 0 | F136: =SUM(IF('6. Class A Consumption Data'!J338:K338="B",'6. Class A Consumption Data'!J336:K336)) -> 0 | G136: =SUM(IF('6. Class A Consumption Data'!L338:M338="B",'6. Class A Consumption Data'!L336:M336)) -> 0 | H136: =SUM(IF('6. Class A Consumption Data'!N338:O338="B",'6. Class A Consumption Data'!N336:O336)) -> 0 | I136: 0 | J136: 0 | K136: 0 | L136: 0
A137: Customer 104 | C137: 0 | D137: 0 | E137: =SUM(IF('6. Class A Consumption Data'!H341:I341="B",'6. Class A Consumption Data'!H339:I339)) -> 0 | F137: =SUM(IF('6. Class A Consumption Data'!J341:K341="B",'6. Class A Consumption Data'!J339:K339)) -> 0 | G137: =SUM(IF('6. Class A Consumption Data'!L341:M341="B",'6. Class A Consumption Data'!L339:M339)) -> 0 | H137: =SUM(IF('6. Class A Consumption Data'!N341:O341="B",'6. Class A Consumption Data'!N339:O339)) -> 0 | I137: 0 | J137: 0 | K137: 0 | L137: 0
A138: Customer 105 | C138: 0 | D138: 0 | E138: =SUM(IF('6. Class A Consumption Data'!H344:I344="B",'6. Class A Consumption Data'!H342:I342)) -> 0 | F138: =SUM(IF('6. Class A Consumption Data'!J344:K344="B",'6. Class A Consumption Data'!J342:K342)) -> 0 | G138: =SUM(IF('6. Class A Consumption Data'!L344:M344="B",'6. Class A Consumption Data'!L342:M342)) -> 0 | H138: =SUM(IF('6. Class A Consumption Data'!N344:O344="B",'6. Class A Consumption Data'!N342:O342)) -> 0 | I138: 0 | J138: 0 | K138: 0 | L138: 0
A139: Customer 106 | C139: 0 | D139: 0 | E139: =SUM(IF('6. Class A Consumption Data'!H347:I347="B",'6. Class A Consumption Data'!H345:I345)) -> 0 | F139: =SUM(IF('6. Class A Consumption Data'!J347:K347="B",'6. Class A Consumption Data'!J345:K345)) -> 0 | G139: =SUM(IF('6. Class A Consumption Data'!L347:M347="B",'6. Class A Consumption Data'!L345:M345)) -> 0 | H139: =SUM(IF('6. Class A Consumption Data'!N347:O347="B",'6. Class A Consumption Data'!N345:O345)) -> 0 | I139: 0 | J139: 0 | K139: 0 | L139: 0
A140: Customer 107 | C140: 0 | D140: 0 | E140: =SUM(IF('6. Class A Consumption Data'!H350:I350="B",'6. Class A Consumption Data'!H348:I348)) -> 0 | F140: =SUM(IF('6. Class A Consumption Data'!J350:K350="B",'6. Class A Consumption Data'!J348:K348)) -> 0 | G140: =SUM(IF('6. Class A Consumption Data'!L350:M350="B",'6. Class A Consumption Data'!L348:M348)) -> 0 | H140: =SUM(IF('6. Class A Consumption Data'!N350:O350="B",'6. Class A Consumption Data'!N348:O348)) -> 0 | I140: 0 | J140: 0 | K140: 0 | L140: 0
A141: Customer 108 | C141: 0 | D141: 0 | E141: =SUM(IF('6. Class A Consumption Data'!H353:I353="B",'6. Class A Consumption Data'!H351:I351)) -> 0 | F141: =SUM(IF('6. Class A Consumption Data'!J353:K353="B",'6. Class A Consumption Data'!J351:K351)) -> 0 | G141: =SUM(IF('6. Class A Consumption Data'!L353:M353="B",'6. Class A Consumption Data'!L351:M351)) -> 0 | H141: =SUM(IF('6. Class A Consumption Data'!N353:O353="B",'6. Class A Consumption Data'!N351:O351)) -> 0 | I141: 0 | J141: 0 | K141: 0 | L141: 0
A142: Customer 109 | C142: 0 | D142: 0 | E142: =SUM(IF('6. Class A Consumption Data'!H356:I356="B",'6. Class A Consumption Data'!H354:I354)) -> 0 | F142: =SUM(IF('6. Class A Consumption Data'!J356:K356="B",'6. Class A Consumption Data'!J354:K354)) -> 0 | G142: =SUM(IF('6. Class A Consumption Data'!L356:M356="B",'6. Class A Consumption Data'!L354:M354)) -> 0 | H142: =SUM(IF('6. Class A Consumption Data'!N356:O356="B",'6. Class A Consumption Data'!N354:O354)) -> 0 | I142: 0 | J142: 0 | K142: 0 | L142: 0
A143: Customer 110 | C143: 0 | D143: 0 | E143: =SUM(IF('6. Class A Consumption Data'!H359:I359="B",'6. Class A Consumption Data'!H357:I357)) -> 0 | F143: =SUM(IF('6. Class A Consumption Data'!J359:K359="B",'6. Class A Consumption Data'!J357:K357)) -> 0 | G143: =SUM(IF('6. Class A Consumption Data'!L359:M359="B",'6. Class A Consumption Data'!L357:M357)) -> 0 | H143: =SUM(IF('6. Class A Consumption Data'!N359:O359="B",'6. Class A Consumption Data'!N357:O357)) -> 0 | I143: 0 | J143: 0 | K143: 0 | L143: 0
A144: Customer 111 | C144: 0 | D144: 0 | E144: =SUM(IF('6. Class A Consumption Data'!H362:I362="B",'6. Class A Consumption Data'!H360:I360)) -> 0 | F144: =SUM(IF('6. Class A Consumption Data'!J362:K362="B",'6. Class A Consumption Data'!J360:K360)) -> 0 | G144: =SUM(IF('6. Class A Consumption Data'!L362:M362="B",'6. Class A Consumption Data'!L360:M360)) -> 0 | H144: =SUM(IF('6. Class A Consumption Data'!N362:O362="B",'6. Class A Consumption Data'!N360:O360)) -> 0 | I144: 0 | J144: 0 | K144: 0 | L144: 0
A145: Customer 112 | C145: 0 | D145: 0 | E145: =SUM(IF('6. Class A Consumption Data'!H365:I365="B",'6. Class A Consumption Data'!H363:I363)) -> 0 | F145: =SUM(IF('6. Class A Consumption Data'!J365:K365="B",'6. Class A Consumption Data'!J363:K363)) -> 0 | G145: =SUM(IF('6. Class A Consumption Data'!L365:M365="B",'6. Class A Consumption Data'!L363:M363)) -> 0 | H145: =SUM(IF('6. Class A Consumption Data'!N365:O365="B",'6. Class A Consumption Data'!N363:O363)) -> 0 | I145: 0 | J145: 0 | K145: 0 | L145: 0
A146: Customer 113 | C146: 0 | D146: 0 | E146: =SUM(IF('6. Class A Consumption Data'!H368:I368="B",'6. Class A Consumption Data'!H366:I366)) -> 0 | F146: =SUM(IF('6. Class A Consumption Data'!J368:K368="B",'6. Class A Consumption Data'!J366:K366)) -> 0 | G146: =SUM(IF('6. Class A Consumption Data'!L368:M368="B",'6. Class A Consumption Data'!L366:M366)) -> 0 | H146: =SUM(IF('6. Class A Consumption Data'!N368:O368="B",'6. Class A Consumption Data'!N366:O366)) -> 0 | I146: 0 | J146: 0 | K146: 0 | L146: 0
A147: Customer 114 | C147: 0 | D147: 0 | E147: =SUM(IF('6. Class A Consumption Data'!H371:I371="B",'6. Class A Consumption Data'!H369:I369)) -> 0 | F147: =SUM(IF('6. Class A Consumption Data'!J371:K371="B",'6. Class A Consumption Data'!J369:K369)) -> 0 | G147: =SUM(IF('6. Class A Consumption Data'!L371:M371="B",'6. Class A Consumption Data'!L369:M369)) -> 0 | H147: =SUM(IF('6. Class A Consumption Data'!N371:O371="B",'6. Class A Consumption Data'!N369:O369)) -> 0 | I147: 0 | J147: 0 | K147: 0 | L147: 0
A148: Customer 115 | C148: 0 | D148: 0 | E148: =SUM(IF('6. Class A Consumption Data'!H374:I374="B",'6. Class A Consumption Data'!H372:I372)) -> 0 | F148: =SUM(IF('6. Class A Consumption Data'!J374:K374="B",'6. Class A Consumption Data'!J372:K372)) -> 0 | G148: =SUM(IF('6. Class A Consumption Data'!L374:M374="B",'6. Class A Consumption Data'!L372:M372)) -> 0 | H148: =SUM(IF('6. Class A Consumption Data'!N374:O374="B",'6. Class A Consumption Data'!N372:O372)) -> 0 | I148: 0 | J148: 0 | K148: 0 | L148: 0
A149: Customer 116 | C149: 0 | D149: 0 | E149: =SUM(IF('6. Class A Consumption Data'!H377:I377="B",'6. Class A Consumption Data'!H375:I375)) -> 0 | F149: =SUM(IF('6. Class A Consumption Data'!J377:K377="B",'6. Class A Consumption Data'!J375:K375)) -> 0 | G149: =SUM(IF('6. Class A Consumption Data'!L377:M377="B",'6. Class A Consumption Data'!L375:M375)) -> 0 | H149: =SUM(IF('6. Class A Consumption Data'!N377:O377="B",'6. Class A Consumption Data'!N375:O375)) -> 0 | I149: 0 | J149: 0 | K149: 0 | L149: 0
A150: Customer 117 | C150: 0 | D150: 0 | E150: =SUM(IF('6. Class A Consumption Data'!H380:I380="B",'6. Class A Consumption Data'!H378:I378)) -> 0 | F150: =SUM(IF('6. Class A Consumption Data'!J380:K380="B",'6. Class A Consumption Data'!J378:K378)) -> 0 | G150: =SUM(IF('6. Class A Consumption Data'!L380:M380="B",'6. Class A Consumption Data'!L378:M378)) -> 0 | H150: =SUM(IF('6. Class A Consumption Data'!N380:O380="B",'6. Class A Consumption Data'!N378:O378)) -> 0 | I150: 0 | J150: 0 | K150: 0 | L150: 0
A151: Customer 118 | C151: 0 | D151: 0 | E151: =SUM(IF('6. Class A Consumption Data'!H383:I383="B",'6. Class A Consumption Data'!H381:I381)) -> 0 | F151: =SUM(IF('6. Class A Consumption Data'!J383:K383="B",'6. Class A Consumption Data'!J381:K381)) -> 0 | G151: =SUM(IF('6. Class A Consumption Data'!L383:M383="B",'6. Class A Consumption Data'!L381:M381)) -> 0 | H151: =SUM(IF('6. Class A Consumption Data'!N383:O383="B",'6. Class A Consumption Data'!N381:O381)) -> 0 | I151: 0 | J151: 0 | K151: 0 | L151: 0
A152: Customer 119 | C152: 0 | D152: 0 | E152: =SUM(IF('6. Class A Consumption Data'!H386:I386="B",'6. Class A Consumption Data'!H384:I384)) -> 0 | F152: =SUM(IF('6. Class A Consumption Data'!J386:K386="B",'6. Class A Consumption Data'!J384:K384)) -> 0 | G152: =SUM(IF('6. Class A Consumption Data'!L386:M386="B",'6. Class A Consumption Data'!L384:M384)) -> 0 | H152: =SUM(IF('6. Class A Consumption Data'!N386:O386="B",'6. Class A Consumption Data'!N384:O384)) -> 0 | I152: 0 | J152: 0 | K152: 0 | L152: 0
A153: Customer 120 | C153: 0 | D153: 0 | E153: =SUM(IF('6. Class A Consumption Data'!H389:I389="B",'6. Class A Consumption Data'!H387:I387)) -> 0 | F153: =SUM(IF('6. Class A Consumption Data'!J389:K389="B",'6. Class A Consumption Data'!J387:K387)) -> 0 | G153: =SUM(IF('6. Class A Consumption Data'!L389:M389="B",'6. Class A Consumption Data'!L387:M387)) -> 0 | H153: =SUM(IF('6. Class A Consumption Data'!N389:O389="B",'6. Class A Consumption Data'!N387:O387)) -> 0 | I153: 0 | J153: 0 | K153: 0 | L153: 0
A154: Customer 121 | C154: 0 | D154: 0 | E154: =SUM(IF('6. Class A Consumption Data'!H392:I392="B",'6. Class A Consumption Data'!H390:I390)) -> 0 | F154: =SUM(IF('6. Class A Consumption Data'!J392:K392="B",'6. Class A Consumption Data'!J390:K390)) -> 0 | G154: =SUM(IF('6. Class A Consumption Data'!L392:M392="B",'6. Class A Consumption Data'!L390:M390)) -> 0 | H154: =SUM(IF('6. Class A Consumption Data'!N392:O392="B",'6. Class A Consumption Data'!N390:O390)) -> 0 | I154: 0 | J154: 0 | K154: 0 | L154: 0
A155: Customer 122 | C155: 0 | D155: 0 | E155: =SUM(IF('6. Class A Consumption Data'!H395:I395="B",'6. Class A Consumption Data'!H393:I393)) -> 0 | F155: =SUM(IF('6. Class A Consumption Data'!J395:K395="B",'6. Class A Consumption Data'!J393:K393)) -> 0 | G155: =SUM(IF('6. Class A Consumption Data'!L395:M395="B",'6. Class A Consumption Data'!L393:M393)) -> 0 | H155: =SUM(IF('6. Class A Consumption Data'!N395:O395="B",'6. Class A Consumption Data'!N393:O393)) -> 0 | I155: 0 | J155: 0 | K155: 0 | L155: 0
A156: Customer 123 | C156: 0 | D156: 0 | E156: =SUM(IF('6. Class A Consumption Data'!H398:I398="B",'6. Class A Consumption Data'!H396:I396)) -> 0 | F156: =SUM(IF('6. Class A Consumption Data'!J398:K398="B",'6. Class A Consumption Data'!J396:K396)) -> 0 | G156: =SUM(IF('6. Class A Consumption Data'!L398:M398="B",'6. Class A Consumption Data'!L396:M396)) -> 0 | H156: =SUM(IF('6. Class A Consumption Data'!N398:O398="B",'6. Class A Consumption Data'!N396:O396)) -> 0 | I156: 0 | J156: 0 | K156: 0 | L156: 0
A157: Customer 124 | C157: 0 | D157: 0 | E157: =SUM(IF('6. Class A Consumption Data'!H401:I401="B",'6. Class A Consumption Data'!H399:I399)) -> 0 | F157: =SUM(IF('6. Class A Consumption Data'!J401:K401="B",'6. Class A Consumption Data'!J399:K399)) -> 0 | G157: =SUM(IF('6. Class A Consumption Data'!L401:M401="B",'6. Class A Consumption Data'!L399:M399)) -> 0 | H157: =SUM(IF('6. Class A Consumption Data'!N401:O401="B",'6. Class A Consumption Data'!N399:O399)) -> 0 | I157: 0 | J157: 0 | K157: 0 | L157: 0
A158: Customer 125 | C158: 0 | D158: 0 | E158: =SUM(IF('6. Class A Consumption Data'!H404:I404="B",'6. Class A Consumption Data'!H402:I402)) -> 0 | F158: =SUM(IF('6. Class A Consumption Data'!J404:K404="B",'6. Class A Consumption Data'!J402:K402)) -> 0 | G158: =SUM(IF('6. Class A Consumption Data'!L404:M404="B",'6. Class A Consumption Data'!L402:M402)) -> 0 | H158: =SUM(IF('6. Class A Consumption Data'!N404:O404="B",'6. Class A Consumption Data'!N402:O402)) -> 0 | I158: 0 | J158: 0 | K158: 0 | L158: 0
A159: Customer 126 | C159: 0 | D159: 0 | E159: =SUM(IF('6. Class A Consumption Data'!H407:I407="B",'6. Class A Consumption Data'!H405:I405)) -> 0 | F159: =SUM(IF('6. Class A Consumption Data'!J407:K407="B",'6. Class A Consumption Data'!J405:K405)) -> 0 | G159: =SUM(IF('6. Class A Consumption Data'!L407:M407="B",'6. Class A Consumption Data'!L405:M405)) -> 0 | H159: =SUM(IF('6. Class A Consumption Data'!N407:O407="B",'6. Class A Consumption Data'!N405:O405)) -> 0 | I159: 0 | J159: 0 | K159: 0 | L159: 0
A160: Customer 127 | C160: 0 | D160: 0 | E160: =SUM(IF('6. Class A Consumption Data'!H410:I410="B",'6. Class A Consumption Data'!H408:I408)) -> 0 | F160: =SUM(IF('6. Class A Consumption Data'!J410:K410="B",'6. Class A Consumption Data'!J408:K408)) -> 0 | G160: =SUM(IF('6. Class A Consumption Data'!L410:M410="B",'6. Class A Consumption Data'!L408:M408)) -> 0 | H160: =SUM(IF('6. Class A Consumption Data'!N410:O410="B",'6. Class A Consumption Data'!N408:O408)) -> 0 | I160: 0 | J160: 0 | K160: 0 | L160: 0
A161: Customer 128 | C161: 0 | D161: 0 | E161: =SUM(IF('6. Class A Consumption Data'!H413:I413="B",'6. Class A Consumption Data'!H411:I411)) -> 0 | F161: =SUM(IF('6. Class A Consumption Data'!J413:K413="B",'6. Class A Consumption Data'!J411:K411)) -> 0 | G161: =SUM(IF('6. Class A Consumption Data'!L413:M413="B",'6. Class A Consumption Data'!L411:M411)) -> 0 | H161: =SUM(IF('6. Class A Consumption Data'!N413:O413="B",'6. Class A Consumption Data'!N411:O411)) -> 0 | I161: 0 | J161: 0 | K161: 0 | L161: 0
A162: Customer 129 | C162: 0 | D162: 0 | E162: =SUM(IF('6. Class A Consumption Data'!H416:I416="B",'6. Class A Consumption Data'!H414:I414)) -> 0 | F162: =SUM(IF('6. Class A Consumption Data'!J416:K416="B",'6. Class A Consumption Data'!J414:K414)) -> 0 | G162: =SUM(IF('6. Class A Consumption Data'!L416:M416="B",'6. Class A Consumption Data'!L414:M414)) -> 0 | H162: =SUM(IF('6. Class A Consumption Data'!N416:O416="B",'6. Class A Consumption Data'!N414:O414)) -> 0 | I162: =IFERROR(+C162/($C$184),0) -> 0 | J162: =+I162*$C$28 -> 0 | K162: =+J162/12 -> 0 | L162: 0
A163: Customer 130 | C163: 0 | D163: 0 | E163: =SUM(IF('6. Class A Consumption Data'!H419:I419="B",'6. Class A Consumption Data'!H417:I417)) -> 0 | F163: =SUM(IF('6. Class A Consumption Data'!J419:K419="B",'6. Class A Consumption Data'!J417:K417)) -> 0 | G163: =SUM(IF('6. Class A Consumption Data'!L419:M419="B",'6. Class A Consumption Data'!L417:M417)) -> 0 | H163: =SUM(IF('6. Class A Consumption Data'!N419:O419="B",'6. Class A Consumption Data'!N417:O417)) -> 0 | I163: 0 | J163: 0 | K163: 0 | L163: 0
A164: Customer 131 | C164: 0 | D164: 0 | E164: =SUM(IF('6. Class A Consumption Data'!H422:I422="B",'6. Class A Consumption Data'!H420:I420)) -> 0 | F164: =SUM(IF('6. Class A Consumption Data'!J422:K422="B",'6. Class A Consumption Data'!J420:K420)) -> 0 | G164: =SUM(IF('6. Class A Consumption Data'!L422:M422="B",'6. Class A Consumption Data'!L420:M420)) -> 0 | H164: =SUM(IF('6. Class A Consumption Data'!N422:O422="B",'6. Class A Consumption Data'!N420:O420)) -> 0 | I164: 0 | J164: 0 | K164: 0 | L164: 0
A165: Customer 132 | C165: 0 | D165: 0 | E165: =SUM(IF('6. Class A Consumption Data'!H425:I425="B",'6. Class A Consumption Data'!H423:I423)) -> 0 | F165: =SUM(IF('6. Class A Consumption Data'!J425:K425="B",'6. Class A Consumption Data'!J423:K423)) -> 0 | G165: =SUM(IF('6. Class A Consumption Data'!L425:M425="B",'6. Class A Consumption Data'!L423:M423)) -> 0 | H165: =SUM(IF('6. Class A Consumption Data'!N425:O425="B",'6. Class A Consumption Data'!N423:O423)) -> 0 | I165: 0 | J165: 0 | K165: 0 | L165: 0
A166: Customer 133 | C166: 0 | D166: 0 | E166: =SUM(IF('6. Class A Consumption Data'!H428:I428="B",'6. Class A Consumption Data'!H426:I426)) -> 0 | F166: =SUM(IF('6. Class A Consumption Data'!J428:K428="B",'6. Class A Consumption Data'!J426:K426)) -> 0 | G166: =SUM(IF('6. Class A Consumption Data'!L428:M428="B",'6. Class A Consumption Data'!L426:M426)) -> 0 | H166: =SUM(IF('6. Class A Consumption Data'!N428:O428="B",'6. Class A Consumption Data'!N426:O426)) -> 0 | I166: 0 | J166: 0 | K166: 0 | L166: 0
A167: Customer 134 | C167: 0 | D167: 0 | E167: =SUM(IF('6. Class A Consumption Data'!H431:I431="B",'6. Class A Consumption Data'!H429:I429)) -> 0 | F167: =SUM(IF('6. Class A Consumption Data'!J431:K431="B",'6. Class A Consumption Data'!J429:K429)) -> 0 | G167: =SUM(IF('6. Class A Consumption Data'!L431:M431="B",'6. Class A Consumption Data'!L429:M429)) -> 0 | H167: =SUM(IF('6. Class A Consumption Data'!N431:O431="B",'6. Class A Consumption Data'!N429:O429)) -> 0 | I167: 0 | J167: 0 | K167: 0 | L167: 0
A168: Customer 135 | C168: 0 | D168: 0 | E168: =SUM(IF('6. Class A Consumption Data'!H434:I434="B",'6. Class A Consumption Data'!H432:I432)) -> 0 | F168: =SUM(IF('6. Class A Consumption Data'!J434:K434="B",'6. Class A Consumption Data'!J432:K432)) -> 0 | G168: =SUM(IF('6. Class A Consumption Data'!L434:M434="B",'6. Class A Consumption Data'!L432:M432)) -> 0 | H168: =SUM(IF('6. Class A Consumption Data'!N434:O434="B",'6. Class A Consumption Data'!N432:O432)) -> 0 | I168: 0 | J168: 0 | K168: 0 | L168: 0
A169: Customer 136 | C169: 0 | D169: 0 | E169: =SUM(IF('6. Class A Consumption Data'!H437:I437="B",'6. Class A Consumption Data'!H435:I435)) -> 0 | F169: =SUM(IF('6. Class A Consumption Data'!J437:K437="B",'6. Class A Consumption Data'!J435:K435)) -> 0 | G169: =SUM(IF('6. Class A Consumption Data'!L437:M437="B",'6. Class A Consumption Data'!L435:M435)) -> 0 | H169: =SUM(IF('6. Class A Consumption Data'!N437:O437="B",'6. Class A Consumption Data'!N435:O435)) -> 0 | I169: 0 | J169: 0 | K169: 0 | L169: 0
A170: Customer 137 | C170: 0 | D170: 0 | E170: =SUM(IF('6. Class A Consumption Data'!H440:I440="B",'6. Class A Consumption Data'!H438:I438)) -> 0 | F170: =SUM(IF('6. Class A Consumption Data'!J440:K440="B",'6. Class A Consumption Data'!J438:K438)) -> 0 | G170: =SUM(IF('6. Class A Consumption Data'!L440:M440="B",'6. Class A Consumption Data'!L438:M438)) -> 0 | H170: =SUM(IF('6. Class A Consumption Data'!N440:O440="B",'6. Class A Consumption Data'!N438:O438)) -> 0 | I170: 0 | J170: 0 | K170: 0 | L170: 0
A171: Customer 138 | C171: 0 | D171: 0 | E171: =SUM(IF('6. Class A Consumption Data'!H443:I443="B",'6. Class A Consumption Data'!H441:I441)) -> 0 | F171: =SUM(IF('6. Class A Consumption Data'!J443:K443="B",'6. Class A Consumption Data'!J441:K441)) -> 0 | G171: =SUM(IF('6. Class A Consumption Data'!L443:M443="B",'6. Class A Consumption Data'!L441:M441)) -> 0 | H171: =SUM(IF('6. Class A Consumption Data'!N443:O443="B",'6. Class A Consumption Data'!N441:O441)) -> 0 | I171: 0 | J171: 0 | K171: 0 | L171: 0
A172: Customer 139 | C172: 0 | D172: 0 | E172: =SUM(IF('6. Class A Consumption Data'!H446:I446="B",'6. Class A Consumption Data'!H444:I444)) -> 0 | F172: =SUM(IF('6. Class A Consumption Data'!J446:K446="B",'6. Class A Consumption Data'!J444:K444)) -> 0 | G172: =SUM(IF('6. Class A Consumption Data'!L446:M446="B",'6. Class A Consumption Data'!L444:M444)) -> 0 | H172: =SUM(IF('6. Class A Consumption Data'!N446:O446="B",'6. Class A Consumption Data'!N444:O444)) -> 0 | I172: 0 | J172: 0 | K172: 0 | L172: 0
A173: Customer 140 | C173: 0 | D173: 0 | E173: =SUM(IF('6. Class A Consumption Data'!H449:I449="B",'6. Class A Consumption Data'!H447:I447)) -> 0 | F173: =SUM(IF('6. Class A Consumption Data'!J449:K449="B",'6. Class A Consumption Data'!J447:K447)) -> 0 | G173: =SUM(IF('6. Class A Consumption Data'!L449:M449="B",'6. Class A Consumption Data'!L447:M447)) -> 0 | H173: =SUM(IF('6. Class A Consumption Data'!N449:O449="B",'6. Class A Consumption Data'!N447:O447)) -> 0 | I173: 0 | J173: 0 | K173: 0 | L173: 0
A174: Customer 141 | C174: 0 | D174: 0 | E174: =SUM(IF('6. Class A Consumption Data'!H452:I452="B",'6. Class A Consumption Data'!H450:I450)) -> 0 | F174: =SUM(IF('6. Class A Consumption Data'!J452:K452="B",'6. Class A Consumption Data'!J450:K450)) -> 0 | G174: =SUM(IF('6. Class A Consumption Data'!L452:M452="B",'6. Class A Consumption Data'!L450:M450)) -> 0 | H174: =SUM(IF('6. Class A Consumption Data'!N452:O452="B",'6. Class A Consumption Data'!N450:O450)) -> 0 | I174: 0 | J174: 0 | K174: 0 | L174: 0
A175: Customer 142 | C175: 0 | D175: 0 | E175: =SUM(IF('6. Class A Consumption Data'!H455:I455="B",'6. Class A Consumption Data'!H453:I453)) -> 0 | F175: =SUM(IF('6. Class A Consumption Data'!J455:K455="B",'6. Class A Consumption Data'!J453:K453)) -> 0 | G175: =SUM(IF('6. Class A Consumption Data'!L455:M455="B",'6. Class A Consumption Data'!L453:M453)) -> 0 | H175: =SUM(IF('6. Class A Consumption Data'!N455:O455="B",'6. Class A Consumption Data'!N453:O453)) -> 0 | I175: 0 | J175: 0 | K175: 0 | L175: 0
A176: Customer 143 | C176: 0 | D176: 0 | E176: =SUM(IF('6. Class A Consumption Data'!H458:I458="B",'6. Class A Consumption Data'!H456:I456)) -> 0 | F176: =SUM(IF('6. Class A Consumption Data'!J458:K458="B",'6. Class A Consumption Data'!J456:K456)) -> 0 | G176: =SUM(IF('6. Class A Consumption Data'!L458:M458="B",'6. Class A Consumption Data'!L456:M456)) -> 0 | H176: =SUM(IF('6. Class A Consumption Data'!N458:O458="B",'6. Class A Consumption Data'!N456:O456)) -> 0 | I176: 0 | J176: 0 | K176: 0 | L176: 0
A177: Customer 144 | C177: 0 | D177: 0 | E177: =SUM(IF('6. Class A Consumption Data'!H461:I461="B",'6. Class A Consumption Data'!H459:I459)) -> 0 | F177: =SUM(IF('6. Class A Consumption Data'!J461:K461="B",'6. Class A Consumption Data'!J459:K459)) -> 0 | G177: =SUM(IF('6. Class A Consumption Data'!L461:M461="B",'6. Class A Consumption Data'!L459:M459)) -> 0 | H177: =SUM(IF('6. Class A Consumption Data'!N461:O461="B",'6. Class A Consumption Data'!N459:O459)) -> 0 | I177: 0 | J177: 0 | K177: 0 | L177: 0
A178: Customer 145 | C178: 0 | D178: 0 | E178: =SUM(IF('6. Class A Consumption Data'!H464:I464="B",'6. Class A Consumption Data'!H462:I462)) -> 0 | F178: =SUM(IF('6. Class A Consumption Data'!J464:K464="B",'6. Class A Consumption Data'!J462:K462)) -> 0 | G178: =SUM(IF('6. Class A Consumption Data'!L464:M464="B",'6. Class A Consumption Data'!L462:M462)) -> 0 | H178: =SUM(IF('6. Class A Consumption Data'!N464:O464="B",'6. Class A Consumption Data'!N462:O462)) -> 0 | I178: 0 | J178: 0 | K178: 0 | L178: 0
A179: Customer 146 | C179: 0 | D179: 0 | E179: =SUM(IF('6. Class A Consumption Data'!H467:I467="B",'6. Class A Consumption Data'!H465:I465)) -> 0 | F179: =SUM(IF('6. Class A Consumption Data'!J467:K467="B",'6. Class A Consumption Data'!J465:K465)) -> 0 | G179: =SUM(IF('6. Class A Consumption Data'!L467:M467="B",'6. Class A Consumption Data'!L465:M465)) -> 0 | H179: =SUM(IF('6. Class A Consumption Data'!N467:O467="B",'6. Class A Consumption Data'!N465:O465)) -> 0 | I179: 0 | J179: 0 | K179: 0 | L179: 0
A180: Customer 147 | C180: 0 | D180: 0 | E180: =SUM(IF('6. Class A Consumption Data'!H470:I470="B",'6. Class A Consumption Data'!H468:I468)) -> 0 | F180: =SUM(IF('6. Class A Consumption Data'!J470:K470="B",'6. Class A Consumption Data'!J468:K468)) -> 0 | G180: =SUM(IF('6. Class A Consumption Data'!L470:M470="B",'6. Class A Consumption Data'!L468:M468)) -> 0 | H180: =SUM(IF('6. Class A Consumption Data'!N470:O470="B",'6. Class A Consumption Data'!N468:O468)) -> 0 | I180: 0 | J180: 0 | K180: 0 | L180: 0
A181: Customer 148 | C181: 0 | D181: 0 | E181: =SUM(IF('6. Class A Consumption Data'!H473:I473="B",'6. Class A Consumption Data'!H471:I471)) -> 0 | F181: =SUM(IF('6. Class A Consumption Data'!J473:K473="B",'6. Class A Consumption Data'!J471:K471)) -> 0 | G181: =SUM(IF('6. Class A Consumption Data'!L473:M473="B",'6. Class A Consumption Data'!L471:M471)) -> 0 | H181: =SUM(IF('6. Class A Consumption Data'!N473:O473="B",'6. Class A Consumption Data'!N471:O471)) -> 0 | I181: 0 | J181: 0 | K181: 0 | L181: 0
A182: Customer 149 | C182: 0 | D182: 0 | E182: =SUM(IF('6. Class A Consumption Data'!H476:I476="B",'6. Class A Consumption Data'!H474:I474)) -> 0 | F182: =SUM(IF('6. Class A Consumption Data'!J476:K476="B",'6. Class A Consumption Data'!J474:K474)) -> 0 | G182: =SUM(IF('6. Class A Consumption Data'!L476:M476="B",'6. Class A Consumption Data'!L474:M474)) -> 0 | H182: =SUM(IF('6. Class A Consumption Data'!N476:O476="B",'6. Class A Consumption Data'!N474:O474)) -> 0 | I182: 0 | J182: 0 | K182: 0 | L182: 0
A183: Customer 150 | C183: 0 | D183: 0 | E183: =SUM(IF('6. Class A Consumption Data'!H479:I479="B",'6. Class A Consumption Data'!H477:I477)) -> 0 | F183: =SUM(IF('6. Class A Consumption Data'!J479:K479="B",'6. Class A Consumption Data'!J477:K477)) -> 0 | G183: =SUM(IF('6. Class A Consumption Data'!L479:M479="B",'6. Class A Consumption Data'!L477:M477)) -> 0 | H183: =SUM(IF('6. Class A Consumption Data'!N479:O479="B",'6. Class A Consumption Data'!N477:O477)) -> 0 | I183: 0 | J183: 0 | K183: 0 | L183: 0
A184: Total | C184: =SUM(C34:C183) -> 0 | D184: 0 | E184: 0 | F184: 0 | G184: 0 | H184: 8160896 | I184: 0 | J184: 0 | K184: 0 | L184: 0

Sheet 6.2 CBR B
B2: FALSE | C2: TRUE
B6: Total
A12: No input required. The purpose of this tab is to calculate the CBR rate riders for all current Class B customers who did not transition between Class A and B in the period since the Account 1580, sub-account CBR Class B balance accumulated.
A13: The year Account 1580 CBR Class B was last disposed | B13: ='1. Information Sheet'!F42 -> 2020
C14: Total Metered 2021 Consumption Minus WMP | E14: Total Metered 2021 Consumption for Full Year Class A Customers | G14: Total Metered 2021 Consumption for Transition Customers | I14: Metered 2021 Consumption for Current Class B Customers (Total Consumption LESS WMP, Class A and Transition Customers' Consumption) | K14: % of total kWh | L14: Total CBR Class B $ allocated to Current Class B Customers | M14: CBR Class B Rate Rider | N14: Unit
C15: kWh | D15: kW | E15: kWh | F15: kW | G15: kWh | H15: kW | I15: kWh | J15: kW
A17: RESIDENTIAL SERVICE CLASSIFICATION | B17: kWh | C17: 106359838 | D17: 0 | E17: =SUM(IF('6. Class A Consumption Data'!D492:D791=A17,'6. Class A Consumption Data'!F492:F791)) -> 0 | F17: =SUM(IF('6. Class A Consumption Data'!D492:D791=A17&"kW",'6. Class A Consumption Data'!F492:F791)) -> 0 | G17: =SUM(IF(('6. Class A Consumption Data'!D30:D479=A17)*('6. Class A Consumption Data'!B30:B479 <> "A"),'6. Class A Consumption Data'!F30:G479)) -> 0 | H17: =SUM(IF(('6. Class A Consumption Data'!D30:D479=A17&"kW")*('6. Class A Consumption Data'!B30:B479<> "A"),'6. Class A Consumption Data'!F30:G479)) -> 0 | I17: =ROUND((C17-E17-G17),0) -> 106359838 | J17: =(D17-F17-H17) -> 0 | K17: =(I17/I24) -> 0.4769016551 | L17: =ROUND((2081.85*K17),0) -> 993 | M17: 0 | N17: kWh | O17: If the allocated Account 1580 sub-account CBR Class B amount does not produce a rate rider in one or more rate class (except for the Standby rate class), the model will transfer the entire CBR Class B amount into Account 1580 WMS control account to be disposed through the general purpose Group 1 DVA rate riders.
A18: GENERAL SERVICE LESS THAN 50 KW SERVICE CLASSIFICATION | B18: kWh | C18: 27377213 | D18: 0 | E18: =SUM(IF('6. Class A Consumption Data'!D492:D791=A18,'6. Class A Consumption Data'!F492:F791)) -> 0 | F18: =SUM(IF('6. Class A Consumption Data'!D492:D791=A18&"kW",'6. Class A Consumption Data'!F492:F791)) -> 0 | G18: =SUM(IF(('6. Class A Consumption Data'!D30:D479=A18)*('6. Class A Consumption Data'!B30:B479 <> "A"),'6. Class A Consumption Data'!F30:G479)) -> 0 | H18: =SUM(IF(('6. Class A Consumption Data'!D30:D479=A18&"kW")*('6. Class A Consumption Data'!B30:B479<> "A"),'6. Class A Consumption Data'!F30:G479)) -> 0 | I18: 27377213 | J18: 0 | K18: =(I18/I24) -> 0.1227553411 | L18: 256 | M18: 0 | N18: kWh
A19: GENERAL SERVICE 50 to 4,999 kW SERVICE CLASSIFICATION | B19: kW | C19: 56544701 | D19: 231007 | E19: =SUM(IF('6. Class A Consumption Data'!D492:D791=A19,'6. Class A Consumption Data'!F492:F791)) -> 19769610 | F19: =SUM(IF('6. Class A Consumption Data'!D492:D791=A19&"kW",'6. Class A Consumption Data'!F492:F791)) -> 64438 | G19: =SUM(IF(('6. Class A Consumption Data'!D30:D479=A19)*('6. Class A Consumption Data'!B30:B479 <> "A"),'6. Class A Consumption Data'!F30:G479)) -> 0 | H19: =SUM(IF(('6. Class A Consumption Data'!D30:D479=A19&"kW")*('6. Class A Consumption Data'!B30:B479<> "A"),'6. Class A Consumption Data'!F30:G479)) -> 0 | I19: 36775091 | J19: 166569 | K19: =(I19/I24) -> 0.1648940248 | L19: 343 | M19: 0 | N19: kW
A20: UNMETERED SCATTERED LOAD SERVICE CLASSIFICATION | B20: kWh | C20: 248173 | D20: 0 | E20: =SUM(IF('6. Class A Consumption Data'!D492:D791=A20,'6. Class A Consumption Data'!F492:F791)) -> 0 | F20: =SUM(IF('6. Class A Consumption Data'!D492:D791=A20&"kW",'6. Class A Consumption Data'!F492:F791)) -> 0 | G20: =SUM(IF(('6. Class A Consumption Data'!D30:D479=A20)*('6. Class A Consumption Data'!B30:B479 <> "A"),'6. Class A Consumption Data'!F30:G479)) -> 0 | H20: =SUM(IF(('6. Class A Consumption Data'!D30:D479=A20&"kW")*('6. Class A Consumption Data'!B30:B479<> "A"),'6. Class A Consumption Data'!F30:G479)) -> 0 | I20: 248173 | J20: 0 | K20: =(I20/I24) -> 0.001112770729 | L20: 2 | M20: 0 | N20: kWh
A21: SENTINEL LIGHTING SERVICE CLASSIFICATION | B21: kW | C21: 137713 | D21: 357 | E21: =SUM(IF('6. Class A Consumption Data'!D492:D791=A21,'6. Class A Consumption Data'!F492:F791)) -> 0 | F21: =SUM(IF('6. Class A Consumption Data'!D492:D791=A21&"kW",'6. Class A Consumption Data'!F492:F791)) -> 0 | G21: =SUM(IF(('6. Class A Consumption Data'!D30:D479=A21)*('6. Class A Consumption Data'!B30:B479 <> "A"),'6. Class A Consumption Data'!F30:G479)) -> 0 | H21: =SUM(IF(('6. Class A Consumption Data'!D30:D479=A21&"kW")*('6. Class A Consumption Data'!B30:B479<> "A"),'6. Class A Consumption Data'!F30:G479)) -> 0 | I21: 137713 | J21: 357 | K21: =(I21/I24) -> 0.0006174845587 | L21: 1 | M21: 0 | N21: kW
A22: STREET LIGHTING SERVICE CLASSIFICATION | B22: kW | C22: 1265084 | D22: 3399 | E22: =SUM(IF('6. Class A Consumption Data'!D492:D791=A22,'6. Class A Consumption Data'!F492:F791)) -> 0 | F22: =SUM(IF('6. Class A Consumption Data'!D492:D791=A22&"kW",'6. Class A Consumption Data'!F492:F791)) -> 0 | G22: =SUM(IF(('6. Class A Consumption Data'!D30:D479=A22)*('6. Class A Consumption Data'!B30:B479 <> "A"),'6. Class A Consumption Data'!F30:G479)) -> 0 | H22: =SUM(IF(('6. Class A Consumption Data'!D30:D479=A22&"kW")*('6. Class A Consumption Data'!B30:B479<> "A"),'6. Class A Consumption Data'!F30:G479)) -> 0 | I22: 1265084 | J22: 3399 | K22: =(I22/I24) -> 0.005672448029 | L22: 12 | M22: 0 | N22: kW
A23: EMBEDDED DISTRIBUTOR SERVICE CLASSIFICATION | B23: kW | C23: 50859469 | D23: 115598 | E23: =SUM(IF('6. Class A Consumption Data'!D492:D791=A23,'6. Class A Consumption Data'!F492:F791)) -> 0 | F23: =SUM(IF('6. Class A Consumption Data'!D492:D791=A23&"kW",'6. Class A Consumption Data'!F492:F791)) -> 0 | G23: =SUM(IF(('6. Class A Consumption Data'!D30:D479=A23)*('6. Class A Consumption Data'!B30:B479 <> "A"),'6. Class A Consumption Data'!F30:G479)) -> 0 | H23: =SUM(IF(('6. Class A Consumption Data'!D30:D479=A23&"kW")*('6. Class A Consumption Data'!B30:B479<> "A"),'6. Class A Consumption Data'!F30:G479)) -> 0 | I23: 50859469 | J23: 115598 | K23: =(I23/I24) -> 0.2280462757 | L23: 475 | M23: 0 | N23: kW
B24: Total | C24: 242792191 | D24: 350361 | E24: =SUM(E17:E23) -> 19769610 | F24: 64438 | G24: 0 | H24: 0 | I24: 223022581 | J24: 285923 | K24: 1 | L24: 2082 | M24: 0

Sheet 7. Calculation of Def-Var RR
A11: Input required at cells C13 and C14. This workshseet calculates rate riders related to the Deferral/Variance Account Disposition (if applicable) and rate riders for Account 1568. Rate Riders will not be generated for the microFIT class.
A12: Default Rate Rider Recovery Period (in months) | C12: 12
A13: DVA Proposed Rate Rider Recovery Period (in months) | C13: 12 | D13: =IF(C13>0, "Rate Rider Recovery to be used below", "If no rate rider recovery period is proposed then the default recovery period of 12 months will be used") -> Rate Rider Recovery to be used below
A14: LRAM Proposed Rate Rider Recovery Period (in months) | C14: 12 | D14: =IF(C14>0, "Rate Rider Recovery to be used below", "If no rate rider recovery period is proposed then the default recovery period of 12 months will be used") -> Rate Rider Recovery to be used below
C15: Total Metered kWh | D15: Metered kW or kVA | E15: Total Metered kWh less WMP consumption | F15: Total Metered kW less WMP consumption | G15: Allocation of Group 1 Account Balances to All Classes 2 | H15: Allocation of Group 1 Account Balances to Non-WMP Classes Only (If Applicable) 2 | I15: Deferral/Variance Account Rate Rider 2 | J15: Deferral/Variance Account Rate Rider for Non-WMP (if applicable) 2 | K15: Account 1568 Rate Rider
A16: Rate Class | B16: Unit | L16: Revenue Reconciliation: | N16: Revenue Reconcilation 1
A17: RESIDENTIAL SERVICE CLASSIFICATION | B17: kWh | C17: 106359838 | D17: 0 | E17: 106359838 | F17: 0 | G17: 283117.5771 | I17: =ROUND(IF(ISERROR(G17/C17),0,IF(OR(ISBLANK(C13), OR(C13=0, C13="")), G17/C17/(C12/12), G17/C17/(C13/12))),4) -> 0.0027 | K17: =ROUND(IF(ISERROR(0/C17), 0, IF(OR(ISBLANK(C14), OR(C14=0, C14="")), (0/C17)/(C12/12), (0/C17)/(C14/12))),4) -> 0 | L17: =C17*I17*(C13/12) -> 287171.5626 | M17: =E17*J17 -> 0
A18: GENERAL SERVICE LESS THAN 50 KW SERVICE CLASSIFICATION | B18: kWh | C18: 27377213 | D18: 0 | E18: 27377213 | F18: 0 | G18: 72935.05946 | I18: =ROUND(IF(ISERROR(G18/C18),0,IF(OR(ISBLANK(C13), OR(C13=0, C13="")), G18/C18/(C12/12), G18/C18/(C13/12))),4) -> 0.0027 | K18: =ROUND(IF(ISERROR(0/C18), 0, IF(OR(ISBLANK(C14), OR(C14=0, C14="")), (0/C18)/(C12/12), (0/C18)/(C14/12))),4) -> 0 | L18: =C18*I18*(C13/12) -> 73918.4751 | M18: =E18*J18 -> 0
A19: GENERAL SERVICE 50 to 4,999 kW SERVICE CLASSIFICATION | B19: kW | C19: 56544701 | D19: 231007 | E19: 56544701 | F19: 231007 | G19: 150725.9243 | I19: =ROUND(IF(ISERROR(G19/D19),0,IF(OR(ISBLANK(C13), OR(C13=0, C13="")), G19/D19/(C12/12), G19/D19/(C13/12))),4) -> 0.6525 | K19: =ROUND(IF(ISERROR(0/D19), 0, IF(OR(ISBLANK(C14), OR(C14=0, C14="")), (0/D19)/(C12/12), (0/D19)/(C14/12))),4) -> 0 | L19: =D19*I19*(C13/12) -> 150732.0675 | M19: =F19*J19 -> 0
